Workbook

Sheet Vedlikehold selger (hidden)
B1: =Produksjonsbeskrivelse!B4 -> Konsmo Fabrikker AS
B2: =Produksjonsbeskrivelse!B5 -> Hovedkontor Breilimoen 15 4525 KONSMO Telefon: 38 28 13 00 E-post: firmapost@konsmohus.no
J3: Viktig!
J4: Prisene som fremkommer er ment å være til hjelp for utfylling av leveringsbeskrivelse. Alle priser er beregnet med normalt svinn, dekningsbidrag, moms og montasje. Prisene er tilleggspriser til standard kalkyleprodukter. Fradragspriser fremkommer som røde.
B8: Selgere: | D8: Telefon: | F8: Mobil: | H8: E-post
A10: 1 | B10: Jarl-Ove Salvesen | D10: 38 27 15 62 | F10: 90 03 19 56 | H10: jos@konsmohus.no
A11: 2 | B11: Thorbjørn Tobiassen | D11: 38 27 15 61 | F11: 90 20 53 60 | H11: tt@konsmohus.no
A12: 3 | B12: Harry Hestås | D12: 38 27 15 64 | F12: 90 91 74 20 | H12: harry.hestaas@konsmohus.no
A13: 4 | B13: Nils Andersen | D13: 38 00 65 24 | F13: 41 50 85 81 | H13: nils.andersen@konsmohus.no
A14: 5 | B14: Steffen Aarhus | D14: 38 00 65 26 | F14: 47 02 16 68 | H14: steffen.aarhus@konsmohus.no
A15: 6 | B15: Ståle Simonsen | F15: 90 93 79 08 | H15: staale.simonsen@konsmohus.no
A16: 7 | B16: Helge Haugenes | F16: 91 10 50 22 | H16: helge.haugenes@konsmohus.no
A17: 8 | B17: Ole Jan Heddeland | F17: 46 95 14 47 | H17: ojh@konsmohus.no
A18: 9 | B18: Lars Berglund | F18: 93 44 44 11 | H18: lb@konsmohus.no
A19: 10 | B19: Alexander Waksvik | F19: 92 44 06 01 | H19: aw@konsmohus
A20: 11 | B20: Petter Stavran | F20: 95 80 67 35 | H20: petter.stavran@konsmohus.no
A21: 12 | B21: Geir Stolpestad | D21: 38 28 13 22 | F21: 41 85 58 16 | H21: geir.stolpestad@konsmohus.no
A22: 13 | B22: Frank Hestås | D22: 38 28 13 07 | F22: 91 17 05 60 | H22: frank.hestaas@konsmohus.no
A23: 14
A24: 15
A25: 16 | B25: Øyvind Søderholm | F25: 99 49 58 55 | H25: os@konsmohus.no
A26: 17 | B26: Odd Ågedal | F26: 91 35 66 07 | H26: odd.aagedal@konsmohus.no
A27: 18 | B27: Terje Haraldstad | F27: 91 55 19 68 | H27: terje.haraldstad@konsmohus.no
A28: 19 | B28: Steffen Nilsen | F28: 47 02 16 68 | H28: steffen.nilsen@konsmohus.no
A29: 20 | B29: Walther Opheim | F29: 47 61 50 78 | H29: walther.opheim@konsmohus.no
A30: 21 | B30: Petter Stavran | F30: 95 80 67 35 | H30: petter.stavran@konsmohus.no
A31: 22
A32: 23
A33: 24
A34: 25
A35: 26 | B35: Ivar Schelderup | D35: 67 83 90 25 | F35: 90 11 12 08 | H35: ivar@abhus.no
A36: 27 | B36: Per Gjertsen | D36: 67 83 90 25 | F36: 92 01 23 70 | H36: per@abhus.no
A37: 28
A38: 29 | B38: Trond Waxvik | D38: 32 82 66 40 | F38: 93 02 33 66 | H38: tw@waxhus.no
A39: 30 | B39: Geir Øen | D39: 32 82 66 40 | F39: 97 77 11 34 | H39: post@waxhus.no
A40: 31 | B40: Vegard Øen | D40: 32 82 66 40 | F40: 90 01 80 15 | H40: post@waxhus.no
A41: 32
A42: 33 | B42: Trond Berentsen | D42: 46 76 78 00 | F42: 90 89 34 92 | H42: trond@mesterbyggvestfold.no
A43: 34
A44: 35
A45: 36
A46: 37
B48: Påslag i % på nettoinnkjøpspriser (material) | F48: 0.25 | G48: =IF(F48<25%,"Dekningsbidraget er for lavt, juster til minimum 25%", " ") -> 
B49: Påslag i % på netto montasjekostnader | F49: 0.1
B51: Timelønn for tømrere inkl. alle kostnader | F51: 408.4 | G51: ekskl. moms og eventuell dagtid.
B55: Alle rettigheter til denne leveringsbeskrivelse tilhører Konsmo Fabrikker AS.
B56: Leveringsbeskrivelsen må verken helt eller delvis overlates andre uten tillatelse fra Konsmo Fabrikker AS.

Sheet Listverk (hidden)
B4: prof. KOMBILIST | G4: prof. TAKLIST
B18: Nr. | D18: Dimensjon | G18: Nr. | H18: Dimensjoner
B19: Kombilist TK 471 | D19: 15x70 mm | G19: Taklist TT349 | H19: 15x70 mm

Sheet Utvendig kledning (hidden)
A1: Standard kledning:

Sheet Dørvridere (hidden)
A1: Standard dørvridere

Sheet Omramming (hidden)
A1: Standard omramming

Sheet Terrasserekker (hidden)
A1: Standard terrasserekker

Sheet Terrassesøyler (hidden)

Sheet Garasjeporter (hidden)
A1: LIGA Stålporter

Sheet Garasjedører (hidden)
A1: GARASJEDØRER

Sheet Vinduer_garasjeport (hidden)
A1: Vindusrekker i garasjeport

Sheet Garasjeportåpner (hidden)
A1: Garasjeportåpnere

Sheet Skarpnes (hidden)
A1: Skarpnes taksteinprofiler og farger
A4: DOBBELKRUM | E4: ENKELKRUM | G4: MELODIE | H4: FUTURA | J4: DOMINO
A9: Antikk | B9: Antikk Wet Look | C9: Ru Antikk | E9: Antikk | G9: Naturrød | H9: Futura Sort Noblesse, glassert | I9: Futura Antrasitt Nuance Engobert | J9: Antrasitt Nuance Engobert | K9: Skifer Finesse, glassert
A14: Koksgrå | B14: Edel Antrasitt | C14: Ru Lys grå | D14: Ru Skifergrå | E14: Koksgrå | G14: Kobberrød Nuance Engobert | H14: Futura Rød Finesse, glassert | I14: Futura Kobberrød Nuance Engobert | J14: Sort matt Nuance Engobert | K14: Sort Finesse, glassert
B19: Edel Sort | C19: Ru Sort | F19: Edel Sort | G19: Sort Finesse+, glassert | H19: Futura Rødbrun Finesse, glassert | I19: Futura Naturrød | J19: Kobberrød Nuance Engobert | K19: Naturrød
A24: Rød | B24: Edel Rød | C24: Ru Rød | E24: Rød | F24: Edel Rød | G24: Antrasitt Nuance Engobert
A29: Teglrød | B29: Edel Teglrød | E29: Teglrød | F29: Edel Teglrød

Sheet Basic Wall (hidden)
D2: Basic Wall Kostemalt / Rullemalt veggplate
D4: Hvit | E4: NCS S 0502 Y | F4: Skygge 5 bord Kostemalt, 11x620x2390/2740 mm
F5: Perle 5 bord Kostemalt, 11x620x2390/2740 mm
F6: Fas 6 bord Kostemalt, 11x620x2390/2740 mm
F7: Fas 8 bord Kostemalt, 11x620x2390/2740 mm
F8: Antikk m/microfuge Kostemalt, 11x620x2390/2740 mm
F9: Fas 3 bord Rullemalt, 11x620x2390/2740 mm
F10: Antikk vegg Rullemalt, 11x620x2390/2740 mm
D12: Brilliant Hvit | E12: NCS S 0500 N | F12: Skygge 5 bord Kostemalt, 11x620x2390/2740 mm
F13: Perle 5 bord Kostemalt, 11x620x2390/2740 mm
F14: Fas 3 bord, 11x620x2390/2740 mm
F15: Antikk m/microfuge Kostemalt, 11x620x2390/2740 mm
D20: Frost | E20: NCS S 1500 N | F20: Skygge 5 bord Kostemalt, 11x620x2390/2740 mm
F21: Perle 5 bord Kostemalt, 11x620x2390/2740 mm
F22: Fas 8 bord Kostemalt, 11x620x2390/2740 mm
F23: Antikk m/microfuge Kostemalt, 11x620x2390/2740 mm
D28: Caffelatte | E28: NCS S 1005 Y30R | F28: Skygge 5 bord Kostemalt, 11x620x2390/2740 mm
F29: Perle 5 bord Kostemalt, 11x620x2390/2740 mm
F30: Fas 8 bord Kostemalt, 11x620x2390/2740 mm
F31: Fas 3 bord Rullemalt, 11x620x2390/2740 mm
D36: Mist | E36: NCS S 3000 N | F36: Skygge 5 bord Kostemalt, 11x620x2390 mm
D44: Sand | E44: NCS S 2502 Y | F44: Skygge 5 bord Kostemalt, 11x620x2390 mm
D52: Earth | E52: NCS S 4005 Y20R | F52: Skygge 5 bord Kostemalt, 11x620x2390 mm
D60: Pepper | E60: NCS S 6502 Y | F60: Skygge 5 bord Kostemalt, 11x620x2390 mm
D68: Soft Menthol | E68: NCS S 1706 G15Y | F68: Skygge 5 bord Kostemalt, 11x620x2390 mm
D76: Soft Eucalyptus | E76: NCS S 5608 B78G | F76: Skygge 5 bord Kostemalt, 11x620x2390 mm
D84: Terracotta | E84: NCS S 3923 Y74R | F84: Skygge 5 bord Kostemalt, 11x620x2390 mm
D92: Deep Ocean | E92: NCS S 7010 B10G | F92: Skygge 5 bord Kostemalt, 11x620x2390 mm

Sheet Produksjonsbeskrivelse
B4: =LOOKUP(Salgskontor!A2,Salgskontor!A8:A14,Salgskontor!D8:D14) -> Konsmo Fabrikker AS
B5: =LOOKUP(Salgskontor!A2,Salgskontor!A8:A14,Salgskontor!C8:C14) -> Hovedkontor Breilimoen 15 4525 KONSMO Telefon: 38 28 13 00 E-post: firmapost@konsmohus.no | L5: Forhandler:
L9: Dato:
D12: PRODUKSJONSBESKRIVELSE
B13: Forbruker:
B15: Adresse:
B17: Postnr.: | D17: Poststed:
B19: Telefon: | D19: Mob. tlf.: | G19: E-post:
B21: Byggeadresse: | G21: Gnr. | L21: Bnr.
B23: Postnr.: | D23: Poststed:
B25: Byggekommune:
B27: Kontaktperson (forbruker): | G27: Telefon: | J27: E-post:
B29: Selger: | G29: Mob. tlf.: | J29: E-post:
G30: =IF(B30=0,"",INDEX('Vedlikehold selger'!F34:F43,MATCH(B30,'Vedlikehold selger'!B34:B43,0))) ->  | J30: =IF(B30=0,"",INDEX(E_post_forhandlere,MATCH(B30,Forhandlere_Kontaktpersoner,0))) -> 
B31: Byggeleder: | G31: Mob. tlf.: | J31: E-post:
G32: =IF(B32=0,"",INDEX('Vedlikehold selger'!F34:F43,MATCH(B32,'Vedlikehold selger'!B34:B43,0))) ->  | J32: =IF(B32=0,"",INDEX(E_post_forhandlere,MATCH(B32,Forhandlere_Kontaktpersoner,0))) -> 
H34: Merknader:
A35: TEK SØKNAD / TILLATELSE:
A36: Søkes husbanklån:
A37: Tilgjengelig boenhet:
A38: Adkomsthøyde for transport er:
A39: Ligger boligen værutsatt til:
A40: Byggets plassering over havet. | E40: m.o.h.
A41: Brannkrav mot annen bebyggelse:
A42: Spesielle lydkrav:
A43: Tykkelse yttervegger:
A46: Denne produksjonsbeskrivelse er en tilleggsavtale til kontrakt datert:
A48: Basert på tegning datert: | E48: med arkivnummer:
A49: Sist korrigert:
A51: NB! Dersom det er uoverensstemmelse med produksjonsbeskrivelse og tegningsgrunnlag er det produksjonsbsekrivelsen som gjelder!
A53: Prisendringer som følge av denne produksjonsbeskrivelse, overført fra siste side:
B54: Basert på indeks: | D54: pr. dato: | H54: =IF(P677<0,"Sum fradrag:","Sum tillegg:") -> Sum tillegg: | J54: =IF(L54=" "," ","kr") ->  | L54: =IF(P677=0," ",P677) ->  | M54: inkl. mva.
A57: Prisendringer som fremkommer i denne produksjonsbeskrivelsen aksepteres, samt at omtalte forhold medfører inntil | O57: 14
A58: arbeidsdager forlenget leveringstid.
A59: Jeg/vi er også innforstått med at ytterligere/senere endringer kan medføre økte kostnader og forlenget leveringstid.
A64: Sted: | C64: Dato: | G64: Sted: | L64: Dato:
B67: Underskrift byggherre: | G67: Underskrift selger:
A70: =$B$4 -> Konsmo Fabrikker AS | P70: Tillegg/fradrag
A71: PRODUKSJONSBESKRIVELSE
A73: Grunnarbeid:
A74: Merknad:
A78: Mur og betongarbeider:
A79: Støpt plate:
A80: Murvegger:
A81: Pipe:
A82: Merknad:
A86: Tilgjengelig boenhet:
A87: Løsning adkomst hovedinngang: | B87: Løsning: | F87: Løsning kledning:
A88: Løsning adkomst ved stue: | B88: Løsning: | F88: Løsning kledning:
A89: Merknad:
A93: Rørleggerarbeid:
A94: Bunnledninger:
B95: Type toalett:
A96: Vannbåret varme anlegg:
A97: Leveranseomfang:
A98: Til flg. rom m/trebjelkelag:
A99: Ved leveranse vannvarme KF AS:
A100: Merknad:
A104: Elektrikerarbeid:
A105: Varmekabler til flg. rom: | C105: Nr: | D105: Rom | G105: Effekt beregnet for:
A113: Ønsket plassering sikringskap: | B113: Ønsket plassering sikringskap:
A114: Tilleggspunkt teknisk: | B114: Ønsket plassering sikringskap:
A115: Merknad: | C115: =IF(C114=0," ","Tilleggspunkt faktureres direkte fra elektriker med mindre det inngår i hovedleveransen.") -> 
A119: Ventilasjonsanlegg:
A120: Farge på utvendig ventildeksel:
A121: Sentralstøvsuger: | G121: Høyde punkt på vegg:
A122: Ved levering av KF AS: | C122: Type støvsuger:
C123: Antall koblingspunkt: | G123: Plassering på vegg:
C124: Antall sugebrett: | G124: Plassering sugebrett:
A125: Merknad:
A129: Blikkenslagerarbeid:
A130: Leveranseform takrenner og nedløp: | G130: Type renner m/tilbehør:
A131: Farge takrenne og rennekrok: | C131: Sølv Metallic - RAL 9006 | G131: Farge nedløp + deler:
A132: Farge takfotbeslag: | G132: Farge overligger krok:
A133: Pipebeslag: | G133: Farge pipebeslag:
A134: Kilrenner: | G134: Farge kilrenner:
A135: Merknad:
A139: Oppvarmingskilder:
A140: Vedovn: | G140: Type:
A141: Pipe:
A142: Varmepumpe:
A143: Merknad:
A147: Tømmermannsarbeid:
A148: Tømmermannsarbeid leveres av:
A149: Leveransens omfang:
A150: Merknad:
N153: Summer tillegg/fradrag overføres til neste side: | P153: =SUM(P73:P152) -> 0
A154: =$B$4 -> Konsmo Fabrikker AS | N154: Summer tillegg/fradrag overført fra forrige side: | P154: =P153 -> 0
A155: PRODUKSJONSBESKRIVELSE
A157: Undertak og Taktekke:
A158: Undertak:
A159: Type taktekke:
A160: Farge taktekke:
A161: Gavlstein:
A162: Farge snøfanger og stigetrinn:
A163: Merknad:
A166: Utvendig kledning:
A167: Type:
A168: Type:
A169: Impregnering:
A170: Overflatebehandling:
A171: Farge kledning:
A172: Farge vindus- og døromramming:
A173: Farge hjørnekasser:
A174: Farge vindskier:
A175: Farge vannbord/dekkbord tak:
A176: Merknad:
A179: Staffasje:
A180: Overgang etasjeskille:
A181: Mønekryss:
A182: Vindus/døromramming:
A183: Aluminiumsvannbrett (farge):
A184: Bunnstokk:
A185: Kinavipp:
A186: Merknad:
A189: Hoveddør:
A190: Produsent: | G190: Rom:
B191: Type:
A192: Sidefelt:
A193: Farger - Dørblad: | G193: Karm:
A194: Hengsling: | G194: Dørvrider:
A195: Merknad:
A198: Hoveddør 2:
A199: Produsent: | G199: Rom:
B200: Type:
A201: Sidefelt:
A202: Farger - Dørblad: | G202: Karm:
A203: Hengsling: | G203: Dørvrider:
A204: Merknad:
A207: Boddør:
A208: Type:
A209: Merknad:
A212: Kjellerdør:
A213: Type:
A214: Merknad:
A217: Balkong , heve/skyve og bi-inngangsdører:
A218: Etasje | B218: Rom | C218: Nr./m² | D218: Brystning | E218: Slagretning | F218: Låsetype | K218: Soldemping
A223: Merknad: Dører fra vindusprodusent leveres i samme farger og utførelse som beskrevet for vinduer.
A226: Vinduer:
A227: Type åpningsvinduer:
A228: Sprosser:
A229: Behandling:
A230: Farger - Utvendig: | G230: Innvendig:
A231: Farger - Sprosser: | G231: Vridere:
A232: Soledempende glass levers til:
A233: Merknad: Dører fra vindusprodusent leveres i samme farger og utførelse som beskrevet for vinduer.
N236: Summer tillegg/fradrag overføres til neste side: | P236: =SUM(P154:P235) -> 0
A238: =$B$4 -> Konsmo Fabrikker AS | N238: Summer tillegg/fradrag overført fra forrige side: | P238: =P236 -> 0
A239: PRODUKSJONSBESKRIVELSE
A241: Velux-vinduer:
A242: Angi hvilke rom: | E242: Størrelse:
A246: Merknad:
A249: Garasjeport og dør:
A250: Type - Profil:
A251: Overflate - Farge:
A252: Glassåpning port:
A253: Garasjedør type:
A254: Automatisk portåpner:
A255: Merknad:
A258: Terrasser i tre:
A259: Utførelse/type:
A260: Terrassedekke: | E260: Type: | J260: Farge:
A261: Terrasserekke: | E261: Type: | J261: Farge:
A262: Terrassesøyler: | E262: Type: | J262: Farge:
A263: Merknad:
A266: Generelt:
A267: Trapper og plattinger i forbindelse med dører ut på terreng inngår ikke i leveransen.
A269: Innvendige dører:
A270: Dørtype:
A271: Overflate dørblad:
A272: Overflate karm:
A273: Dempelist:
A274: Dørvrider:
A275: Glassdører leveres mellom: | G275: Type:
G276: Type:
G277: Type:
G278: Type:
G279: Glass:
A280: Merknad:
A283: Spesialdører:
A284: Badstudør:
A285: Klimadør:
A286: Branndør / Gasstett dør:
A287: Lyddør:
A288: Merknad:
A291: Diverse luker:
A292: Inspeksjonsluker i knevegger:
A293: Inspeksjonsluker i himling:
A294: Takluke med nedfellbar stige:
A295: Merknad:
A298: Foringer:
A299: Vindus- og ytterdørsforinger:
A300: Foringer innerdører:
A301: Merknad:
A304: Listverk:
A305: Taklister:
A306: Fotlister:
A307: Karmlister:
A308: Behandling listverk:
A309: Merknad:
... 290 more rows

Sheet Sammenstilling
A1: ="Sammenstilling for bolig til "&Produksjonsbeskrivelse!B14&"." -> Sammenstilling for bolig til . | D1: =IF(Produksjonsbeskrivelse!N9="","",Produksjonsbeskrivelse!L9) ->  | E1: =IF(Produksjonsbeskrivelse!N9="","",Produksjonsbeskrivelse!N9) -> 
A3: Merknad:
A4: =IF(Produksjonsbeskrivelse!H36="","",Produksjonsbeskrivelse!H36) -> 
A5: Tak: | B5: Produkt: | D5: Merknad:
A6: Undertak: | B6: =IF(Produksjonsbeskrivelse!C158="","",Produksjonsbeskrivelse!C158) ->  | D6: =IF(Produksjonsbeskrivelse!A164="","",Produksjonsbeskrivelse!A164) -> 
A7: Taktekke: | B7: =IF(Produksjonsbeskrivelse!C159="","",Produksjonsbeskrivelse!C159&", "&Produksjonsbeskrivelse!C160&". "&IF(Produksjonsbeskrivelse!C162=0,""," Snøfanger&Stigetrinn: "&Produksjonsbeskrivelse!C162)) -> 
A8: Gavlstein: | B8: =IF(Produksjonsbeskrivelse!C161="","",Produksjonsbeskrivelse!C161) -> 
A9: Farge takrenner med tilbehør: | B9: =IF(Produksjonsbeskrivelse!C129="","",Produksjonsbeskrivelse!I130&". "&Produksjonsbeskrivelse!D131&" renner+krok. "&Produksjonsbeskrivelse!I131&" nedløp. ") -> 
B10: =IF(Produksjonsbeskrivelse!D132="","",Produksjonsbeskrivelse!D132&" takfotbeslag. ")&(IF(Produksjonsbeskrivelse!I132="","",Produksjonsbeskrivelse!I132&" overligger.")) -> 
B11: =IF(Produksjonsbeskrivelse!D133="","","Pipebeslag: "&Produksjonsbeskrivelse!D133&". ")&(IF(Produksjonsbeskrivelse!D134="",""," Kilrenner: "&Produksjonsbeskrivelse!D134&". Farge: "&Produksjonsbeskrivelse!I134&". ")) -> 
A12: Yttervegger:
A13: Dimensjon: | B13: =IF(Produksjonsbeskrivelse!D43=0,"",Produksjonsbeskrivelse!D43) ->  | D13: =IF(Produksjonsbeskrivelse!A177="","",Produksjonsbeskrivelse!A177) -> 
A14: Utvendig kledning: | B14: =IF(Produksjonsbeskrivelse!C167="","",Produksjonsbeskrivelse!C167&", "&LOWER(Produksjonsbeskrivelse!C169)) -> 
A15: =IF(Produksjonsbeskrivelse!C168="","",Sammenstilling!A14) ->  | B15: =IF(Produksjonsbeskrivelse!C168="","",Produksjonsbeskrivelse!C168&", "&LOWER(Produksjonsbeskrivelse!C169)) -> 
A16: Behandling kledning: | B16: =IF(Produksjonsbeskrivelse!C169="Royalimpregnert","Royalimpregnert",IF(Produksjonsbeskrivelse!C170=0," ",Produksjonsbeskrivelse!C170)) -> 
A17: Farge kledning: | B17: =IF(Produksjonsbeskrivelse!C171="","",Produksjonsbeskrivelse!C171) -> 
A18: Farge omramming: | B18: =IF(Produksjonsbeskrivelse!C172="","",Produksjonsbeskrivelse!C172) -> 
A19: Farge hjørnekasser: | B19: =IF(Produksjonsbeskrivelse!C173="","",Produksjonsbeskrivelse!C173) -> 
A20: Farge vindskier: | B20: =IF(Produksjonsbeskrivelse!C174="","",Produksjonsbeskrivelse!C174) -> 
A21: Farge vann/dekkbord tak: | B21: =IF(Produksjonsbeskrivelse!C175="","",Produksjonsbeskrivelse!C175) -> 
A22: Staffasje:
A23: =Produksjonsbeskrivelse!A180 -> Overgang etasjeskille: | B23: =IF(Produksjonsbeskrivelse!C180="","",Produksjonsbeskrivelse!C180) ->  | D23: =IF(Produksjonsbeskrivelse!A187="","",Produksjonsbeskrivelse!A187) -> 
A24: =Produksjonsbeskrivelse!A181 -> Mønekryss: | B24: =IF(Produksjonsbeskrivelse!C181="","",Produksjonsbeskrivelse!C181) -> 
A25: =Produksjonsbeskrivelse!A182 -> Vindus/døromramming: | B25: =IF(Produksjonsbeskrivelse!C182="","",Produksjonsbeskrivelse!C182) -> 
A26: =Produksjonsbeskrivelse!A183 -> Aluminiumsvannbrett (farge): | B26: =IF(Produksjonsbeskrivelse!C183="","",Produksjonsbeskrivelse!C183) -> 
A27: =Produksjonsbeskrivelse!A184 -> Bunnstokk: | B27: =IF(Produksjonsbeskrivelse!C184="","",Produksjonsbeskrivelse!C184) -> 
A28: =Produksjonsbeskrivelse!A185 -> Kinavipp: | B28: =IF(Produksjonsbeskrivelse!C185="","",Produksjonsbeskrivelse!C185) -> 
A29: Ytterdører:
A30: Hoveddør 1: | B30: =IF(Produksjonsbeskrivelse!C190="","",Produksjonsbeskrivelse!C190&", "&Produksjonsbeskrivelse!C191&" til "&Produksjonsbeskrivelse!H190)&IF(Produksjonsbeskrivelse!C194=0,"",". Hengsling: "&Produksjonsbeskrivelse!H190) ->  | D30: =IF(Produksjonsbeskrivelse!$A$196=0," ",Produksjonsbeskrivelse!$A$196) -> 
A31: Farger: | B31: =IF(Produksjonsbeskrivelse!C193="","",IF(Produksjonsbeskrivelse!C193=Produksjonsbeskrivelse!H193,"Dørblad og karm: "&Produksjonsbeskrivelse!C193,"Dørblad: "&Produksjonsbeskrivelse!C193&". Karm: "&Produksjonsbeskrivelse!H193)) -> 
A32: Dørvrider: | B32: =IF(Produksjonsbeskrivelse!H194="","",Produksjonsbeskrivelse!H194) -> 
A33: Sidefelt: | B33: =IF(Produksjonsbeskrivelse!C192="","",Produksjonsbeskrivelse!C190&", "&Produksjonsbeskrivelse!C192) -> 
B34: =IF(Produksjonsbeskrivelse!B219=0,"",CONCATENATE("Etasje: "&Produksjonsbeskrivelse!A219,"/ Rom: ",Produksjonsbeskrivelse!B219,"/ Type: ",Produksjonsbeskrivelse!C219,"/ Glass: ",Produksjonsbeskrivelse!D219)) ->  | C34: =IF(Produksjonsbeskrivelse!B219=0,"",CONCATENATE("Låsetype: "&Produksjonsbeskrivelse!E219)) -> 
A35: Hoveddør 2: | B35: =IF(Produksjonsbeskrivelse!C199="","",Produksjonsbeskrivelse!C199&", "&Produksjonsbeskrivelse!C200&" til "&Produksjonsbeskrivelse!H199)&IF(Produksjonsbeskrivelse!C203=0,"",". Hengsling: "&Produksjonsbeskrivelse!H203) ->  | D35: =IF(Produksjonsbeskrivelse!$A$205=0," ",Produksjonsbeskrivelse!$A$205) -> 
A36: Farger: | B36: =IF(Produksjonsbeskrivelse!C202="","",IF(Produksjonsbeskrivelse!C202=Produksjonsbeskrivelse!H202,"Dørblad og karm: "&Produksjonsbeskrivelse!C202,"Dørblad: "&Produksjonsbeskrivelse!C202&". Karm: "&Produksjonsbeskrivelse!H202)) -> 
A37: Dørvrider: | B37: =IF(Produksjonsbeskrivelse!H203="","",Produksjonsbeskrivelse!H203) -> 
A38: Sidefelt: | B38: =IF(Produksjonsbeskrivelse!C201="","",Produksjonsbeskrivelse!C199&", "&Produksjonsbeskrivelse!C201) -> 
A40: Boddør: | B40: =IF(Produksjonsbeskrivelse!C208="","",Produksjonsbeskrivelse!C208) ->  | D40: =IF(Produksjonsbeskrivelse!A210="","",Produksjonsbeskrivelse!A210) -> 
A41: Kjellerdør: | B41: =IF(Produksjonsbeskrivelse!C213="","",Produksjonsbeskrivelse!C213) ->  | D41: =IF(Produksjonsbeskrivelse!A215="","",Produksjonsbeskrivelse!A215) -> 
A42: Balkong og HS-dører: | B42: =IF(Produksjonsbeskrivelse!B219="","",(Produksjonsbeskrivelse!B219&" ("&Produksjonsbeskrivelse!C219&"), brystn.: "&Produksjonsbeskrivelse!D219&", retn.: "&LOWER(Produksjonsbeskrivelse!E219)&", lås: "&LOWER(Produksjonsbeskrivelse!F219&IF(Produksjonsbeskrivelse!K219=0," ",", soldemp: "&LOWER(Produksjonsbeskrivelse!K219))))) ->  | D42: =IF(Produksjonsbeskrivelse!A224="","",Produksjonsbeskrivelse!A224) -> 
B43: =IF(Produksjonsbeskrivelse!B220="","",(Produksjonsbeskrivelse!B220&" ("&Produksjonsbeskrivelse!C220&"), brystn.: "&Produksjonsbeskrivelse!D220&", retn.: "&LOWER(Produksjonsbeskrivelse!E220)&", lås: "&LOWER(Produksjonsbeskrivelse!F220&IF(Produksjonsbeskrivelse!K220=0," ",", soldemp: "&LOWER(Produksjonsbeskrivelse!K220))))) -> 
B44: =IF(Produksjonsbeskrivelse!B221="","",(Produksjonsbeskrivelse!B221&" ("&Produksjonsbeskrivelse!C221&"), brystn.: "&Produksjonsbeskrivelse!D221&", retn.: "&LOWER(Produksjonsbeskrivelse!E221)&", lås: "&LOWER(Produksjonsbeskrivelse!F221&IF(Produksjonsbeskrivelse!K221=0," ",", soldemp: "&LOWER(Produksjonsbeskrivelse!K221))))) -> 
B45: =IF(Produksjonsbeskrivelse!B222="","",(Produksjonsbeskrivelse!B222&" ("&Produksjonsbeskrivelse!C222&"), brystn.: "&Produksjonsbeskrivelse!D222&", retn.: "&LOWER(Produksjonsbeskrivelse!E222)&", lås: "&LOWER(Produksjonsbeskrivelse!F222&IF(Produksjonsbeskrivelse!K222=0," ",", soldemp: "&LOWER(Produksjonsbeskrivelse!K222))))) -> 
A46: Vinduer:
A47: Type åpningvindu: | B47: =IF(Produksjonsbeskrivelse!C227="","",Produksjonsbeskrivelse!C227&", "&LOWER(Produksjonsbeskrivelse!C229)&". "&(Produksjonsbeskrivelse!H231)&" vrider.") ->  | D47: =IF(Produksjonsbeskrivelse!A234="","",Produksjonsbeskrivelse!A234) -> 
B48: =IF(Produksjonsbeskrivelse!C228="","",IF(Produksjonsbeskrivelse!C228="Leveres ikke","Sprosser: "&Produksjonsbeskrivelse!C228,Produksjonsbeskrivelse!C228&", "&Produksjonsbeskrivelse!C231)) -> 
B49: =IF(Produksjonsbeskrivelse!C230="","","Farger: Utvendig: "&Produksjonsbeskrivelse!C230&". Innvendig: "&Produksjonsbeskrivelse!H230) -> 
B50: =IF(Produksjonsbeskrivelse!C232="","","Soldemping i: "&Produksjonsbeskrivelse!C232) -> 
A51: Velux takvinduer:
B52: =IF(Produksjonsbeskrivelse!C242="","",Produksjonsbeskrivelse!C242&", størrelse/type: "&Produksjonsbeskrivelse!F242) ->  | D52: =IF(Produksjonsbeskrivelse!A247="","",Produksjonsbeskrivelse!A247) -> 
B53: =IF(Produksjonsbeskrivelse!C243="","",Produksjonsbeskrivelse!C243&", størrelse/type: "&Produksjonsbeskrivelse!F243) -> 
B54: =IF(Produksjonsbeskrivelse!C244="","",Produksjonsbeskrivelse!C244&", størrelse/type: "&Produksjonsbeskrivelse!F244) -> 
B55: =IF(Produksjonsbeskrivelse!C245="","",Produksjonsbeskrivelse!C245&", størrelse/type: "&Produksjonsbeskrivelse!F245) -> 
A56: Garasje:
A57: Garasjeport: | B57: =IF(Produksjonsbeskrivelse!C250="","",Produksjonsbeskrivelse!C250&", "&Produksjonsbeskrivelse!J250&" "&Produksjonsbeskrivelse!C251&", "&Produksjonsbeskrivelse!J251) ->  | D57: =IF(Produksjonsbeskrivelse!$A$256=0," ",Produksjonsbeskrivelse!$A$256) -> 
A58: Garasjedør: | B58: =IF(Produksjonsbeskrivelse!C253="","",Produksjonsbeskrivelse!C253) -> 
A59: Automatisk portåpner: | B59: =IF(Produksjonsbeskrivelse!C254=0,"",Produksjonsbeskrivelse!C254) -> 
A60: Terrasse/balkong:
A61: Utførelse/type: | B61: =IF(Produksjonsbeskrivelse!C259="","",Produksjonsbeskrivelse!C259) ->  | D61: =IF(Produksjonsbeskrivelse!A264="","",Produksjonsbeskrivelse!A264) -> 
A62: Dekke: | B62: =IF(Produksjonsbeskrivelse!C260="","",Produksjonsbeskrivelse!C260&", "&Produksjonsbeskrivelse!F260&", "&Produksjonsbeskrivelse!K260) -> 
A63: Rekker: | B63: =IF(Produksjonsbeskrivelse!C261="","",Produksjonsbeskrivelse!C261&", "&Produksjonsbeskrivelse!F261&", "&Produksjonsbeskrivelse!K261) -> 
A64: Søyler: | B64: =IF(Produksjonsbeskrivelse!C262="","",Produksjonsbeskrivelse!C262&", "&Produksjonsbeskrivelse!F262&", "&Produksjonsbeskrivelse!K262) -> 
A65: Innvendige dører: | B65: Obs! Alle våtromsdører leveres med lufting
A66: Dørtype: | B66: =IF(Produksjonsbeskrivelse!C270=0,"",Produksjonsbeskrivelse!C270) ->  | D66: =IF(Produksjonsbeskrivelse!$A$281=0," ",Produksjonsbeskrivelse!$A$281) -> 
A67: Overflate dørblad: | B67: =IF(Produksjonsbeskrivelse!C271=0,"",Produksjonsbeskrivelse!C271) -> 
A68: Overflate dørkarm: | B68: =IF(Produksjonsbeskrivelse!C272=0,"",Produksjonsbeskrivelse!C272) -> 
A69: Dempelist: | B69: =IF(Produksjonsbeskrivelse!C273="","",Produksjonsbeskrivelse!C273) -> 
A70: Dørvrider: | B70: =IF(Produksjonsbeskrivelse!C274="","",Produksjonsbeskrivelse!C274) -> 
A71: Glassdører: | B71: =IF(Produksjonsbeskrivelse!C275="","","Mellom: "&Produksjonsbeskrivelse!C275&", glass utførelse: "&Produksjonsbeskrivelse!H275&", "&Produksjonsbeskrivelse!H$279) -> 
B72: =IF(Produksjonsbeskrivelse!C276="","","Mellom: "&Produksjonsbeskrivelse!C276&", glass utførelse: "&Produksjonsbeskrivelse!H276&", "&Produksjonsbeskrivelse!H$279) -> 
B73: =IF(Produksjonsbeskrivelse!C277="","","Mellom: "&Produksjonsbeskrivelse!C277&", glass utførelse: "&Produksjonsbeskrivelse!H277&", "&Produksjonsbeskrivelse!H$279) -> 
B74: =IF(Produksjonsbeskrivelse!C278="","","Mellom: "&Produksjonsbeskrivelse!C278&", glass utførelse: "&Produksjonsbeskrivelse!H278&", "&Produksjonsbeskrivelse!H$279) -> 
A75: =Produksjonsbeskrivelse!A284 -> Badstudør: | B75: =IF(Produksjonsbeskrivelse!C284=0,"",Produksjonsbeskrivelse!C284) ->  | D75: =IF(Produksjonsbeskrivelse!$A$289=0," ",Produksjonsbeskrivelse!$A$289) -> 
A76: =Produksjonsbeskrivelse!A285 -> Klimadør: | B76: =IF(Produksjonsbeskrivelse!C285=0,"",Produksjonsbeskrivelse!C285) -> 
A77: =Produksjonsbeskrivelse!A287 -> Lyddør: | B77: =IF(Produksjonsbeskrivelse!C287=0,"",Produksjonsbeskrivelse!C287) -> 
A78: Diverse luker:
A79: Inspeksjonsluker i knevegger: | B79: =IF(Produksjonsbeskrivelse!C292=0,"",Produksjonsbeskrivelse!C292) ->  | D79: =IF(Produksjonsbeskrivelse!$A$296=0," ",Produksjonsbeskrivelse!$A$296) -> 
A80: Inspeksjonsluker i himling: | B80: =IF(Produksjonsbeskrivelse!C293=0,"",Produksjonsbeskrivelse!C293) -> 
A81: Takluke med nedfellbar stige: | B81: =IF(Produksjonsbeskrivelse!C294=0,"",Produksjonsbeskrivelse!C294) -> 
A82: Foringer:
A83: Vindu/ytterdørsforinger: | B83: =IF(Produksjonsbeskrivelse!C299=0,"",Produksjonsbeskrivelse!C299) ->  | D83: =IF(Produksjonsbeskrivelse!$A$302=0," ",Produksjonsbeskrivelse!$A$302) -> 
A84: Dørforinger innerdører: | B84: =IF(Produksjonsbeskrivelse!C300=0,"",Produksjonsbeskrivelse!C300) -> 
A85: Listverk:
A86: Taklister: | B86: =IF(Produksjonsbeskrivelse!C305=0,"",Produksjonsbeskrivelse!C305) ->  | D86: =IF(Produksjonsbeskrivelse!$A$310=0," ",Produksjonsbeskrivelse!$A$310) -> 
A87: Fotlister: | B87: =IF(Produksjonsbeskrivelse!C306=0,"",Produksjonsbeskrivelse!C306) -> 
A88: Karmlister: | B88: =IF(Produksjonsbeskrivelse!C307=0,"",Produksjonsbeskrivelse!C307) -> 
A89: Behandling: | B89: =IF(Produksjonsbeskrivelse!C308=0,"",Produksjonsbeskrivelse!C308) -> 
A90: Trapper:
A91: Trapp1: | B91: =IF(Produksjonsbeskrivelse!C322="","",Produksjonsbeskrivelse!C322&", i "&LOWER(Produksjonsbeskrivelse!C326)) ->  | D91: =IF(Produksjonsbeskrivelse!$A$336=0," ",Produksjonsbeskrivelse!$A$336) -> 
A92: Behandling: | B92: =IF(Produksjonsbeskrivelse!C323=0,"",Produksjonsbeskrivelse!C323) -> 
A93: Trapp 2: | B93: =IF(Produksjonsbeskrivelse!C340="","",Produksjonsbeskrivelse!C340&", i "&LOWER(Produksjonsbeskrivelse!C344)) ->  | D93: =IF(Produksjonsbeskrivelse!$A$354=0," ",Produksjonsbeskrivelse!$A$354) -> 
A94: Behandling: | B94: =IF(Produksjonsbeskrivelse!C341=0,"",Produksjonsbeskrivelse!C341) -> 
A95: Kjøkkeninnredning:
A96: Hovedleilighet: | B96: =IF(Produksjonsbeskrivelse!C358="","",Produksjonsbeskrivelse!C358&", ("&Produksjonsbeskrivelse!C359&")"&IF(Produksjonsbeskrivelse!C360=0,"",", iflg. tegning datert:")) ->  | C96: =IF(Produksjonsbeskrivelse!C360="","",Produksjonsbeskrivelse!C360) ->  | D96: =IF(Produksjonsbeskrivelse!A373="","",Produksjonsbeskrivelse!A373) -> 
A97: Hybel/bi-leilighet: | B97: =IF(Produksjonsbeskrivelse!C363="","",Produksjonsbeskrivelse!C363&", ("&Produksjonsbeskrivelse!C364&")"&IF(Produksjonsbeskrivelse!C365=0,"",", iflg. tegning datert:")) ->  | C97: =IF(Produksjonsbeskrivelse!C365=0,"",Produksjonsbeskrivelse!C365) -> 
A98: Hybel/bi-leilighet: | B98: =IF(Produksjonsbeskrivelse!C368="","",Produksjonsbeskrivelse!C368&", ("&Produksjonsbeskrivelse!C369&")"&IF(Produksjonsbeskrivelse!C370=0,"",", iflg. tegning datert:")) ->  | C98: =IF(Produksjonsbeskrivelse!C370=0,"",Produksjonsbeskrivelse!C370) -> 
A99: Garderobeinnredning:
A100: Hovedleilighet: | B100: =IF(Produksjonsbeskrivelse!C379="","",Produksjonsbeskrivelse!C379&IF(Produksjonsbeskrivelse!C380=0,"",", iflg. tegning datert:")) ->  | C100: =IF(Produksjonsbeskrivelse!C380=0,"",Produksjonsbeskrivelse!C380) ->  | D100: =IF(Produksjonsbeskrivelse!$A$385=0," ",Produksjonsbeskrivelse!$A$385) -> 
A101: Hybel/bi-leilighet: | B101: =IF(Produksjonsbeskrivelse!C382="","",Produksjonsbeskrivelse!C382&IF(Produksjonsbeskrivelse!C383=0,"",", iflg. tegning datert:")) ->  | C101: =IF(Produksjonsbeskrivelse!C383=0,"",Produksjonsbeskrivelse!C383) -> 
A102: Baderomsinnredning:
A103: =IF(Produksjonsbeskrivelse!C389=0,"",Produksjonsbeskrivelse!C389) ->  | B103: =IF(Produksjonsbeskrivelse!C388="","",Produksjonsbeskrivelse!C388) ->  | D103: =IF(Produksjonsbeskrivelse!$A$397=0," ",Produksjonsbeskrivelse!$A$397) -> 
A104: =IF(Produksjonsbeskrivelse!C392=0,"",Produksjonsbeskrivelse!C392) ->  | B104: =IF(Produksjonsbeskrivelse!C391="","",Produksjonsbeskrivelse!C391) -> 
A105: =IF(Produksjonsbeskrivelse!C395=0,"",Produksjonsbeskrivelse!C395) ->  | B105: =IF(Produksjonsbeskrivelse!C394="","",Produksjonsbeskrivelse!C394) -> 
A106: Øvrige endringer:
A107: =IF(Produksjonsbeskrivelse!A662="","",Produksjonsbeskrivelse!A661&" "&Produksjonsbeskrivelse!A662) -> 
A108: =IF(Produksjonsbeskrivelse!A666="","",Produksjonsbeskrivelse!A665&" "&Produksjonsbeskrivelse!A666) -> 
A109: =IF(Produksjonsbeskrivelse!A670="","",Produksjonsbeskrivelse!A669&" "&Produksjonsbeskrivelse!A670) -> 
A110: =IF(Produksjonsbeskrivelse!A674="","",Produksjonsbeskrivelse!A673&" "&Produksjonsbeskrivelse!A674) -> 

Sheet Romskjema
A1: ="Romskjema for bolig til "&Produksjonsbeskrivelse!B14&"." -> Romskjema for bolig til . | H1: =IF(Produksjonsbeskrivelse!N9=0," ","Dato: ") ->  | I1: =IF(Produksjonsbeskrivelse!N9=0," ",Produksjonsbeskrivelse!N9) ->  | J1: =IF(Produksjonsbeskrivelse!B30=0," ","Selger: "&Produksjonsbeskrivelse!B30&", Mob.: "&Produksjonsbeskrivelse!G30&", E-post: "&Produksjonsbeskrivelse!J30) -> 
A2: Etasje | B2: Nr. | C2: Rom | D2: Gulv | E2: Gulv-varme | F2: Gulv for varme | G2: Vegg | I2: Himling / Skråtak | K2: Merknad
A3: =IF(Produksjonsbeskrivelse!$B$407=0," ",Produksjonsbeskrivelse!$B$407) ->  | B3: =IF(Produksjonsbeskrivelse!$B$408=0," ",Produksjonsbeskrivelse!$B$408) ->  | C3: =IF(Produksjonsbeskrivelse!$B$409=0," ",Produksjonsbeskrivelse!$B$409) ->  | D3: =IF(Produksjonsbeskrivelse!$B$410=0," ",Produksjonsbeskrivelse!$B$410&" "&Produksjonsbeskrivelse!$B$413) ->  | E3: =IF(Produksjonsbeskrivelse!$B$411=0," ",Produksjonsbeskrivelse!$B$411) ->  | F3: =IF(Produksjonsbeskrivelse!$B$412=0," ",Produksjonsbeskrivelse!$B$412) ->  | G3: =IF(Produksjonsbeskrivelse!$B$414=0," ",Produksjonsbeskrivelse!$B$414) ->  | I3: =IF(Produksjonsbeskrivelse!$B$415=0," ",Produksjonsbeskrivelse!$B$415) ->  | K3: =IF(Produksjonsbeskrivelse!$A$417=0," ",Produksjonsbeskrivelse!$A$417) -> 
A4: =IF(Produksjonsbeskrivelse!$B$420=0," ",Produksjonsbeskrivelse!$B$420) ->  | B4: =IF(Produksjonsbeskrivelse!$B$421=0," ",Produksjonsbeskrivelse!$B$421) ->  | C4: =IF(Produksjonsbeskrivelse!$B$422=0," ",Produksjonsbeskrivelse!$B$422) ->  | D4: =IF(Produksjonsbeskrivelse!$B$423=0," ",Produksjonsbeskrivelse!$B$423&" "&Produksjonsbeskrivelse!$B$426) ->  | E4: =IF(Produksjonsbeskrivelse!$B$424=0," ",Produksjonsbeskrivelse!$B$424) ->  | F4: =IF(Produksjonsbeskrivelse!$B$425=0," ",Produksjonsbeskrivelse!$B$425) ->  | G4: =IF(Produksjonsbeskrivelse!$B$427=0," ",Produksjonsbeskrivelse!$B$427) ->  | H4: =IF(Produksjonsbeskrivelse!$B$425=0," ",Produksjonsbeskrivelse!$B$425) ->  | I4: =IF(Produksjonsbeskrivelse!$B$428=0," ",Produksjonsbeskrivelse!$B$428) ->  | J4: =IF(Produksjonsbeskrivelse!$B$425=0," ",Produksjonsbeskrivelse!$B$425) ->  | K4: =IF(Produksjonsbeskrivelse!$A$430=0," ",Produksjonsbeskrivelse!$A$430) -> 
A5: =IF(Produksjonsbeskrivelse!$B$433=0," ",Produksjonsbeskrivelse!$B$433) ->  | B5: =IF(Produksjonsbeskrivelse!$B$434=0," ",Produksjonsbeskrivelse!$B$434) ->  | C5: =IF(Produksjonsbeskrivelse!$B$435=0," ",Produksjonsbeskrivelse!$B$435) ->  | D5: =IF(Produksjonsbeskrivelse!$B$436=0," ",Produksjonsbeskrivelse!$B$436&" "&Produksjonsbeskrivelse!$B$439) ->  | E5: =IF(Produksjonsbeskrivelse!$B$437=0," ",Produksjonsbeskrivelse!$B$437) ->  | F5: =IF(Produksjonsbeskrivelse!$B$438=0," ",Produksjonsbeskrivelse!$B$438) ->  | G5: =IF(Produksjonsbeskrivelse!$B$440=0," ",Produksjonsbeskrivelse!$B$440) ->  | H5: =IF(Produksjonsbeskrivelse!$B$438=0," ",Produksjonsbeskrivelse!$B$438) ->  | I5: =IF(Produksjonsbeskrivelse!$B$441=0," ",Produksjonsbeskrivelse!$B$441) ->  | J5: =IF(Produksjonsbeskrivelse!$B$438=0," ",Produksjonsbeskrivelse!$B$438) ->  | K5: =IF(Produksjonsbeskrivelse!$A$443=0," ",Produksjonsbeskrivelse!$A$443) -> 
A6: =IF(Produksjonsbeskrivelse!$B$446=0," ",Produksjonsbeskrivelse!$B$446) ->  | B6: =IF(Produksjonsbeskrivelse!$B$447=0," ",Produksjonsbeskrivelse!$B$447) ->  | C6: =IF(Produksjonsbeskrivelse!$B$448=0," ",Produksjonsbeskrivelse!$B$448) ->  | D6: =IF(Produksjonsbeskrivelse!$B$449=0," ",Produksjonsbeskrivelse!$B$449&" "&Produksjonsbeskrivelse!$B$452) ->  | E6: =IF(Produksjonsbeskrivelse!$B$450=0," ",Produksjonsbeskrivelse!$B$450) ->  | F6: =IF(Produksjonsbeskrivelse!$B$451=0," ",Produksjonsbeskrivelse!$B$451) ->  | G6: =IF(Produksjonsbeskrivelse!$B$453=0," ",Produksjonsbeskrivelse!$B$453) ->  | H6: =IF(Produksjonsbeskrivelse!$B$451=0," ",Produksjonsbeskrivelse!$B$451) ->  | I6: =IF(Produksjonsbeskrivelse!$B$454=0," ",Produksjonsbeskrivelse!$B$454) ->  | J6: =IF(Produksjonsbeskrivelse!$B$451=0," ",Produksjonsbeskrivelse!$B$451) ->  | K6: =IF(Produksjonsbeskrivelse!$A$456=0," ",Produksjonsbeskrivelse!$A$456) -> 
A7: =IF(Produksjonsbeskrivelse!$B$459=0," ",Produksjonsbeskrivelse!$B$459) ->  | B7: =IF(Produksjonsbeskrivelse!$B$460=0," ",Produksjonsbeskrivelse!$B$460) ->  | C7: =IF(Produksjonsbeskrivelse!$B$461=0," ",Produksjonsbeskrivelse!$B$461) ->  | D7: =IF(Produksjonsbeskrivelse!$B$462=0," ",Produksjonsbeskrivelse!$B$462&" "&Produksjonsbeskrivelse!$B$465) ->  | E7: =IF(Produksjonsbeskrivelse!$B$463=0," ",Produksjonsbeskrivelse!$B$463) ->  | F7: =IF(Produksjonsbeskrivelse!$B$464=0," ",Produksjonsbeskrivelse!$B$464) ->  | G7: =IF(Produksjonsbeskrivelse!$B$466=0," ",Produksjonsbeskrivelse!$B$466) ->  | H7: =IF(Produksjonsbeskrivelse!$B$464=0," ",Produksjonsbeskrivelse!$B$464) ->  | I7: =IF(Produksjonsbeskrivelse!$B$467=0," ",Produksjonsbeskrivelse!$B$467) ->  | J7: =IF(Produksjonsbeskrivelse!$B$464=0," ",Produksjonsbeskrivelse!$B$464) ->  | K7: =IF(Produksjonsbeskrivelse!$A$469=0," ",Produksjonsbeskrivelse!$A$469) -> 
A8: =IF(Produksjonsbeskrivelse!$B$472=0," ",Produksjonsbeskrivelse!$B$472) ->  | B8: =IF(Produksjonsbeskrivelse!$B$473=0," ",Produksjonsbeskrivelse!$B$473) ->  | C8: =IF(Produksjonsbeskrivelse!$B$474=0," ",Produksjonsbeskrivelse!$B$474) ->  | D8: =IF(Produksjonsbeskrivelse!$B$475=0," ",Produksjonsbeskrivelse!$B$475&" "&Produksjonsbeskrivelse!$B$478) ->  | E8: =IF(Produksjonsbeskrivelse!$B$476=0," ",Produksjonsbeskrivelse!$B$476) ->  | F8: =IF(Produksjonsbeskrivelse!$B$477=0," ",Produksjonsbeskrivelse!$B$477) ->  | G8: =IF(Produksjonsbeskrivelse!$B$479=0," ",Produksjonsbeskrivelse!$B$479) ->  | H8: =IF(Produksjonsbeskrivelse!$B$477=0," ",Produksjonsbeskrivelse!$B$477) ->  | I8: =IF(Produksjonsbeskrivelse!$B$480=0," ",Produksjonsbeskrivelse!$B$480) ->  | J8: =IF(Produksjonsbeskrivelse!$B$477=0," ",Produksjonsbeskrivelse!$B$477) ->  | K8: =IF(Produksjonsbeskrivelse!$A$482=0," ",Produksjonsbeskrivelse!$A$482) -> 
A9: =IF(Produksjonsbeskrivelse!$B$492=0," ",Produksjonsbeskrivelse!$B$492) ->  | B9: =IF(Produksjonsbeskrivelse!$B$493=0," ",Produksjonsbeskrivelse!$B$493) ->  | C9: =IF(Produksjonsbeskrivelse!$B$494=0," ",Produksjonsbeskrivelse!$B$494) ->  | D9: =IF(Produksjonsbeskrivelse!$B$495=0," ",Produksjonsbeskrivelse!$B$495&" "&Produksjonsbeskrivelse!$B$498) ->  | E9: =IF(Produksjonsbeskrivelse!$B$496=0," ",Produksjonsbeskrivelse!$B$496) ->  | F9: =IF(Produksjonsbeskrivelse!$B$497=0," ",Produksjonsbeskrivelse!$B$497) ->  | G9: =IF(Produksjonsbeskrivelse!$B$499=0," ",Produksjonsbeskrivelse!$B$499) ->  | H9: =IF(Produksjonsbeskrivelse!$B$497=0," ",Produksjonsbeskrivelse!$B$498) ->  | I9: =IF(Produksjonsbeskrivelse!$B$500=0," ",Produksjonsbeskrivelse!$B$500) ->  | J9: =IF(Produksjonsbeskrivelse!$B$497=0," ",Produksjonsbeskrivelse!$B$498) ->  | K9: =IF(Produksjonsbeskrivelse!$A$502=0," ",Produksjonsbeskrivelse!$A$502) -> 
A10: =IF(Produksjonsbeskrivelse!$B$505=0," ",Produksjonsbeskrivelse!$B$505) ->  | B10: =IF(Produksjonsbeskrivelse!$B$506=0," ",Produksjonsbeskrivelse!$B$506) ->  | C10: =IF(Produksjonsbeskrivelse!$B$507=0," ",Produksjonsbeskrivelse!$B$507) ->  | D10: =IF(Produksjonsbeskrivelse!$B$508=0," ",Produksjonsbeskrivelse!$B$508&" "&Produksjonsbeskrivelse!$B$511) ->  | E10: =IF(Produksjonsbeskrivelse!$B$509=0," ",Produksjonsbeskrivelse!$B$509) ->  | F10: =IF(Produksjonsbeskrivelse!$B$510=0," ",Produksjonsbeskrivelse!$B$510) ->  | G10: =IF(Produksjonsbeskrivelse!$B$512=0," ",Produksjonsbeskrivelse!$B$512) ->  | H10: =IF(Produksjonsbeskrivelse!$B$510=0," ",Produksjonsbeskrivelse!$B$510) ->  | I10: =IF(Produksjonsbeskrivelse!$B$513=0," ",Produksjonsbeskrivelse!$B$513) ->  | J10: =IF(Produksjonsbeskrivelse!$B$510=0," ",Produksjonsbeskrivelse!$B$510) ->  | K10: =IF(Produksjonsbeskrivelse!$A$515=0," ",Produksjonsbeskrivelse!$A$515) -> 
A11: =IF(Produksjonsbeskrivelse!$B$518=0," ",Produksjonsbeskrivelse!$B$518) ->  | B11: =IF(Produksjonsbeskrivelse!$B$519=0," ",Produksjonsbeskrivelse!$B$519) ->  | C11: =IF(Produksjonsbeskrivelse!$B$520=0," ",Produksjonsbeskrivelse!$B$520) ->  | D11: =IF(Produksjonsbeskrivelse!$B$521=0," ",Produksjonsbeskrivelse!$B$521&" "&Produksjonsbeskrivelse!$B$524) ->  | E11: =IF(Produksjonsbeskrivelse!$B$522=0," ",Produksjonsbeskrivelse!$B$522) ->  | F11: =IF(Produksjonsbeskrivelse!$B$523=0," ",Produksjonsbeskrivelse!$B$523) ->  | G11: =IF(Produksjonsbeskrivelse!$B$525=0," ",Produksjonsbeskrivelse!$B$525) ->  | H11: =IF(Produksjonsbeskrivelse!$B$523=0," ",Produksjonsbeskrivelse!$B$523) ->  | I11: =IF(Produksjonsbeskrivelse!$B$526=0," ",Produksjonsbeskrivelse!$B$526) ->  | J11: =IF(Produksjonsbeskrivelse!$B$523=0," ",Produksjonsbeskrivelse!$B$523) ->  | K11: =IF(Produksjonsbeskrivelse!$A$528=0," ",Produksjonsbeskrivelse!$A$528) -> 
A12: =IF(Produksjonsbeskrivelse!$B$531=0," ",Produksjonsbeskrivelse!$B$531) ->  | B12: =IF(Produksjonsbeskrivelse!$B$532=0," ",Produksjonsbeskrivelse!$B$532) ->  | C12: =IF(Produksjonsbeskrivelse!$B$533=0," ",Produksjonsbeskrivelse!$B$533) ->  | D12: =IF(Produksjonsbeskrivelse!$B$534=0," ",Produksjonsbeskrivelse!$B$534&" "&Produksjonsbeskrivelse!$B$537) ->  | E12: =IF(Produksjonsbeskrivelse!$B$535=0," ",Produksjonsbeskrivelse!$B$535) ->  | F12: =IF(Produksjonsbeskrivelse!$B$536=0," ",Produksjonsbeskrivelse!$B$536) ->  | G12: =IF(Produksjonsbeskrivelse!$B$538=0," ",Produksjonsbeskrivelse!$B$538) ->  | H12: =IF(Produksjonsbeskrivelse!$B$536=0," ",Produksjonsbeskrivelse!$B$536) ->  | I12: =IF(Produksjonsbeskrivelse!$B$539=0," ",Produksjonsbeskrivelse!$B$539) ->  | J12: =IF(Produksjonsbeskrivelse!$B$536=0," ",Produksjonsbeskrivelse!$B$536) ->  | K12: =IF(Produksjonsbeskrivelse!$A$541=0," ",Produksjonsbeskrivelse!$A$541) -> 
A13: =IF(Produksjonsbeskrivelse!$B$544=0," ",Produksjonsbeskrivelse!$B$544) ->  | B13: =IF(Produksjonsbeskrivelse!$B$545=0," ",Produksjonsbeskrivelse!$B$545) ->  | C13: =IF(Produksjonsbeskrivelse!$B$546=0," ",Produksjonsbeskrivelse!$B$546) ->  | D13: =IF(Produksjonsbeskrivelse!$B$547=0," ",Produksjonsbeskrivelse!$B$547&" "&Produksjonsbeskrivelse!$B$550) ->  | E13: =IF(Produksjonsbeskrivelse!$B$548=0," ",Produksjonsbeskrivelse!$B$548) ->  | F13: =IF(Produksjonsbeskrivelse!$B$549=0," ",Produksjonsbeskrivelse!$B$549) ->  | G13: =IF(Produksjonsbeskrivelse!$B$551=0," ",Produksjonsbeskrivelse!$B$551) ->  | H13: =IF(Produksjonsbeskrivelse!$B$549=0," ",Produksjonsbeskrivelse!$B$549) ->  | I13: =IF(Produksjonsbeskrivelse!$B$552=0," ",Produksjonsbeskrivelse!$B$552) ->  | J13: =IF(Produksjonsbeskrivelse!$B$549=0," ",Produksjonsbeskrivelse!$B$549) ->  | K13: =IF(Produksjonsbeskrivelse!$A$554=0," ",Produksjonsbeskrivelse!$A$554) -> 
A14: =IF(Produksjonsbeskrivelse!$B$557=0," ",Produksjonsbeskrivelse!$B$557) ->  | B14: =IF(Produksjonsbeskrivelse!$B$558=0," ",Produksjonsbeskrivelse!$B$558) ->  | C14: =IF(Produksjonsbeskrivelse!$B$559=0," ",Produksjonsbeskrivelse!$B$559) ->  | D14: =IF(Produksjonsbeskrivelse!$B$560=0," ",Produksjonsbeskrivelse!$B$560&" "&Produksjonsbeskrivelse!$B$563) ->  | E14: =IF(Produksjonsbeskrivelse!$B$561=0," ",Produksjonsbeskrivelse!$B$561) ->  | F14: =IF(Produksjonsbeskrivelse!$B$562=0," ",Produksjonsbeskrivelse!$B$562) ->  | G14: =IF(Produksjonsbeskrivelse!$B$564=0," ",Produksjonsbeskrivelse!$B$564) ->  | H14: =IF(Produksjonsbeskrivelse!$B$562=0," ",Produksjonsbeskrivelse!$B$562) ->  | I14: =IF(Produksjonsbeskrivelse!$B$565=0," ",Produksjonsbeskrivelse!$B$565) ->  | J14: =IF(Produksjonsbeskrivelse!$B$562=0," ",Produksjonsbeskrivelse!$B$562) ->  | K14: =IF(Produksjonsbeskrivelse!$A$567=0," ",Produksjonsbeskrivelse!$A$567) -> 
A15: =IF(Produksjonsbeskrivelse!$B$577=0," ",Produksjonsbeskrivelse!$B$577) ->  | B15: =IF(Produksjonsbeskrivelse!$B$578=0," ",Produksjonsbeskrivelse!$B$578) ->  | C15: =IF(Produksjonsbeskrivelse!$B$579=0," ",Produksjonsbeskrivelse!$B$579) ->  | D15: =IF(Produksjonsbeskrivelse!$B$580=0," ",Produksjonsbeskrivelse!$B$580&" "&Produksjonsbeskrivelse!$B$583) ->  | E15: =IF(Produksjonsbeskrivelse!$B$581=0," ",Produksjonsbeskrivelse!$B$581) ->  | F15: =IF(Produksjonsbeskrivelse!$B$582=0," ",Produksjonsbeskrivelse!$B$582) ->  | G15: =IF(Produksjonsbeskrivelse!$B$584=0," ",Produksjonsbeskrivelse!$B$584) ->  | H15: =IF(Produksjonsbeskrivelse!$B$582=0," ",Produksjonsbeskrivelse!$B$582) ->  | I15: =IF(Produksjonsbeskrivelse!$B$585=0," ",Produksjonsbeskrivelse!$B$585) ->  | J15: =IF(Produksjonsbeskrivelse!$B$582=0," ",Produksjonsbeskrivelse!$B$582) ->  | K15: =IF(Produksjonsbeskrivelse!$A$587=0," ",Produksjonsbeskrivelse!$A$587) -> 
A16: =IF(Produksjonsbeskrivelse!$B$590=0," ",Produksjonsbeskrivelse!$B$590) ->  | B16: =IF(Produksjonsbeskrivelse!$B$591=0," ",Produksjonsbeskrivelse!$B$591) ->  | C16: =IF(Produksjonsbeskrivelse!$B$592=0," ",Produksjonsbeskrivelse!$B$592) ->  | D16: =IF(Produksjonsbeskrivelse!$B$593=0," ",Produksjonsbeskrivelse!$B$593&" "&Produksjonsbeskrivelse!$B$596) ->  | E16: =IF(Produksjonsbeskrivelse!$B$594=0," ",Produksjonsbeskrivelse!$B$594) ->  | F16: =IF(Produksjonsbeskrivelse!$B$595=0," ",Produksjonsbeskrivelse!$B$595) ->  | G16: =IF(Produksjonsbeskrivelse!$B$597=0," ",Produksjonsbeskrivelse!$B$597) ->  | H16: =IF(Produksjonsbeskrivelse!$B$595=0," ",Produksjonsbeskrivelse!$B$595) ->  | I16: =IF(Produksjonsbeskrivelse!$B$598=0," ",Produksjonsbeskrivelse!$B$598) ->  | J16: =IF(Produksjonsbeskrivelse!$B$595=0," ",Produksjonsbeskrivelse!$B$595) ->  | K16: =IF(Produksjonsbeskrivelse!$A$600=0," ",Produksjonsbeskrivelse!$A$600) -> 
A17: =IF(Produksjonsbeskrivelse!$B$603=0," ",Produksjonsbeskrivelse!$B$603) ->  | B17: =IF(Produksjonsbeskrivelse!$B$604=0," ",Produksjonsbeskrivelse!$B$604) ->  | C17: =IF(Produksjonsbeskrivelse!$B$605=0," ",Produksjonsbeskrivelse!$B$605) ->  | D17: =IF(Produksjonsbeskrivelse!$B$606=0," ",Produksjonsbeskrivelse!$B$606&" "&Produksjonsbeskrivelse!$B$609) ->  | E17: =IF(Produksjonsbeskrivelse!$B$607=0," ",Produksjonsbeskrivelse!$B$607) ->  | F17: =IF(Produksjonsbeskrivelse!$B$608=0," ",Produksjonsbeskrivelse!$B$608) ->  | G17: =IF(Produksjonsbeskrivelse!$B$610=0," ",Produksjonsbeskrivelse!$B$610) ->  | H17: =IF(Produksjonsbeskrivelse!$B$608=0," ",Produksjonsbeskrivelse!$B$608) ->  | I17: =IF(Produksjonsbeskrivelse!$B$611=0," ",Produksjonsbeskrivelse!$B$611) ->  | J17: =IF(Produksjonsbeskrivelse!$B$608=0," ",Produksjonsbeskrivelse!$B$608) ->  | K17: =IF(Produksjonsbeskrivelse!$A$613=0," ",Produksjonsbeskrivelse!$A$613) -> 
A18: =IF(Produksjonsbeskrivelse!$B$616=0," ",Produksjonsbeskrivelse!$B$616) ->  | B18: =IF(Produksjonsbeskrivelse!$B$617=0," ",Produksjonsbeskrivelse!$B$617) ->  | C18: =IF(Produksjonsbeskrivelse!$B$618=0," ",Produksjonsbeskrivelse!$B$618) ->  | D18: =IF(Produksjonsbeskrivelse!$B$619=0," ",Produksjonsbeskrivelse!$B$619&" "&Produksjonsbeskrivelse!$B$622) ->  | E18: =IF(Produksjonsbeskrivelse!$B$620=0," ",Produksjonsbeskrivelse!$B$620) ->  | F18: =IF(Produksjonsbeskrivelse!$B$621=0," ",Produksjonsbeskrivelse!$B$621) ->  | G18: =IF(Produksjonsbeskrivelse!$B$623=0," ",Produksjonsbeskrivelse!$B$623) ->  | H18: =IF(Produksjonsbeskrivelse!$B$621=0," ",Produksjonsbeskrivelse!$B$621) ->  | I18: =IF(Produksjonsbeskrivelse!$B$624=0," ",Produksjonsbeskrivelse!$B$624) ->  | J18: =IF(Produksjonsbeskrivelse!$B$621=0," ",Produksjonsbeskrivelse!$B$621) ->  | K18: =IF(Produksjonsbeskrivelse!$A$626=0," ",Produksjonsbeskrivelse!$A$626) -> 
A19: =IF(Produksjonsbeskrivelse!$B$629=0," ",Produksjonsbeskrivelse!$B$629) ->  | B19: =IF(Produksjonsbeskrivelse!$B$630=0," ",Produksjonsbeskrivelse!$B$630) ->  | C19: =IF(Produksjonsbeskrivelse!$B$631=0," ",Produksjonsbeskrivelse!$B$631) ->  | D19: =IF(Produksjonsbeskrivelse!$B$632=0," ",Produksjonsbeskrivelse!$B$632&" "&Produksjonsbeskrivelse!$B$635) ->  | E19: =IF(Produksjonsbeskrivelse!$B$633=0," ",Produksjonsbeskrivelse!$B$633) ->  | F19: =IF(Produksjonsbeskrivelse!$B$634=0," ",Produksjonsbeskrivelse!$B$634) ->  | G19: =IF(Produksjonsbeskrivelse!$B$636=0," ",Produksjonsbeskrivelse!$B$636) ->  | H19: =IF(Produksjonsbeskrivelse!$B$634=0," ",Produksjonsbeskrivelse!$B$634) ->  | I19: =IF(Produksjonsbeskrivelse!$B$637=0," ",Produksjonsbeskrivelse!$B$637) ->  | J19: =IF(Produksjonsbeskrivelse!$B$634=0," ",Produksjonsbeskrivelse!$B$634) ->  | K19: =IF(Produksjonsbeskrivelse!$A$639=0," ",Produksjonsbeskrivelse!$A$639) -> 
A20: =IF(Produksjonsbeskrivelse!$B$642=0," ",Produksjonsbeskrivelse!$B$642) ->  | B20: =IF(Produksjonsbeskrivelse!$B$643=0," ",Produksjonsbeskrivelse!$B$643) ->  | C20: =IF(Produksjonsbeskrivelse!$B$644=0," ",Produksjonsbeskrivelse!$B$644) ->  | D20: =IF(Produksjonsbeskrivelse!$B$645=0," ",Produksjonsbeskrivelse!$B$645&" "&Produksjonsbeskrivelse!$B$648) ->  | E20: =IF(Produksjonsbeskrivelse!$B$646=0," ",Produksjonsbeskrivelse!$B$646) ->  | F20: =IF(Produksjonsbeskrivelse!$B$647=0," ",Produksjonsbeskrivelse!$B$647) ->  | G20: =IF(Produksjonsbeskrivelse!$B$649=0," ",Produksjonsbeskrivelse!$B$649) ->  | I20: =IF(Produksjonsbeskrivelse!$B$650=0," ",Produksjonsbeskrivelse!$B$650) ->  | K20: =IF(Produksjonsbeskrivelse!$A$652=0," ",Produksjonsbeskrivelse!$A$652) -> 

Sheet Hoveddører (hidden)
A1: PRODUSENT HOVEDDØR: | C1: Gilje-dører | F1: SWEDOOR HOVEDDØRER
A3: GILJE | C3: VANLIGVIS LAGERFØRTE DØRER | D3: Lagerførte farger: | F3: SWEDOOR CLASSIC | G3: FARGER SWEDOOR:
A4: SWEDOOR | C4: HADES med klart glass | D4: Hvit NCS S 0502-Y | F4: Albinoni, klart glass | G4: Basfarge Hvit NCS S 0502-Y
C5: ANDRÉ med katedral glass | D5: Hvit NCS S 0500-N | F5: Beethoven | G5: Standard Hvit NCS S 0500-N
A6: =IF(Produksjonsbeskrivelse!C$190=Hoveddører!A$3,Hoveddører!C3,IF(Produksjonsbeskrivelse!C$199=Hoveddører!A$3,Hoveddører!C3,IF(Produksjonsbeskrivelse!C$190=Hoveddører!A$4,Hoveddører!F3,IF(Produksjonsbeskrivelse!C$199=Hoveddører!A$4,Hoveddører!F3,"")))) ->  | C6: LISTA med klart glass | D6: Sort NCS S 9000-N | F6: Bizet, cotswold glass | G6: Standard Sort NCS S 9000-N
A7: =IF(Produksjonsbeskrivelse!C$190=Hoveddører!A$3,Hoveddører!C4,IF(Produksjonsbeskrivelse!C$199=Hoveddører!A$3,Hoveddører!C4,IF(Produksjonsbeskrivelse!C$190=Hoveddører!A$4,Hoveddører!F4,IF(Produksjonsbeskrivelse!C$199=Hoveddører!A$4,Hoveddører!F4,"")))) ->  | C7: KRISTIAN med katedral glass | F7: Brahms, klart glass | G7: Standard Mørk grå NCS S7500-N
A8: =IF(Produksjonsbeskrivelse!C$190=Hoveddører!A$3,Hoveddører!C5,IF(Produksjonsbeskrivelse!C$199=Hoveddører!A$3,Hoveddører!C5,IF(Produksjonsbeskrivelse!C$190=Hoveddører!A$4,Hoveddører!F5,IF(Produksjonsbeskrivelse!C$199=Hoveddører!A$4,Hoveddører!F5,"")))) ->  | C8: STANDARD tett | D8: FARGER GILJE: | F8: Chopin, klart glass | G8: Standard Grå NCS S 3502-Y
A9: =IF(Produksjonsbeskrivelse!C$190=Hoveddører!A$3,Hoveddører!C6,IF(Produksjonsbeskrivelse!C$199=Hoveddører!A$3,Hoveddører!C6,IF(Produksjonsbeskrivelse!C$190=Hoveddører!A$4,Hoveddører!F6,IF(Produksjonsbeskrivelse!C$199=Hoveddører!A$4,Hoveddører!F6,"")))) ->  | C9: HALDEN med katedral glass | D9: Hvit NCS S 0502-Y | F9: Clementi, cotswold glass | G9: Standard Blå NCS S 5020-R90B
A10: =IF(Produksjonsbeskrivelse!C$190=Hoveddører!A$3,Hoveddører!C7,IF(Produksjonsbeskrivelse!C$199=Hoveddører!A$3,Hoveddører!C7,IF(Produksjonsbeskrivelse!C$190=Hoveddører!A$4,Hoveddører!F7,IF(Produksjonsbeskrivelse!C$199=Hoveddører!A$4,Hoveddører!F7,"")))) ->  | C10: LUND tett | D10: Hvit NCS S 0500-N | F10: Corelli, sandblåst/klart glass | G10: Standard Rød NCS S 2570-Y90R
A11: =IF(Produksjonsbeskrivelse!C$190=Hoveddører!A$3,Hoveddører!C8,IF(Produksjonsbeskrivelse!C$199=Hoveddører!A$3,Hoveddører!C8,IF(Produksjonsbeskrivelse!C$190=Hoveddører!A$4,Hoveddører!F8,IF(Produksjonsbeskrivelse!C$199=Hoveddører!A$4,Hoveddører!F8,"")))) ->  | C11: LUND med katedral glass. | D11: Sort NCS S 9000-N | F11: Debussy, sandblåst/klart glass | G11: Standard Rød NCS S 4050-Y80R
A12: =IF(Produksjonsbeskrivelse!C$190=Hoveddører!A$3,Hoveddører!C9,IF(Produksjonsbeskrivelse!C$199=Hoveddører!A$3,Hoveddører!C9,IF(Produksjonsbeskrivelse!C$190=Hoveddører!A$4,Hoveddører!F9,IF(Produksjonsbeskrivelse!C$199=Hoveddører!A$4,Hoveddører!F9,"")))) ->  | D12: Mørk grå NCS S 6500-N | F12: Debussy, pardør, sandblåst/klart glass | G12: Standard Grønn NCS S 6020-G10Y
A13: =IF(Produksjonsbeskrivelse!C$190=Hoveddører!A$3,Hoveddører!C10,IF(Produksjonsbeskrivelse!C$199=Hoveddører!A$3,Hoveddører!C10,IF(Produksjonsbeskrivelse!C$190=Hoveddører!A$4,Hoveddører!F10,IF(Produksjonsbeskrivelse!C$199=Hoveddører!A$4,Hoveddører!F10,"")))) ->  | C13: BASIC-DØRER: | D13: Grå NCS S 2500-N | F13: Delius, sandblåst/klart glass | G13: Eik
A14: =IF(Produksjonsbeskrivelse!C$190=Hoveddører!A$3,Hoveddører!C11,IF(Produksjonsbeskrivelse!C$199=Hoveddører!A$3,Hoveddører!C11,IF(Produksjonsbeskrivelse!C$190=Hoveddører!A$4,Hoveddører!F11,IF(Produksjonsbeskrivelse!C$199=Hoveddører!A$4,Hoveddører!F11,"")))) ->  | C14: AFRODITE med klar glass, Basic U-verdi 0,95 | D14: Blå NCS S 5020-R90B | F14: Delius, pardør, sandblåst/klart glass
A15: =IF(Produksjonsbeskrivelse!C$190=Hoveddører!A$3,Hoveddører!C12,IF(Produksjonsbeskrivelse!C$199=Hoveddører!A$3,Hoveddører!C12,IF(Produksjonsbeskrivelse!C$190=Hoveddører!A$4,Hoveddører!F12,IF(Produksjonsbeskrivelse!C$199=Hoveddører!A$4,Hoveddører!F12,"")))) ->  | C15: AKERSHUS utenpåliggende dekor med katedral glass, Basic U-verdi 0,96 | D15: Rød/Bonderød NCS S 5040-Y80R | F15: Grieg
A16: =IF(Produksjonsbeskrivelse!C$190=Hoveddører!A$3,Hoveddører!C13,IF(Produksjonsbeskrivelse!C$199=Hoveddører!A$3,Hoveddører!C13,IF(Produksjonsbeskrivelse!C$190=Hoveddører!A$4,Hoveddører!F13,IF(Produksjonsbeskrivelse!C$199=Hoveddører!A$4,Hoveddører!F13,"")))) ->  | C16: AKERSHUS utenpåliggende dekor tett, Basic U-verdi 0,85 | D16: Grønn/Mørk grågrønn NCS S 7010-G30Y | F16: Hȁndel, cotswold glass
A17: =IF(Produksjonsbeskrivelse!C$190=Hoveddører!A$3,Hoveddører!C14,IF(Produksjonsbeskrivelse!C$199=Hoveddører!A$3,Hoveddører!C14,IF(Produksjonsbeskrivelse!C$190=Hoveddører!A$4,Hoveddører!F14,IF(Produksjonsbeskrivelse!C$199=Hoveddører!A$4,Hoveddører!F14,"")))) ->  | C17: AKERSHUS PROFIL med katedral glass, Basic U-verdi 0,96 | F17: Ives, klart glass
A18: =IF(Produksjonsbeskrivelse!C$190=Hoveddører!A$3,Hoveddører!C15,IF(Produksjonsbeskrivelse!C$199=Hoveddører!A$3,Hoveddører!C15,IF(Produksjonsbeskrivelse!C$190=Hoveddører!A$4,Hoveddører!F15,IF(Produksjonsbeskrivelse!C$199=Hoveddører!A$4,Hoveddører!F15,"")))) ->  | C18: ANDRÉ Innfrest dekor utv., enkel innfrest dekor innv., katedral gl., Basic U-verdi 0,96 | F18: Ives, pardør, klart glass | G18: SIDEFELT SWEDOOR:
A19: =IF(Produksjonsbeskrivelse!C$190=Hoveddører!A$3,Hoveddører!C16,IF(Produksjonsbeskrivelse!C$199=Hoveddører!A$3,Hoveddører!C16,IF(Produksjonsbeskrivelse!C$190=Hoveddører!A$4,Hoveddører!F16,IF(Produksjonsbeskrivelse!C$199=Hoveddører!A$4,Hoveddører!F16,"")))) ->  | C19: ATLAS med klart glass, Basic Uverdi 0,83 | F19: Monteverdi, klart glass | G19: Swedoor type SL0 m/Klart glass
A20: =IF(Produksjonsbeskrivelse!C$190=Hoveddører!A$3,Hoveddører!C17,IF(Produksjonsbeskrivelse!C$199=Hoveddører!A$3,Hoveddører!C17,IF(Produksjonsbeskrivelse!C$190=Hoveddører!A$4,Hoveddører!F17,IF(Produksjonsbeskrivelse!C$199=Hoveddører!A$4,Hoveddører!F17,"")))) ->  | C20: CONTINENTAL med klart glass, Basic U-verdi 0,94 | F20: Mozart, klart glass | G20: Swedoor type SL0 m/Cotswoldglass
A21: =IF(Produksjonsbeskrivelse!C$190=Hoveddører!A$3,Hoveddører!C18,IF(Produksjonsbeskrivelse!C$199=Hoveddører!A$3,Hoveddører!C18,IF(Produksjonsbeskrivelse!C$190=Hoveddører!A$4,Hoveddører!F18,IF(Produksjonsbeskrivelse!C$199=Hoveddører!A$4,Hoveddører!F18,"")))) ->  | C21: DIRDAL utenpåliggende dekor med katedral glass, Basic U-verdi 0,95 | D21: SIDEFELT GILJE: | F21: Puccini | G21: Swedoor type SL0 m/Maskin-antikk glass
A22: =IF(Produksjonsbeskrivelse!C$190=Hoveddører!A$3,Hoveddører!C19,IF(Produksjonsbeskrivelse!C$199=Hoveddører!A$3,Hoveddører!C19,IF(Produksjonsbeskrivelse!C$190=Hoveddører!A$4,Hoveddører!F19,IF(Produksjonsbeskrivelse!C$199=Hoveddører!A$4,Hoveddører!F19,"")))) ->  | C22: DIRDAL utenpåliggende dekor tett, Basic U-verdi 0,85 | D22: SIDEFELT STANDARD med klart glass | F22: Puccini, pardør | G22: Swedoor type SL0 m/Frostet glass
A23: =IF(Produksjonsbeskrivelse!C$190=Hoveddører!A$3,Hoveddører!C20,IF(Produksjonsbeskrivelse!C$199=Hoveddører!A$3,Hoveddører!C20,IF(Produksjonsbeskrivelse!C$190=Hoveddører!A$4,Hoveddører!F20,IF(Produksjonsbeskrivelse!C$199=Hoveddører!A$4,Hoveddører!F20,"")))) ->  | C23: DIRDAL PROFIL med katedral glass, Basic U-verdi 0,95 | D23: SIDEFELT STANDARD med Katedral glass | F23: Ravel | G23: Swedoor type SL1 m/Klart glass
A24: =IF(Produksjonsbeskrivelse!C$190=Hoveddører!A$3,Hoveddører!C21,IF(Produksjonsbeskrivelse!C$199=Hoveddører!A$3,Hoveddører!C21,IF(Produksjonsbeskrivelse!C$190=Hoveddører!A$4,Hoveddører!F21,IF(Produksjonsbeskrivelse!C$199=Hoveddører!A$4,Hoveddører!F21,"")))) ->  | C24: DIRDAL PROFIL tett, Basic U-verdi 0,86 | D24: SIDEFELT STANDARD med Cotswold glass | F24: Ravel, pardør | G24: Swedoor type SL1 m/Cotswoldglass
A25: =IF(Produksjonsbeskrivelse!C$190=Hoveddører!A$3,Hoveddører!C22,IF(Produksjonsbeskrivelse!C$199=Hoveddører!A$3,Hoveddører!C22,IF(Produksjonsbeskrivelse!C$190=Hoveddører!A$4,Hoveddører!F22,IF(Produksjonsbeskrivelse!C$199=Hoveddører!A$4,Hoveddører!F22,"")))) ->  | C25: DIONYSOS tett, Basic U-verdi 0,85 | D25: SIDEFELT M-90 med klart glass | F25: Rossini, cotswold glass | G25: Swedoor type SL1 m/Maskin-antikk glass
A26: =IF(Produksjonsbeskrivelse!C$190=Hoveddører!A$3,Hoveddører!C23,IF(Produksjonsbeskrivelse!C$199=Hoveddører!A$3,Hoveddører!C23,IF(Produksjonsbeskrivelse!C$190=Hoveddører!A$4,Hoveddører!F23,IF(Produksjonsbeskrivelse!C$199=Hoveddører!A$4,Hoveddører!F23,"")))) ->  | C26: DOLE utenpåliggende dekor, sotfarget antikkgl. med blyspross, Basic U-verdi 0,96 | D26: SIDEFELT M-90 med Katedral glass | F26: Satie, klart glass | G26: Swedoor type SL1 m/Frostet glass
A27: =IF(Produksjonsbeskrivelse!C$190=Hoveddører!A$3,Hoveddører!C24,IF(Produksjonsbeskrivelse!C$199=Hoveddører!A$3,Hoveddører!C24,IF(Produksjonsbeskrivelse!C$190=Hoveddører!A$4,Hoveddører!F24,IF(Produksjonsbeskrivelse!C$199=Hoveddører!A$4,Hoveddører!F24,"")))) ->  | C27: DORIS med kalrt glass, Basic U-verdi 1,17 | D27: SIDEFELT M-90 med Cotswold glass | F27: Satie, pardør, klart glass | G27: Swedoor type SL2 m/Klart glass
A28: =IF(Produksjonsbeskrivelse!C$190=Hoveddører!A$3,Hoveddører!C25,IF(Produksjonsbeskrivelse!C$199=Hoveddører!A$3,Hoveddører!C25,IF(Produksjonsbeskrivelse!C$190=Hoveddører!A$4,Hoveddører!F25,IF(Produksjonsbeskrivelse!C$199=Hoveddører!A$4,Hoveddører!F25,"")))) ->  | C28: EUGENIS innfrest dekor utv./innv. med katedral glass, Basic U-verdi 0,96 | D28: SIDEFELT M-01 med klart glass | F28: Scarlatti, klart glass | G28: Swedoor type SL2 m/Cotswoldglass
A29: =IF(Produksjonsbeskrivelse!C$190=Hoveddører!A$3,Hoveddører!C26,IF(Produksjonsbeskrivelse!C$199=Hoveddører!A$3,Hoveddører!C26,IF(Produksjonsbeskrivelse!C$190=Hoveddører!A$4,Hoveddører!F26,IF(Produksjonsbeskrivelse!C$199=Hoveddører!A$4,Hoveddører!F26,"")))) ->  | C29: FÆRDER med Katedral glass, Basic U-verdi 0,88 | D29: SIDEFELT M-01 med Katedral glass | F29: Schubert, klart glass | G29: Swedoor type SL2 m/Maskin-antikk glass
A30: =IF(Produksjonsbeskrivelse!C$190=Hoveddører!A$3,Hoveddører!C27,IF(Produksjonsbeskrivelse!C$199=Hoveddører!A$3,Hoveddører!C27,IF(Produksjonsbeskrivelse!C$190=Hoveddører!A$4,Hoveddører!F27,IF(Produksjonsbeskrivelse!C$199=Hoveddører!A$4,Hoveddører!F27,"")))) ->  | C30: FÆRDER tett, Basic U-verdi 0,83 | D30: SIDEFELT M-01 med Cotswold glass | F30: Schumann, klart glass | G30: Swedoor type SL2 m/Frostet glass
A31: =IF(Produksjonsbeskrivelse!C$190=Hoveddører!A$3,Hoveddører!C28,IF(Produksjonsbeskrivelse!C$199=Hoveddører!A$3,Hoveddører!C28,IF(Produksjonsbeskrivelse!C$190=Hoveddører!A$4,Hoveddører!F28,IF(Produksjonsbeskrivelse!C$199=Hoveddører!A$4,Hoveddører!F28,"")))) ->  | C31: GAIA med klart sikkerhetsglass to sider, Basic U-verdi 1,2 | D31: SIDEFELT M-1303 med sotfarget antikkglas og blysprosser | F31: Schumann, pardør, klart glass | G31: Swedoor type SL3 m/Klart glass
A32: =IF(Produksjonsbeskrivelse!C$190=Hoveddører!A$3,Hoveddører!C29,IF(Produksjonsbeskrivelse!C$199=Hoveddører!A$3,Hoveddører!C29,IF(Produksjonsbeskrivelse!C$190=Hoveddører!A$4,Hoveddører!F29,IF(Produksjonsbeskrivelse!C$199=Hoveddører!A$4,Hoveddører!F29,"")))) ->  | C32: HADES med klart glass, Basic U-verdi 0,91 | D32: SIDELFELT M-1301 med klart glass | F32: Smetana, klart glass | G32: Swedoor type SL3 m/Cotswoldglass
A33: =IF(Produksjonsbeskrivelse!C$190=Hoveddører!A$3,Hoveddører!C30,IF(Produksjonsbeskrivelse!C$199=Hoveddører!A$3,Hoveddører!C30,IF(Produksjonsbeskrivelse!C$190=Hoveddører!A$4,Hoveddører!F30,IF(Produksjonsbeskrivelse!C$199=Hoveddører!A$4,Hoveddører!F30,"")))) ->  | C33: HALDEN innfrest dekor utv. og innv., med katedral glass, Basic U-verdi 0,91 | D33: SIDELFELT M-1302 med klart glass | F33: Smetana, pardør, klart glass | G33: Swedoor type SL3 m/Maskin-antikk glass
A34: =IF(Produksjonsbeskrivelse!C$190=Hoveddører!A$3,Hoveddører!C31,IF(Produksjonsbeskrivelse!C$199=Hoveddører!A$3,Hoveddører!C31,IF(Produksjonsbeskrivelse!C$190=Hoveddører!A$4,Hoveddører!F31,IF(Produksjonsbeskrivelse!C$199=Hoveddører!A$4,Hoveddører!F31,"")))) ->  | C34: HEFAITOS med klart glass, Basic U-verdi 0,88 | D34: SIDELFELT THEMIS med klart glass | F34: Sousa | G34: Swedoor type SL3 m/Frostet glass
A35: =IF(Produksjonsbeskrivelse!C$190=Hoveddører!A$3,Hoveddører!C32,IF(Produksjonsbeskrivelse!C$199=Hoveddører!A$3,Hoveddører!C32,IF(Produksjonsbeskrivelse!C$190=Hoveddører!A$4,Hoveddører!F32,IF(Produksjonsbeskrivelse!C$199=Hoveddører!A$4,Hoveddører!F32,"")))) ->  | C35: HELENA med artic glass, Basic U-verdi 0,93 | F35: Sousa, pardør
A36: =IF(Produksjonsbeskrivelse!C$190=Hoveddører!A$3,Hoveddører!C33,IF(Produksjonsbeskrivelse!C$199=Hoveddører!A$3,Hoveddører!C33,IF(Produksjonsbeskrivelse!C$190=Hoveddører!A$4,Hoveddører!F33,IF(Produksjonsbeskrivelse!C$199=Hoveddører!A$4,Hoveddører!F33,"")))) ->  | C36: HELIOS med klart glass, Basic U-verdi 0,88 | F36: Wagner
A37: =IF(Produksjonsbeskrivelse!C$190=Hoveddører!A$3,Hoveddører!C34,IF(Produksjonsbeskrivelse!C$199=Hoveddører!A$3,Hoveddører!C34,IF(Produksjonsbeskrivelse!C$190=Hoveddører!A$4,Hoveddører!F34,IF(Produksjonsbeskrivelse!C$199=Hoveddører!A$4,Hoveddører!F34,"")))) ->  | C37: HELLE fire hengsler - klart glass, Basic U-verdi 0,86
A38: =IF(Produksjonsbeskrivelse!C$190=Hoveddører!A$3,Hoveddører!C35,IF(Produksjonsbeskrivelse!C$199=Hoveddører!A$3,Hoveddører!C35,IF(Produksjonsbeskrivelse!C$190=Hoveddører!A$4,Hoveddører!F35,IF(Produksjonsbeskrivelse!C$199=Hoveddører!A$4,Hoveddører!F35,"")))) ->  | C38: HERAKLES med klart glass, Basic U-verdi 0,96 | F38: SWEDOOR FUNCTION
A39: =IF(Produksjonsbeskrivelse!C$190=Hoveddører!A$3,Hoveddører!C36,IF(Produksjonsbeskrivelse!C$199=Hoveddører!A$3,Hoveddører!C36,IF(Produksjonsbeskrivelse!C$190=Hoveddører!A$4,Hoveddører!F36,IF(Produksjonsbeskrivelse!C$199=Hoveddører!A$4,Hoveddører!F36,"")))) ->  | C39: HERMES med klart glass, Basic U-verdi 1,2 | F39: Aden, klart glass
A40: =IF(Produksjonsbeskrivelse!C$190=Hoveddører!A$3,Hoveddører!C37,IF(Produksjonsbeskrivelse!C$199=Hoveddører!A$3,Hoveddører!C37,IF(Produksjonsbeskrivelse!C$190=Hoveddører!A$4,Hoveddører!F37,IF(Produksjonsbeskrivelse!C$199=Hoveddører!A$4,Hoveddører!F37,"")))) ->  | C40: HESTIA med sotfarget antikkglass og blysprosser, Basic U-verdi 1,23 | F40: Aden, pardør
A41: =IF(Produksjonsbeskrivelse!C$190=Hoveddører!A$3,Hoveddører!C38,IF(Produksjonsbeskrivelse!C$199=Hoveddører!A$3,Hoveddører!C38,IF(Produksjonsbeskrivelse!C$190=Hoveddører!A$4,Hoveddører!F38,IF(Produksjonsbeskrivelse!C$199=Hoveddører!A$4,Hoveddører!F38,"")))) ->  | C41: HOVDEN tett, Basic U-verdi 0,85 | F41: Amazon, klart glass
A42: =IF(Produksjonsbeskrivelse!C$190=Hoveddører!A$3,Hoveddører!C39,IF(Produksjonsbeskrivelse!C$199=Hoveddører!A$3,Hoveddører!C39,IF(Produksjonsbeskrivelse!C$190=Hoveddører!A$4,Hoveddører!F39,IF(Produksjonsbeskrivelse!C$199=Hoveddører!A$4,Hoveddører!F39,"")))) ->  | C42: KASSANDRA med klart nyantikk glass og blysprosser, Basic U-verdi 0,94 | F42: Aral, klart glass
A43: =IF(Produksjonsbeskrivelse!C$190=Hoveddører!A$3,Hoveddører!C40,IF(Produksjonsbeskrivelse!C$199=Hoveddører!A$3,Hoveddører!C40,IF(Produksjonsbeskrivelse!C$190=Hoveddører!A$4,Hoveddører!F40,IF(Produksjonsbeskrivelse!C$199=Hoveddører!A$4,Hoveddører!F40,"")))) ->  | C43: KRISTIAN med katedral glass, Basic U-verdi 0,96 | F43: Baltic, klart glass
A44: =IF(Produksjonsbeskrivelse!C$190=Hoveddører!A$3,Hoveddører!C41,IF(Produksjonsbeskrivelse!C$199=Hoveddører!A$3,Hoveddører!C41,IF(Produksjonsbeskrivelse!C$190=Hoveddører!A$4,Hoveddører!F41,IF(Produksjonsbeskrivelse!C$199=Hoveddører!A$4,Hoveddører!F41,"")))) ->  | C44: LINDA med flerfarget fusingglass, Basic U-verdi 0,91 | F44: Barentz
A45: =IF(Produksjonsbeskrivelse!C$190=Hoveddører!A$3,Hoveddører!C42,IF(Produksjonsbeskrivelse!C$199=Hoveddører!A$3,Hoveddører!C42,IF(Produksjonsbeskrivelse!C$190=Hoveddører!A$4,Hoveddører!F42,IF(Produksjonsbeskrivelse!C$199=Hoveddører!A$4,Hoveddører!F42,"")))) ->  | C45: LISTA med klart glass, Basic U-verdi 0,93 | F45: Bengal, klart glass
A46: =IF(Produksjonsbeskrivelse!C$190=Hoveddører!A$3,Hoveddører!C43,IF(Produksjonsbeskrivelse!C$199=Hoveddører!A$3,Hoveddører!C43,IF(Produksjonsbeskrivelse!C$190=Hoveddører!A$4,Hoveddører!F43,IF(Produksjonsbeskrivelse!C$199=Hoveddører!A$4,Hoveddører!F43,"")))) ->  | C46: LUND med katedral glass, Basic U-verdi 1,0 | F46: Bering
A47: =IF(Produksjonsbeskrivelse!C$190=Hoveddører!A$3,Hoveddører!C44,IF(Produksjonsbeskrivelse!C$199=Hoveddører!A$3,Hoveddører!C44,IF(Produksjonsbeskrivelse!C$190=Hoveddører!A$4,Hoveddører!F44,IF(Produksjonsbeskrivelse!C$199=Hoveddører!A$4,Hoveddører!F44,"")))) ->  | C47: LUND tett, Basic U-verdi 0,83 | F47: Bering, pardør
A48: =IF(Produksjonsbeskrivelse!C$190=Hoveddører!A$3,Hoveddører!C45,IF(Produksjonsbeskrivelse!C$199=Hoveddører!A$3,Hoveddører!C45,IF(Produksjonsbeskrivelse!C$190=Hoveddører!A$4,Hoveddører!F45,IF(Produksjonsbeskrivelse!C$199=Hoveddører!A$4,Hoveddører!F45,"")))) ->  | C48: MARTHA med flerfarget antikkglass og blysprosser, Basic U-verdi 0,96 | F48: Carribbean, klart glass med malte glasslister
A49: =IF(Produksjonsbeskrivelse!C$190=Hoveddører!A$3,Hoveddører!C46,IF(Produksjonsbeskrivelse!C$199=Hoveddører!A$3,Hoveddører!C46,IF(Produksjonsbeskrivelse!C$190=Hoveddører!A$4,Hoveddører!F46,IF(Produksjonsbeskrivelse!C$199=Hoveddører!A$4,Hoveddører!F46,"")))) ->  | C49: MAUD innfrest dekor ut-/innv., sotfarget antikkgl.og blysprosser, Basic U-verdi 1,0 | F49: Carribbean, pardør, klart glass med malte glasslister
A50: =IF(Produksjonsbeskrivelse!C$190=Hoveddører!A$3,Hoveddører!C47,IF(Produksjonsbeskrivelse!C$199=Hoveddører!A$3,Hoveddører!C47,IF(Produksjonsbeskrivelse!C$190=Hoveddører!A$4,Hoveddører!F47,IF(Produksjonsbeskrivelse!C$199=Hoveddører!A$4,Hoveddører!F47,"")))) ->  | C50: OLE utenpåliggende dekor, sotfarget antikkgl. og blysprosser, Basic U-verdi 0,96 | F50: Carribbean, klart glass med eik glasslister
A51: =IF(Produksjonsbeskrivelse!C$190=Hoveddører!A$3,Hoveddører!C48,IF(Produksjonsbeskrivelse!C$199=Hoveddører!A$3,Hoveddører!C48,IF(Produksjonsbeskrivelse!C$190=Hoveddører!A$4,Hoveddører!F48,IF(Produksjonsbeskrivelse!C$199=Hoveddører!A$4,Hoveddører!F48,"")))) ->  | C51: ORION med sotet nyantikk glass, Basic U-verdi 0,89 | F51: Carribbean, pardør, klart glass med eik glasslister
A52: =IF(Produksjonsbeskrivelse!C$190=Hoveddører!A$3,Hoveddører!C49,IF(Produksjonsbeskrivelse!C$199=Hoveddører!A$3,Hoveddører!C49,IF(Produksjonsbeskrivelse!C$190=Hoveddører!A$4,Hoveddører!F49,IF(Produksjonsbeskrivelse!C$199=Hoveddører!A$4,Hoveddører!F49,"")))) ->  | C52: PHOEBE med klart glass, Basic U-verdi 0,97 | F52: Caspian, klart glass
A53: =IF(Produksjonsbeskrivelse!C$190=Hoveddører!A$3,Hoveddører!C50,IF(Produksjonsbeskrivelse!C$199=Hoveddører!A$3,Hoveddører!C50,IF(Produksjonsbeskrivelse!C$190=Hoveddører!A$4,Hoveddører!F50,IF(Produksjonsbeskrivelse!C$199=Hoveddører!A$4,Hoveddører!F50,"")))) ->  | C53: RICHARD med klart glass, Basic U-verdi 1,0 | F53: Caspian, klart glass med sprosser
A54: =IF(Produksjonsbeskrivelse!C$190=Hoveddører!A$3,Hoveddører!C51,IF(Produksjonsbeskrivelse!C$199=Hoveddører!A$3,Hoveddører!C51,IF(Produksjonsbeskrivelse!C$190=Hoveddører!A$4,Hoveddører!F51,IF(Produksjonsbeskrivelse!C$199=Hoveddører!A$4,Hoveddører!F51,"")))) ->  | C54: RØROS med katedral glass, Basic U-verdi 0,88 | F54: Como, klart glass | G54: DØRVRIDER:
A55: =IF(Produksjonsbeskrivelse!C$190=Hoveddører!A$3,Hoveddører!C52,IF(Produksjonsbeskrivelse!C$199=Hoveddører!A$3,Hoveddører!C52,IF(Produksjonsbeskrivelse!C$190=Hoveddører!A$4,Hoveddører!F52,IF(Produksjonsbeskrivelse!C$199=Hoveddører!A$4,Hoveddører!F52,"")))) ->  | C55: RØROS tett, Basic U-verdi 0,85 | F55: Como, klart glass med sprosser | G55: Hoppe 1140-42, aluminium (standard)
A56: =IF(Produksjonsbeskrivelse!C$190=Hoveddører!A$3,Hoveddører!C53,IF(Produksjonsbeskrivelse!C$199=Hoveddører!A$3,Hoveddører!C53,IF(Produksjonsbeskrivelse!C$190=Hoveddører!A$4,Hoveddører!F53,IF(Produksjonsbeskrivelse!C$199=Hoveddører!A$4,Hoveddører!F53,"")))) ->  | C56: SAILOR med klart glass, Basic U-verdi 0,93 | F56: Congo, klart glass | G56: Leveres ikke
A57: =IF(Produksjonsbeskrivelse!C$190=Hoveddører!A$3,Hoveddører!C54,IF(Produksjonsbeskrivelse!C$199=Hoveddører!A$3,Hoveddører!C54,IF(Produksjonsbeskrivelse!C$190=Hoveddører!A$4,Hoveddører!F54,IF(Produksjonsbeskrivelse!C$199=Hoveddører!A$4,Hoveddører!F54,"")))) ->  | C57: SIRDAL utenpåliggende dekor med katedral glass, Basic U-verdi 0,95 | F57: Coral, klart glass med glasslist i aluminium
A58: =IF(Produksjonsbeskrivelse!C$190=Hoveddører!A$3,Hoveddører!C55,IF(Produksjonsbeskrivelse!C$199=Hoveddører!A$3,Hoveddører!C55,IF(Produksjonsbeskrivelse!C$190=Hoveddører!A$4,Hoveddører!F55,IF(Produksjonsbeskrivelse!C$199=Hoveddører!A$4,Hoveddører!F55,"")))) ->  | C58: SIRDAL utenpåliggende dekor tett, Basic U-verdi 0,83 | F58: Donau, klart glass med glasslist i aluminium
A59: =IF(Produksjonsbeskrivelse!C$190=Hoveddører!A$3,Hoveddører!C56,IF(Produksjonsbeskrivelse!C$199=Hoveddører!A$3,Hoveddører!C56,IF(Produksjonsbeskrivelse!C$190=Hoveddører!A$4,Hoveddører!F56,IF(Produksjonsbeskrivelse!C$199=Hoveddører!A$4,Hoveddører!F56,"")))) ->  | C59: SIRDAL PROFIL med katedral glass, Basic U-verdi 0,95 | F59: Donau, pardør, klart glass med glasslist i aluminium
A60: =IF(Produksjonsbeskrivelse!C$190=Hoveddører!A$3,Hoveddører!C57,IF(Produksjonsbeskrivelse!C$199=Hoveddører!A$3,Hoveddører!C57,IF(Produksjonsbeskrivelse!C$190=Hoveddører!A$4,Hoveddører!F57,IF(Produksjonsbeskrivelse!C$199=Hoveddører!A$4,Hoveddører!F57,"")))) ->  | C60: SIRDAL PROFIL tett, Basic U-verdi 0,83 | F60: Elbe, klart glass
A61: =IF(Produksjonsbeskrivelse!C$190=Hoveddører!A$3,Hoveddører!C58,IF(Produksjonsbeskrivelse!C$199=Hoveddører!A$3,Hoveddører!C58,IF(Produksjonsbeskrivelse!C$190=Hoveddører!A$4,Hoveddører!F58,IF(Produksjonsbeskrivelse!C$199=Hoveddører!A$4,Hoveddører!F58,"")))) ->  | C61: SOLVEIG med katedral glass, Basic U-verdi 0,83 | F61: Erie, klart glass
A62: =IF(Produksjonsbeskrivelse!C$190=Hoveddører!A$3,Hoveddører!C59,IF(Produksjonsbeskrivelse!C$199=Hoveddører!A$3,Hoveddører!C59,IF(Produksjonsbeskrivelse!C$190=Hoveddører!A$4,Hoveddører!F59,IF(Produksjonsbeskrivelse!C$199=Hoveddører!A$4,Hoveddører!F59,"")))) ->  | C62: SOLVEIG tett, Basic U-verdi 0,83 | F62: Erie, pardør, klart glass
A63: =IF(Produksjonsbeskrivelse!C$190=Hoveddører!A$3,Hoveddører!C60,IF(Produksjonsbeskrivelse!C$199=Hoveddører!A$3,Hoveddører!C60,IF(Produksjonsbeskrivelse!C$190=Hoveddører!A$4,Hoveddører!F60,IF(Produksjonsbeskrivelse!C$199=Hoveddører!A$4,Hoveddører!F60,"")))) ->  | C63: STANDARD tett, Basic U-verdi 0,83 | F63: Ganges
A64: =IF(Produksjonsbeskrivelse!C$190=Hoveddører!A$3,Hoveddører!C61,IF(Produksjonsbeskrivelse!C$199=Hoveddører!A$3,Hoveddører!C61,IF(Produksjonsbeskrivelse!C$190=Hoveddører!A$4,Hoveddører!F61,IF(Produksjonsbeskrivelse!C$199=Hoveddører!A$4,Hoveddører!F61,"")))) ->  | C64: THEMIS 3 med klart glass, Basic U-verdi 1,11 | F64: Hudson, klart glass Ø=344 mm med 40 mm ring
A65: =IF(Produksjonsbeskrivelse!C$190=Hoveddører!A$3,Hoveddører!C62,IF(Produksjonsbeskrivelse!C$199=Hoveddører!A$3,Hoveddører!C62,IF(Produksjonsbeskrivelse!C$190=Hoveddører!A$4,Hoveddører!F62,IF(Produksjonsbeskrivelse!C$199=Hoveddører!A$4,Hoveddører!F62,"")))) ->  | C65: URANUS med sotfarget antikkglass med blysprosser, Basic U-verdi 1,1 | F65: Indus, klart glass Ø=312 mm med malt glasslister
A66: =IF(Produksjonsbeskrivelse!C$190=Hoveddører!A$3,Hoveddører!C63,IF(Produksjonsbeskrivelse!C$199=Hoveddører!A$3,Hoveddører!C63,IF(Produksjonsbeskrivelse!C$190=Hoveddører!A$4,Hoveddører!F63,IF(Produksjonsbeskrivelse!C$199=Hoveddører!A$4,Hoveddører!F63,"")))) ->  | C66: ZEUS med klart glass, Basic U-verdi 0,93 | F66: Indus, pardør, klart glass Ø=312 mm med malt glasslister
A67: =IF(Produksjonsbeskrivelse!C$190=Hoveddører!A$3,Hoveddører!C64,IF(Produksjonsbeskrivelse!C$199=Hoveddører!A$3,Hoveddører!C64,IF(Produksjonsbeskrivelse!C$190=Hoveddører!A$4,Hoveddører!F64,IF(Produksjonsbeskrivelse!C$199=Hoveddører!A$4,Hoveddører!F64,"")))) ->  | C67: B30 BRANN tett - sertifisert dør, Basic U-verdi 1,0 | F67: Indus, klart glass Ø=312 mm med eik glasslister
A68: =IF(Produksjonsbeskrivelse!C$190=Hoveddører!A$3,Hoveddører!C65,IF(Produksjonsbeskrivelse!C$199=Hoveddører!A$3,Hoveddører!C65,IF(Produksjonsbeskrivelse!C$190=Hoveddører!A$4,Hoveddører!F65,IF(Produksjonsbeskrivelse!C$199=Hoveddører!A$4,Hoveddører!F65,"")))) ->  | C68: B30 / 38 dB BRANN/LYD tett - sertifisert dør, Basic U-verdi 1,0 | F68: Indus, pardør, klart glass Ø=312 mm med eik glasslister
A69: =IF(Produksjonsbeskrivelse!C$190=Hoveddører!A$3,Hoveddører!C66,IF(Produksjonsbeskrivelse!C$199=Hoveddører!A$3,Hoveddører!C66,IF(Produksjonsbeskrivelse!C$190=Hoveddører!A$4,Hoveddører!F66,IF(Produksjonsbeskrivelse!C$199=Hoveddører!A$4,Hoveddører!F66,"")))) ->  | F69: Michigan, klar glass
A70: =IF(Produksjonsbeskrivelse!C$190=Hoveddører!A$3,Hoveddører!C67,IF(Produksjonsbeskrivelse!C$199=Hoveddører!A$3,Hoveddører!C67,IF(Produksjonsbeskrivelse!C$190=Hoveddører!A$4,Hoveddører!F67,IF(Produksjonsbeskrivelse!C$199=Hoveddører!A$4,Hoveddører!F67,"")))) ->  | C70: eXtra-dører: | F70: Michigan, pardør, klart glass
A71: =IF(Produksjonsbeskrivelse!C$190=Hoveddører!A$3,Hoveddører!C68,IF(Produksjonsbeskrivelse!C$199=Hoveddører!A$3,Hoveddører!C68,IF(Produksjonsbeskrivelse!C$190=Hoveddører!A$4,Hoveddører!F68,IF(Produksjonsbeskrivelse!C$199=Hoveddører!A$4,Hoveddører!F68,"")))) ->  | C71: AFRODITE med klar glass, eXtra U-verdi 0,66 | F71: Niger, klart glass med sprosser begge sider
A72: =IF(Produksjonsbeskrivelse!C$190=Hoveddører!A$3,Hoveddører!C69,IF(Produksjonsbeskrivelse!C$199=Hoveddører!A$3,Hoveddører!C69,IF(Produksjonsbeskrivelse!C$190=Hoveddører!A$4,Hoveddører!F69,IF(Produksjonsbeskrivelse!C$199=Hoveddører!A$4,Hoveddører!F69,"")))) ->  | C72: AKERSHUS utenpåliggende dekor med katedral glass, eXtra U-verdi 0,69 | F72: Nile, klart glass med malt glasslister
A73: =IF(Produksjonsbeskrivelse!C$190=Hoveddører!A$3,Hoveddører!C70,IF(Produksjonsbeskrivelse!C$199=Hoveddører!A$3,Hoveddører!C70,IF(Produksjonsbeskrivelse!C$190=Hoveddører!A$4,Hoveddører!F70,IF(Produksjonsbeskrivelse!C$199=Hoveddører!A$4,Hoveddører!F70,"")))) ->  | C73: AKERSHUS utenpåliggende dekor tett, eXtra U-verdi 0,58 | F73: Nile, pardør, klart glass med malt glasslister
A74: =IF(Produksjonsbeskrivelse!C$190=Hoveddører!A$3,Hoveddører!C71,IF(Produksjonsbeskrivelse!C$199=Hoveddører!A$3,Hoveddører!C71,IF(Produksjonsbeskrivelse!C$190=Hoveddører!A$4,Hoveddører!F71,IF(Produksjonsbeskrivelse!C$199=Hoveddører!A$4,Hoveddører!F71,"")))) ->  | C74: AKERSHUS PROFIL med katedral glass, eXtra U-verdi 0,68 | F74: Nile, klart glass med eik glasslister
A75: =IF(Produksjonsbeskrivelse!C$190=Hoveddører!A$3,Hoveddører!C72,IF(Produksjonsbeskrivelse!C$199=Hoveddører!A$3,Hoveddører!C72,IF(Produksjonsbeskrivelse!C$190=Hoveddører!A$4,Hoveddører!F72,IF(Produksjonsbeskrivelse!C$199=Hoveddører!A$4,Hoveddører!F72,"")))) ->  | C75: ANDRÉ Innfrest dekor utv., enkel innfrest dekor innv., katedral gl., eXtra U-verdi 0,66 | F75: Nile, pardør, klart glass med eik glasslister
A76: =IF(Produksjonsbeskrivelse!C$190=Hoveddører!A$3,Hoveddører!C73,IF(Produksjonsbeskrivelse!C$199=Hoveddører!A$3,Hoveddører!C73,IF(Produksjonsbeskrivelse!C$190=Hoveddører!A$4,Hoveddører!F73,IF(Produksjonsbeskrivelse!C$199=Hoveddører!A$4,Hoveddører!F73,"")))) ->  | C76: ATLAS med klart glass, eXtra Uverdi 0,59 | F76: Pacific, klart glass
A77: =IF(Produksjonsbeskrivelse!C$190=Hoveddører!A$3,Hoveddører!C74,IF(Produksjonsbeskrivelse!C$199=Hoveddører!A$3,Hoveddører!C74,IF(Produksjonsbeskrivelse!C$190=Hoveddører!A$4,Hoveddører!F74,IF(Produksjonsbeskrivelse!C$199=Hoveddører!A$4,Hoveddører!F74,"")))) ->  | C77: CONTINENTAL med klart glass, eXtra U-verdi 0,65 | F77: Suez, klart glass
A78: =IF(Produksjonsbeskrivelse!C$190=Hoveddører!A$3,Hoveddører!C75,IF(Produksjonsbeskrivelse!C$199=Hoveddører!A$3,Hoveddører!C75,IF(Produksjonsbeskrivelse!C$190=Hoveddører!A$4,Hoveddører!F75,IF(Produksjonsbeskrivelse!C$199=Hoveddører!A$4,Hoveddører!F75,"")))) ->  | C78: DIRDAL utenpåliggende dekor med katedral glass, eXtra U-verdi 0,67 | F78: Tahoe, klart glass med malt glasslister
A79: =IF(Produksjonsbeskrivelse!C$190=Hoveddører!A$3,Hoveddører!C76,IF(Produksjonsbeskrivelse!C$199=Hoveddører!A$3,Hoveddører!C76,IF(Produksjonsbeskrivelse!C$190=Hoveddører!A$4,Hoveddører!F76,IF(Produksjonsbeskrivelse!C$199=Hoveddører!A$4,Hoveddører!F76,"")))) ->  | C79: DIRDAL utenpåliggende dekor tett, eXtra U-verdi 0,58 | F79: Tahoe, pardør, klart glass med malt glasslister
A80: =IF(Produksjonsbeskrivelse!C$190=Hoveddører!A$3,Hoveddører!C77,IF(Produksjonsbeskrivelse!C$199=Hoveddører!A$3,Hoveddører!C77,IF(Produksjonsbeskrivelse!C$190=Hoveddører!A$4,Hoveddører!F77,IF(Produksjonsbeskrivelse!C$199=Hoveddører!A$4,Hoveddører!F77,"")))) ->  | C80: DIRDAL PROFIL med katedral glass, eXtra U-verdi 0,68 | F80: Tahoe, klart glass med eik glasslister
A81: =IF(Produksjonsbeskrivelse!C$190=Hoveddører!A$3,Hoveddører!C78,IF(Produksjonsbeskrivelse!C$199=Hoveddører!A$3,Hoveddører!C78,IF(Produksjonsbeskrivelse!C$190=Hoveddører!A$4,Hoveddører!F78,IF(Produksjonsbeskrivelse!C$199=Hoveddører!A$4,Hoveddører!F78,"")))) ->  | C81: DIRDAL PROFIL tett, eXtra U-verdi 0,58 | F81: Tahoe, pardør, klart glass med eik glasslister
A82: =IF(Produksjonsbeskrivelse!C$190=Hoveddører!A$3,Hoveddører!C79,IF(Produksjonsbeskrivelse!C$199=Hoveddører!A$3,Hoveddører!C79,IF(Produksjonsbeskrivelse!C$190=Hoveddører!A$4,Hoveddører!F79,IF(Produksjonsbeskrivelse!C$199=Hoveddører!A$4,Hoveddører!F79,"")))) ->  | C82: DIONYSOS tett, eXtra U-verdi 0,58 | F82: Volga, klart glass
A83: =IF(Produksjonsbeskrivelse!C$190=Hoveddører!A$3,Hoveddører!C80,IF(Produksjonsbeskrivelse!C$199=Hoveddører!A$3,Hoveddører!C80,IF(Produksjonsbeskrivelse!C$190=Hoveddører!A$4,Hoveddører!F80,IF(Produksjonsbeskrivelse!C$199=Hoveddører!A$4,Hoveddører!F80,"")))) ->  | C83: DOLE utenpåliggende dekor, sotfarget antikkgl. med blyspross, eXtra U-verdi 0,68 | F83: Vȁnern, klart glass
A84: =IF(Produksjonsbeskrivelse!C$190=Hoveddører!A$3,Hoveddører!C81,IF(Produksjonsbeskrivelse!C$199=Hoveddører!A$3,Hoveddører!C81,IF(Produksjonsbeskrivelse!C$190=Hoveddører!A$4,Hoveddører!F81,IF(Produksjonsbeskrivelse!C$199=Hoveddører!A$4,Hoveddører!F81,"")))) ->  | C84: DORIS med kalrt glass, eXtra U-verdi 0,82 | F84: Vȁnern, klart glass med sprosser
A85: =IF(Produksjonsbeskrivelse!C$190=Hoveddører!A$3,Hoveddører!C82,IF(Produksjonsbeskrivelse!C$199=Hoveddører!A$3,Hoveddører!C82,IF(Produksjonsbeskrivelse!C$190=Hoveddører!A$4,Hoveddører!F82,IF(Produksjonsbeskrivelse!C$199=Hoveddører!A$4,Hoveddører!F82,"")))) ->  | C85: EUGENIS innfrest dekor utv./innv. med katedral glass, eXtra U-verdi 0,66
A86: =IF(Produksjonsbeskrivelse!C$190=Hoveddører!A$3,Hoveddører!C83,IF(Produksjonsbeskrivelse!C$199=Hoveddører!A$3,Hoveddører!C83,IF(Produksjonsbeskrivelse!C$190=Hoveddører!A$4,Hoveddører!F83,IF(Produksjonsbeskrivelse!C$199=Hoveddører!A$4,Hoveddører!F83,"")))) ->  | C86: FÆRDER med Katedral glass, eXtra U-verdi 0,63 | F86: SWEDOOR CHARACTER
A87: =IF(Produksjonsbeskrivelse!C$190=Hoveddører!A$3,Hoveddører!C84,IF(Produksjonsbeskrivelse!C$199=Hoveddører!A$3,Hoveddører!C84,IF(Produksjonsbeskrivelse!C$190=Hoveddører!A$4,Hoveddører!F84,IF(Produksjonsbeskrivelse!C$199=Hoveddører!A$4,Hoveddører!F84,"")))) ->  | C87: FÆRDER tett, eXtra U-verdi 0,58 | F87: Beat, klart glass
A88: =IF(Produksjonsbeskrivelse!C$190=Hoveddører!A$3,Hoveddører!C85,IF(Produksjonsbeskrivelse!C$199=Hoveddører!A$3,Hoveddører!C85,IF(Produksjonsbeskrivelse!C$190=Hoveddører!A$4,Hoveddører!F85,IF(Produksjonsbeskrivelse!C$199=Hoveddører!A$4,Hoveddører!F85,"")))) ->  | C88: GAIA med klart sikkerhetsglass to sider, eXtra U-verdi 0,79 | F88: Beat, pardør, klart glass
A89: =IF(Produksjonsbeskrivelse!C$190=Hoveddører!A$3,Hoveddører!C86,IF(Produksjonsbeskrivelse!C$199=Hoveddører!A$3,Hoveddører!C86,IF(Produksjonsbeskrivelse!C$190=Hoveddører!A$4,Hoveddører!F86,IF(Produksjonsbeskrivelse!C$199=Hoveddører!A$4,Hoveddører!F86,"")))) ->  | C89: HADES med klart glass, eXtra U-verdi 0,69 | F89: Canvas
A90: =IF(Produksjonsbeskrivelse!C$190=Hoveddører!A$3,Hoveddører!C87,IF(Produksjonsbeskrivelse!C$199=Hoveddører!A$3,Hoveddører!C87,IF(Produksjonsbeskrivelse!C$190=Hoveddører!A$4,Hoveddører!F87,IF(Produksjonsbeskrivelse!C$199=Hoveddører!A$4,Hoveddører!F87,"")))) ->  | C90: HALDEN innfrest dekor utv. og innv., med katedral glass, eXtra U-verdi 0,65 | F90: Canvas, pardør
A91: =IF(Produksjonsbeskrivelse!C$190=Hoveddører!A$3,Hoveddører!C88,IF(Produksjonsbeskrivelse!C$199=Hoveddører!A$3,Hoveddører!C88,IF(Produksjonsbeskrivelse!C$190=Hoveddører!A$4,Hoveddører!F88,IF(Produksjonsbeskrivelse!C$199=Hoveddører!A$4,Hoveddører!F88,"")))) ->  | C91: HEFAITOS med klart glass, eXtra U-verdi 0,60 | F91: Cifro, klart glass
A92: =IF(Produksjonsbeskrivelse!C$190=Hoveddører!A$3,Hoveddører!C89,IF(Produksjonsbeskrivelse!C$199=Hoveddører!A$3,Hoveddører!C89,IF(Produksjonsbeskrivelse!C$190=Hoveddører!A$4,Hoveddører!F89,IF(Produksjonsbeskrivelse!C$199=Hoveddører!A$4,Hoveddører!F89,"")))) ->  | C92: HELENA med artic glass, eXtra U-verdi 0,67 | F92: Cifro, pardør, klart glass
A93: =IF(Produksjonsbeskrivelse!C$190=Hoveddører!A$3,Hoveddører!C90,IF(Produksjonsbeskrivelse!C$199=Hoveddører!A$3,Hoveddører!C90,IF(Produksjonsbeskrivelse!C$190=Hoveddører!A$4,Hoveddører!F90,IF(Produksjonsbeskrivelse!C$199=Hoveddører!A$4,Hoveddører!F90,"")))) ->  | C93: HELIOS med klart glass, eXtra U-verdi 0,63 | F93: Cosmos, klart glass
A94: =IF(Produksjonsbeskrivelse!C$190=Hoveddører!A$3,Hoveddører!C91,IF(Produksjonsbeskrivelse!C$199=Hoveddører!A$3,Hoveddører!C91,IF(Produksjonsbeskrivelse!C$190=Hoveddører!A$4,Hoveddører!F91,IF(Produksjonsbeskrivelse!C$199=Hoveddører!A$4,Hoveddører!F91,"")))) ->  | C94: HELLE fire hengsler - klart glass, eXtra U-verdi 0,61 | F94: Cosmos, pardør, klart glass
A95: =IF(Produksjonsbeskrivelse!C$190=Hoveddører!A$3,Hoveddører!C92,IF(Produksjonsbeskrivelse!C$199=Hoveddører!A$3,Hoveddører!C92,IF(Produksjonsbeskrivelse!C$190=Hoveddører!A$4,Hoveddører!F92,IF(Produksjonsbeskrivelse!C$199=Hoveddører!A$4,Hoveddører!F92,"")))) ->  | C95: HERAKLES med klart glass, eXtra U-verdi 0,67 | F95: Digits, klart glass, med 3 tegn (0-999 og A-H)
A96: =IF(Produksjonsbeskrivelse!C$190=Hoveddører!A$3,Hoveddører!C93,IF(Produksjonsbeskrivelse!C$199=Hoveddører!A$3,Hoveddører!C93,IF(Produksjonsbeskrivelse!C$190=Hoveddører!A$4,Hoveddører!F93,IF(Produksjonsbeskrivelse!C$199=Hoveddører!A$4,Hoveddører!F93,"")))) ->  | C96: HERMES med klart glass, eXtra U-verdi 0,79 | F96: Digits, pardør, klart glass, med 3 tegn (0-999 og A-H)
A97: =IF(Produksjonsbeskrivelse!C$190=Hoveddører!A$3,Hoveddører!C94,IF(Produksjonsbeskrivelse!C$199=Hoveddører!A$3,Hoveddører!C94,IF(Produksjonsbeskrivelse!C$190=Hoveddører!A$4,Hoveddører!F94,IF(Produksjonsbeskrivelse!C$199=Hoveddører!A$4,Hoveddører!F94,"")))) ->  | C97: HESTIA med sotfarget antikkglass og blysprosser, eXtra U-verdi 0,77 | F97: Numerus, med 3 tegn (0-999 og A-H)
A98: =IF(Produksjonsbeskrivelse!C$190=Hoveddører!A$3,Hoveddører!C95,IF(Produksjonsbeskrivelse!C$199=Hoveddører!A$3,Hoveddører!C95,IF(Produksjonsbeskrivelse!C$190=Hoveddører!A$4,Hoveddører!F95,IF(Produksjonsbeskrivelse!C$199=Hoveddører!A$4,Hoveddører!F95,"")))) ->  | C98: HOVDEN tett, eXtra U-verdi 0,58 | F98: Numerus, pardør, med 3 tegn (0-999 og A-H)
A99: =IF(Produksjonsbeskrivelse!C$190=Hoveddører!A$3,Hoveddører!C96,IF(Produksjonsbeskrivelse!C$199=Hoveddører!A$3,Hoveddører!C96,IF(Produksjonsbeskrivelse!C$190=Hoveddører!A$4,Hoveddører!F96,IF(Produksjonsbeskrivelse!C$199=Hoveddører!A$4,Hoveddører!F96,"")))) ->  | C99: KASSANDRA med klart nyantikk glass og blysprosser, eXtra U-verdi 0,67 | F99: Domino, klart glass
A100: =IF(Produksjonsbeskrivelse!C$190=Hoveddører!A$3,Hoveddører!C97,IF(Produksjonsbeskrivelse!C$199=Hoveddører!A$3,Hoveddører!C97,IF(Produksjonsbeskrivelse!C$190=Hoveddører!A$4,Hoveddører!F97,IF(Produksjonsbeskrivelse!C$199=Hoveddører!A$4,Hoveddører!F97,"")))) ->  | C100: KRISTIAN med katedral glass, eXtra U-verdi 0,68 | F100: Domino, pardør, klart glass
A101: =IF(Produksjonsbeskrivelse!C$190=Hoveddører!A$3,Hoveddører!C98,IF(Produksjonsbeskrivelse!C$199=Hoveddører!A$3,Hoveddører!C98,IF(Produksjonsbeskrivelse!C$190=Hoveddører!A$4,Hoveddører!F98,IF(Produksjonsbeskrivelse!C$199=Hoveddører!A$4,Hoveddører!F98,"")))) ->  | C101: LINDA med flerfarget fusingglass, eXtra U-verdi 0,60 | F101: Dots, klart glass
A102: =IF(Produksjonsbeskrivelse!C$190=Hoveddører!A$3,Hoveddører!C99,IF(Produksjonsbeskrivelse!C$199=Hoveddører!A$3,Hoveddører!C99,IF(Produksjonsbeskrivelse!C$190=Hoveddører!A$4,Hoveddører!F99,IF(Produksjonsbeskrivelse!C$199=Hoveddører!A$4,Hoveddører!F99,"")))) ->  | C102: LISTA med klart glass, eXtra U-verdi 0,64 | F102: Dots, pardør, klart glass
A103: =IF(Produksjonsbeskrivelse!C$190=Hoveddører!A$3,Hoveddører!C100,IF(Produksjonsbeskrivelse!C$199=Hoveddører!A$3,Hoveddører!C100,IF(Produksjonsbeskrivelse!C$190=Hoveddører!A$4,Hoveddører!F100,IF(Produksjonsbeskrivelse!C$199=Hoveddører!A$4,Hoveddører!F100,"")))) ->  | C103: LUND med katedral glass, eXtra U-verdi 0,68 | F103: Drop, klart glass
A104: =IF(Produksjonsbeskrivelse!C$190=Hoveddører!A$3,Hoveddører!C101,IF(Produksjonsbeskrivelse!C$199=Hoveddører!A$3,Hoveddører!C101,IF(Produksjonsbeskrivelse!C$190=Hoveddører!A$4,Hoveddører!F101,IF(Produksjonsbeskrivelse!C$199=Hoveddører!A$4,Hoveddører!F101,"")))) ->  | C104: LUND tett, eXtra U-verdi 0,58 | F104: Drop, pardør, klart glass
A105: =IF(Produksjonsbeskrivelse!C$190=Hoveddører!A$3,Hoveddører!C102,IF(Produksjonsbeskrivelse!C$199=Hoveddører!A$3,Hoveddører!C102,IF(Produksjonsbeskrivelse!C$190=Hoveddører!A$4,Hoveddører!F102,IF(Produksjonsbeskrivelse!C$199=Hoveddører!A$4,Hoveddører!F102,"")))) ->  | C105: MARTHA med flerfarget antikkglass og blysprosser, eXtra U-verdi 0,68 | F105: Lilly, klart glass
A106: =IF(Produksjonsbeskrivelse!C$190=Hoveddører!A$3,Hoveddører!C103,IF(Produksjonsbeskrivelse!C$199=Hoveddører!A$3,Hoveddører!C103,IF(Produksjonsbeskrivelse!C$190=Hoveddører!A$4,Hoveddører!F103,IF(Produksjonsbeskrivelse!C$199=Hoveddører!A$4,Hoveddører!F103,"")))) ->  | C106: MAUD innfrest dekor ut-/innv., sotfarget antikkgl. og blysprosser, eXtra U-verdi 0,68 | F106: Lilly, pardør, klart glass
A107: =IF(Produksjonsbeskrivelse!C$190=Hoveddører!A$3,Hoveddører!C104,IF(Produksjonsbeskrivelse!C$199=Hoveddører!A$3,Hoveddører!C104,IF(Produksjonsbeskrivelse!C$190=Hoveddører!A$4,Hoveddører!F104,IF(Produksjonsbeskrivelse!C$199=Hoveddører!A$4,Hoveddører!F104,"")))) ->  | C107: OLE utenpåliggende dekor, sotfarget antikkgl. og blysprosser, eXtra U-verdi 0,68 | F107: Leon, klart glass
A108: =IF(Produksjonsbeskrivelse!C$190=Hoveddører!A$3,Hoveddører!C105,IF(Produksjonsbeskrivelse!C$199=Hoveddører!A$3,Hoveddører!C105,IF(Produksjonsbeskrivelse!C$190=Hoveddører!A$4,Hoveddører!F105,IF(Produksjonsbeskrivelse!C$199=Hoveddører!A$4,Hoveddører!F105,"")))) ->  | C108: ORION med sotet nyantikk glass, eXtra U-verdi 0,63 | F108: Leon, pardør, klart glass
A109: =IF(Produksjonsbeskrivelse!C$190=Hoveddører!A$3,Hoveddører!C106,IF(Produksjonsbeskrivelse!C$199=Hoveddører!A$3,Hoveddører!C106,IF(Produksjonsbeskrivelse!C$190=Hoveddører!A$4,Hoveddører!F106,IF(Produksjonsbeskrivelse!C$199=Hoveddører!A$4,Hoveddører!F106,"")))) ->  | C109: PHOEBE med klart glass, eXtra U-verdi 0,70 | F109: Luna, klart glass
A110: =IF(Produksjonsbeskrivelse!C$190=Hoveddører!A$3,Hoveddører!C107,IF(Produksjonsbeskrivelse!C$199=Hoveddører!A$3,Hoveddører!C107,IF(Produksjonsbeskrivelse!C$190=Hoveddører!A$4,Hoveddører!F107,IF(Produksjonsbeskrivelse!C$199=Hoveddører!A$4,Hoveddører!F107,"")))) ->  | C110: RICHARD med klart glass, eXtra U-verdi 0,69 | F110: Luna, pardør, klart glass
A111: =IF(Produksjonsbeskrivelse!C$190=Hoveddører!A$3,Hoveddører!C108,IF(Produksjonsbeskrivelse!C$199=Hoveddører!A$3,Hoveddører!C108,IF(Produksjonsbeskrivelse!C$190=Hoveddører!A$4,Hoveddører!F108,IF(Produksjonsbeskrivelse!C$199=Hoveddører!A$4,Hoveddører!F108,"")))) ->  | C111: RØROS med katedral glass, eXtra U-verdi 0,63 | F111: Ocean, klart glass
A112: =IF(Produksjonsbeskrivelse!C$190=Hoveddører!A$3,Hoveddører!C109,IF(Produksjonsbeskrivelse!C$199=Hoveddører!A$3,Hoveddører!C109,IF(Produksjonsbeskrivelse!C$190=Hoveddører!A$4,Hoveddører!F109,IF(Produksjonsbeskrivelse!C$199=Hoveddører!A$4,Hoveddører!F109,"")))) ->  | C112: RØROS tett, eXtra U-verdi 0,58 | F112: Ocean, pardør, klart glass
A113: =IF(Produksjonsbeskrivelse!C$190=Hoveddører!A$3,Hoveddører!C110,IF(Produksjonsbeskrivelse!C$199=Hoveddører!A$3,Hoveddører!C110,IF(Produksjonsbeskrivelse!C$190=Hoveddører!A$4,Hoveddører!F110,IF(Produksjonsbeskrivelse!C$199=Hoveddører!A$4,Hoveddører!F110,"")))) ->  | C113: SAILOR med klart glass, eXtra U-verdi 0,64 | F113: Ocean, tett
A114: =IF(Produksjonsbeskrivelse!C$190=Hoveddører!A$3,Hoveddører!C111,IF(Produksjonsbeskrivelse!C$199=Hoveddører!A$3,Hoveddører!C111,IF(Produksjonsbeskrivelse!C$190=Hoveddører!A$4,Hoveddører!F111,IF(Produksjonsbeskrivelse!C$199=Hoveddører!A$4,Hoveddører!F111,"")))) ->  | C114: SIRDAL utenpåliggende dekor med katedral glass, eXtra U-verdi 0,68 | F114: Orchid klart glass
A115: =IF(Produksjonsbeskrivelse!C$190=Hoveddører!A$3,Hoveddører!C112,IF(Produksjonsbeskrivelse!C$199=Hoveddører!A$3,Hoveddører!C112,IF(Produksjonsbeskrivelse!C$190=Hoveddører!A$4,Hoveddører!F112,IF(Produksjonsbeskrivelse!C$199=Hoveddører!A$4,Hoveddører!F112,"")))) ->  | C115: SIRDAL utenpåliggende dekor tett, eXtra U-verdi 0,58 | F115: Orchid, pardør, klart glass
A116: =IF(Produksjonsbeskrivelse!C$190=Hoveddører!A$3,Hoveddører!C113,IF(Produksjonsbeskrivelse!C$199=Hoveddører!A$3,Hoveddører!C113,IF(Produksjonsbeskrivelse!C$190=Hoveddører!A$4,Hoveddører!F113,IF(Produksjonsbeskrivelse!C$199=Hoveddører!A$4,Hoveddører!F113,"")))) ->  | C116: SIRDAL PROFIL med katedral glass, eXtra U-verdi 0,68 | F116: Orbit, klart glass
A117: =IF(Produksjonsbeskrivelse!C$190=Hoveddører!A$3,Hoveddører!C114,IF(Produksjonsbeskrivelse!C$199=Hoveddører!A$3,Hoveddører!C114,IF(Produksjonsbeskrivelse!C$190=Hoveddører!A$4,Hoveddører!F114,IF(Produksjonsbeskrivelse!C$199=Hoveddører!A$4,Hoveddører!F114,"")))) ->  | C117: SIRDAL PROFIL tett, eXtra U-verdi 0,58 | F117: Orbit, pardør, klart glass
A118: =IF(Produksjonsbeskrivelse!C$190=Hoveddører!A$3,Hoveddører!C115,IF(Produksjonsbeskrivelse!C$199=Hoveddører!A$3,Hoveddører!C115,IF(Produksjonsbeskrivelse!C$190=Hoveddører!A$4,Hoveddører!F115,IF(Produksjonsbeskrivelse!C$199=Hoveddører!A$4,Hoveddører!F115,"")))) ->  | C118: SOLVEIG med katedral glass, eXtra U-verdi 0,71 | F118: Orion, tett
A119: =IF(Produksjonsbeskrivelse!C$190=Hoveddører!A$3,Hoveddører!C116,IF(Produksjonsbeskrivelse!C$199=Hoveddører!A$3,Hoveddører!C116,IF(Produksjonsbeskrivelse!C$190=Hoveddører!A$4,Hoveddører!F116,IF(Produksjonsbeskrivelse!C$199=Hoveddører!A$4,Hoveddører!F116,"")))) ->  | C119: SOLVEIG tett, eXtra U-verdi 0,58 | F119: Orion, pardør, tett
A120: =IF(Produksjonsbeskrivelse!C$190=Hoveddører!A$3,Hoveddører!C117,IF(Produksjonsbeskrivelse!C$199=Hoveddører!A$3,Hoveddører!C117,IF(Produksjonsbeskrivelse!C$190=Hoveddører!A$4,Hoveddører!F117,IF(Produksjonsbeskrivelse!C$199=Hoveddører!A$4,Hoveddører!F117,"")))) ->  | C120: STANDARD tett, eXtra U-verdi 0,58 | F120: Pulse, klart glass
A121: =IF(Produksjonsbeskrivelse!C$190=Hoveddører!A$3,Hoveddører!C118,IF(Produksjonsbeskrivelse!C$199=Hoveddører!A$3,Hoveddører!C118,IF(Produksjonsbeskrivelse!C$190=Hoveddører!A$4,Hoveddører!F118,IF(Produksjonsbeskrivelse!C$199=Hoveddører!A$4,Hoveddører!F118,"")))) ->  | C121: THEMIS 3 med klart glass, eXtra U-verdi 0,82 | F121: Pulse, pardør, klart glass
A122: =IF(Produksjonsbeskrivelse!C$190=Hoveddører!A$3,Hoveddører!C119,IF(Produksjonsbeskrivelse!C$199=Hoveddører!A$3,Hoveddører!C119,IF(Produksjonsbeskrivelse!C$190=Hoveddører!A$4,Hoveddører!F119,IF(Produksjonsbeskrivelse!C$199=Hoveddører!A$4,Hoveddører!F119,"")))) ->  | C122: URANUS med sotfarget antikkglass med blysprosser, eXtra | F122: Pictor
A123: =IF(Produksjonsbeskrivelse!C$190=Hoveddører!A$3,Hoveddører!C120,IF(Produksjonsbeskrivelse!C$199=Hoveddører!A$3,Hoveddører!C120,IF(Produksjonsbeskrivelse!C$190=Hoveddører!A$4,Hoveddører!F120,IF(Produksjonsbeskrivelse!C$199=Hoveddører!A$4,Hoveddører!F120,"")))) ->  | C123: ZEUS med klart glass, eXtra U-verdi 0,66 | F123: Pictor, pardør
A124: =IF(Produksjonsbeskrivelse!C$190=Hoveddører!A$3,Hoveddører!C121,IF(Produksjonsbeskrivelse!C$199=Hoveddører!A$3,Hoveddører!C121,IF(Produksjonsbeskrivelse!C$190=Hoveddører!A$4,Hoveddører!F121,IF(Produksjonsbeskrivelse!C$199=Hoveddører!A$4,Hoveddører!F121,"")))) ->  | C124: B30 BRANN tett - sertifisert dør, eXtra U-verdi 0,75 | F124: Pixel, klart glass
A125: =IF(Produksjonsbeskrivelse!C$190=Hoveddører!A$3,Hoveddører!C122,IF(Produksjonsbeskrivelse!C$199=Hoveddører!A$3,Hoveddører!C122,IF(Produksjonsbeskrivelse!C$190=Hoveddører!A$4,Hoveddører!F122,IF(Produksjonsbeskrivelse!C$199=Hoveddører!A$4,Hoveddører!F122,"")))) ->  | C125: B30 / 38 dB BRANN/LYD tett - sertifisert dør, eXtra U-verdi 0,75 | F125: Prisma, klart glass
A126: =IF(Produksjonsbeskrivelse!C$190=Hoveddører!A$3,Hoveddører!C123,IF(Produksjonsbeskrivelse!C$199=Hoveddører!A$3,Hoveddører!C123,IF(Produksjonsbeskrivelse!C$190=Hoveddører!A$4,Hoveddører!F123,IF(Produksjonsbeskrivelse!C$199=Hoveddører!A$4,Hoveddører!F123,"")))) ->  | F126: Prisma, pardør, klart glass
A127: =IF(Produksjonsbeskrivelse!C$190=Hoveddører!A$3,Hoveddører!C124,IF(Produksjonsbeskrivelse!C$199=Hoveddører!A$3,Hoveddører!C124,IF(Produksjonsbeskrivelse!C$190=Hoveddører!A$4,Hoveddører!F124,IF(Produksjonsbeskrivelse!C$199=Hoveddører!A$4,Hoveddører!F124,"")))) ->  | F127: Square, klart glass
A128: =IF(Produksjonsbeskrivelse!C$190=Hoveddører!A$3,Hoveddører!C125,IF(Produksjonsbeskrivelse!C$199=Hoveddører!A$3,Hoveddører!C125,IF(Produksjonsbeskrivelse!C$190=Hoveddører!A$4,Hoveddører!F125,IF(Produksjonsbeskrivelse!C$199=Hoveddører!A$4,Hoveddører!F125,"")))) ->  | F128: Square, pardør, klart glass
A129: =IF(Produksjonsbeskrivelse!C$190=Hoveddører!A$3,Hoveddører!C126,IF(Produksjonsbeskrivelse!C$199=Hoveddører!A$3,Hoveddører!C126,IF(Produksjonsbeskrivelse!C$190=Hoveddører!A$4,Hoveddører!F126,IF(Produksjonsbeskrivelse!C$199=Hoveddører!A$4,Hoveddører!F126,"")))) ->  | F129: Step, klart glass
A130: =IF(Produksjonsbeskrivelse!C$190=Hoveddører!A$3,Hoveddører!C127,IF(Produksjonsbeskrivelse!C$199=Hoveddører!A$3,Hoveddører!C127,IF(Produksjonsbeskrivelse!C$190=Hoveddører!A$4,Hoveddører!F127,IF(Produksjonsbeskrivelse!C$199=Hoveddører!A$4,Hoveddører!F127,"")))) ->  | F130: Step, pardør, klart glass
A131: =IF(Produksjonsbeskrivelse!C$190=Hoveddører!A$3,Hoveddører!C128,IF(Produksjonsbeskrivelse!C$199=Hoveddører!A$3,Hoveddører!C128,IF(Produksjonsbeskrivelse!C$190=Hoveddører!A$4,Hoveddører!F128,IF(Produksjonsbeskrivelse!C$199=Hoveddører!A$4,Hoveddører!F128,"")))) ->  | F131: Tone, klart glass
A132: =IF(Produksjonsbeskrivelse!C$190=Hoveddører!A$3,Hoveddører!C129,IF(Produksjonsbeskrivelse!C$199=Hoveddører!A$3,Hoveddører!C129,IF(Produksjonsbeskrivelse!C$190=Hoveddører!A$4,Hoveddører!F129,IF(Produksjonsbeskrivelse!C$199=Hoveddører!A$4,Hoveddører!F129,"")))) ->  | F132: Tone, pardør, klart glass
A133: =IF(Produksjonsbeskrivelse!C$190=Hoveddører!A$3,Hoveddører!C130,IF(Produksjonsbeskrivelse!C$199=Hoveddører!A$3,Hoveddører!C130,IF(Produksjonsbeskrivelse!C$190=Hoveddører!A$4,Hoveddører!F130,IF(Produksjonsbeskrivelse!C$199=Hoveddører!A$4,Hoveddører!F130,"")))) ->  | F133: Tone, tett
A134: =IF(Produksjonsbeskrivelse!C$190=Hoveddører!A$3,Hoveddører!C131,IF(Produksjonsbeskrivelse!C$199=Hoveddører!A$3,Hoveddører!C131,IF(Produksjonsbeskrivelse!C$190=Hoveddører!A$4,Hoveddører!F131,IF(Produksjonsbeskrivelse!C$199=Hoveddører!A$4,Hoveddører!F131,"")))) ->  | F134: Tone, pardør, tett
A135: =IF(Produksjonsbeskrivelse!C$190=Hoveddører!A$3,Hoveddører!C132,IF(Produksjonsbeskrivelse!C$199=Hoveddører!A$3,Hoveddører!C132,IF(Produksjonsbeskrivelse!C$190=Hoveddører!A$4,Hoveddører!F132,IF(Produksjonsbeskrivelse!C$199=Hoveddører!A$4,Hoveddører!F132,"")))) ->  | F135: Tajo, klart glass
A136: =IF(Produksjonsbeskrivelse!C$190=Hoveddører!A$3,Hoveddører!C133,IF(Produksjonsbeskrivelse!C$199=Hoveddører!A$3,Hoveddører!C133,IF(Produksjonsbeskrivelse!C$190=Hoveddører!A$4,Hoveddører!F133,IF(Produksjonsbeskrivelse!C$199=Hoveddører!A$4,Hoveddører!F133,"")))) ->  | F136: Tajo, pardør, klart glass
A137: =IF(Produksjonsbeskrivelse!C$190=Hoveddører!A$3,Hoveddører!C134,IF(Produksjonsbeskrivelse!C$199=Hoveddører!A$3,Hoveddører!C134,IF(Produksjonsbeskrivelse!C$190=Hoveddører!A$4,Hoveddører!F134,IF(Produksjonsbeskrivelse!C$199=Hoveddører!A$4,Hoveddører!F134,"")))) -> 
A138: =IF(Produksjonsbeskrivelse!C$190=Hoveddører!A$3,Hoveddører!C135,IF(Produksjonsbeskrivelse!C$199=Hoveddører!A$3,Hoveddører!C135,IF(Produksjonsbeskrivelse!C$190=Hoveddører!A$4,Hoveddører!F135,IF(Produksjonsbeskrivelse!C$199=Hoveddører!A$4,Hoveddører!F135,"")))) -> 
A139: =IF(Produksjonsbeskrivelse!C$190=Hoveddører!A$3,Hoveddører!C136,IF(Produksjonsbeskrivelse!C$199=Hoveddører!A$3,Hoveddører!C136,IF(Produksjonsbeskrivelse!C$190=Hoveddører!A$4,Hoveddører!F136,IF(Produksjonsbeskrivelse!C$199=Hoveddører!A$4,Hoveddører!F136,"")))) -> 
A144: =IF(Produksjonsbeskrivelse!C$190=Hoveddører!A$3,Hoveddører!D8,IF(Produksjonsbeskrivelse!C$190=Hoveddører!A$4,Hoveddører!G3,"")) -> 
A145: =IF(Produksjonsbeskrivelse!C$190=Hoveddører!A$3,Hoveddører!D9,IF(Produksjonsbeskrivelse!C$190=Hoveddører!A$4,Hoveddører!G4,"")) -> 
A146: =IF(Produksjonsbeskrivelse!C$190=Hoveddører!A$3,Hoveddører!D10,IF(Produksjonsbeskrivelse!C$190=Hoveddører!A$4,Hoveddører!G5,"")) -> 
A147: =IF(Produksjonsbeskrivelse!C$190=Hoveddører!A$3,Hoveddører!D11,IF(Produksjonsbeskrivelse!C$190=Hoveddører!A$4,Hoveddører!G6,"")) -> 
A148: =IF(Produksjonsbeskrivelse!C$190=Hoveddører!A$3,Hoveddører!D12,IF(Produksjonsbeskrivelse!C$190=Hoveddører!A$4,Hoveddører!G7,"")) -> 
A149: =IF(Produksjonsbeskrivelse!C$190=Hoveddører!A$3,Hoveddører!D13,IF(Produksjonsbeskrivelse!C$190=Hoveddører!A$4,Hoveddører!G8,"")) -> 
A150: =IF(Produksjonsbeskrivelse!C$190=Hoveddører!A$3,Hoveddører!D14,IF(Produksjonsbeskrivelse!C$190=Hoveddører!A$4,Hoveddører!G9,"")) -> 
A151: =IF(Produksjonsbeskrivelse!C$190=Hoveddører!A$3,Hoveddører!D15,IF(Produksjonsbeskrivelse!C$190=Hoveddører!A$4,Hoveddører!G10,"")) -> 
A152: =IF(Produksjonsbeskrivelse!C$190=Hoveddører!A$3,Hoveddører!D16,IF(Produksjonsbeskrivelse!C$190=Hoveddører!A$4,Hoveddører!G11,"")) -> 
A153: =IF(Produksjonsbeskrivelse!C$190=Hoveddører!A$3,Hoveddører!D17,IF(Produksjonsbeskrivelse!C$190=Hoveddører!A$4,Hoveddører!G12,"")) -> 
A154: =IF(Produksjonsbeskrivelse!C$190=Hoveddører!A$3,Hoveddører!D18,IF(Produksjonsbeskrivelse!C$190=Hoveddører!A$4,Hoveddører!G13,"")) -> 
A155: =IF(Produksjonsbeskrivelse!C$190=Hoveddører!A$3,Hoveddører!D19,IF(Produksjonsbeskrivelse!C$190=Hoveddører!A$4,Hoveddører!G14,"")) -> 
A162: =IF(Produksjonsbeskrivelse!C$190=Hoveddører!A$3,Hoveddører!D21,IF(Produksjonsbeskrivelse!C$190=Hoveddører!A$4,Hoveddører!G18,"")) -> 
A163: =IF(Produksjonsbeskrivelse!C$190=Hoveddører!A$3,Hoveddører!D22,IF(Produksjonsbeskrivelse!C$190=Hoveddører!A$4,Hoveddører!G19,"")) -> 
A164: =IF(Produksjonsbeskrivelse!C$190=Hoveddører!A$3,Hoveddører!D23,IF(Produksjonsbeskrivelse!C$190=Hoveddører!A$4,Hoveddører!G20,"")) -> 
A165: =IF(Produksjonsbeskrivelse!C$190=Hoveddører!A$3,Hoveddører!D24,IF(Produksjonsbeskrivelse!C$190=Hoveddører!A$4,Hoveddører!G21,"")) -> 
A166: =IF(Produksjonsbeskrivelse!C$190=Hoveddører!A$3,Hoveddører!D25,IF(Produksjonsbeskrivelse!C$190=Hoveddører!A$4,Hoveddører!G22,"")) -> 
A167: =IF(Produksjonsbeskrivelse!C$190=Hoveddører!A$3,Hoveddører!D26,IF(Produksjonsbeskrivelse!C$190=Hoveddører!A$4,Hoveddører!G23,"")) -> 
A168: =IF(Produksjonsbeskrivelse!C$190=Hoveddører!A$3,Hoveddører!D27,IF(Produksjonsbeskrivelse!C$190=Hoveddører!A$4,Hoveddører!G24,"")) -> 
A169: =IF(Produksjonsbeskrivelse!C$190=Hoveddører!A$3,Hoveddører!D28,IF(Produksjonsbeskrivelse!C$190=Hoveddører!A$4,Hoveddører!G25,"")) -> 
A170: =IF(Produksjonsbeskrivelse!C$190=Hoveddører!A$3,Hoveddører!D29,IF(Produksjonsbeskrivelse!C$190=Hoveddører!A$4,Hoveddører!G26,"")) -> 
A171: =IF(Produksjonsbeskrivelse!C$190=Hoveddører!A$3,Hoveddører!D30,IF(Produksjonsbeskrivelse!C$190=Hoveddører!A$4,Hoveddører!G27,"")) -> 
A172: =IF(Produksjonsbeskrivelse!C$190=Hoveddører!A$3,Hoveddører!D31,IF(Produksjonsbeskrivelse!C$190=Hoveddører!A$4,Hoveddører!G28,"")) -> 
A173: =IF(Produksjonsbeskrivelse!C$190=Hoveddører!A$3,Hoveddører!D32,IF(Produksjonsbeskrivelse!C$190=Hoveddører!A$4,Hoveddører!G29,"")) -> 
A174: =IF(Produksjonsbeskrivelse!C$190=Hoveddører!A$3,Hoveddører!D33,IF(Produksjonsbeskrivelse!C$190=Hoveddører!A$4,Hoveddører!G30,"")) -> 
A175: =IF(Produksjonsbeskrivelse!C$190=Hoveddører!A$3,Hoveddører!D34,IF(Produksjonsbeskrivelse!C$190=Hoveddører!A$4,Hoveddører!G31,"")) -> 
A176: =IF(Produksjonsbeskrivelse!C$190=Hoveddører!A$3,Hoveddører!D35,IF(Produksjonsbeskrivelse!C$190=Hoveddører!A$4,Hoveddører!G32,"")) -> 
A177: =IF(Produksjonsbeskrivelse!C$190=Hoveddører!A$3,Hoveddører!D36,IF(Produksjonsbeskrivelse!C$190=Hoveddører!A$4,Hoveddører!G33,"")) -> 
A178: =IF(Produksjonsbeskrivelse!C$190=Hoveddører!A$3,Hoveddører!D37,IF(Produksjonsbeskrivelse!C$190=Hoveddører!A$4,Hoveddører!G34,"")) -> 
A179: =IF(Produksjonsbeskrivelse!C$190=Hoveddører!A$3,Hoveddører!D38,IF(Produksjonsbeskrivelse!C$190=Hoveddører!A$4,Hoveddører!G35,"")) -> 
A183: HOVEDDØR 2
A187: =IF(Produksjonsbeskrivelse!C$199=Hoveddører!A$3,Hoveddører!C3,IF(Produksjonsbeskrivelse!C$199=Hoveddører!A$4,Hoveddører!F3,"")) -> 
A188: =IF(Produksjonsbeskrivelse!C$199=Hoveddører!A$3,Hoveddører!C4,IF(Produksjonsbeskrivelse!C$199=Hoveddører!A$4,Hoveddører!F4,"")) -> 
A189: =IF(Produksjonsbeskrivelse!C$199=Hoveddører!A$3,Hoveddører!C5,IF(Produksjonsbeskrivelse!C$199=Hoveddører!A$4,Hoveddører!F5,"")) -> 
A190: =IF(Produksjonsbeskrivelse!C$199=Hoveddører!A$3,Hoveddører!C6,IF(Produksjonsbeskrivelse!C$199=Hoveddører!A$4,Hoveddører!F6,"")) -> 
A191: =IF(Produksjonsbeskrivelse!C$199=Hoveddører!A$3,Hoveddører!C7,IF(Produksjonsbeskrivelse!C$199=Hoveddører!A$4,Hoveddører!F7,"")) -> 
A192: =IF(Produksjonsbeskrivelse!C$199=Hoveddører!A$3,Hoveddører!C8,IF(Produksjonsbeskrivelse!C$199=Hoveddører!A$4,Hoveddører!F8,"")) -> 
A193: =IF(Produksjonsbeskrivelse!C$199=Hoveddører!A$3,Hoveddører!C9,IF(Produksjonsbeskrivelse!C$199=Hoveddører!A$4,Hoveddører!F9,"")) -> 
A194: =IF(Produksjonsbeskrivelse!C$199=Hoveddører!A$3,Hoveddører!C10,IF(Produksjonsbeskrivelse!C$199=Hoveddører!A$4,Hoveddører!F10,"")) -> 
A195: =IF(Produksjonsbeskrivelse!C$199=Hoveddører!A$3,Hoveddører!C11,IF(Produksjonsbeskrivelse!C$199=Hoveddører!A$4,Hoveddører!F11,"")) -> 
A196: =IF(Produksjonsbeskrivelse!C$199=Hoveddører!A$3,Hoveddører!C12,IF(Produksjonsbeskrivelse!C$199=Hoveddører!A$4,Hoveddører!F12,"")) -> 
A197: =IF(Produksjonsbeskrivelse!C$199=Hoveddører!A$3,Hoveddører!C13,IF(Produksjonsbeskrivelse!C$199=Hoveddører!A$4,Hoveddører!F13,"")) -> 
A198: =IF(Produksjonsbeskrivelse!C$199=Hoveddører!A$3,Hoveddører!C14,IF(Produksjonsbeskrivelse!C$199=Hoveddører!A$4,Hoveddører!F14,"")) -> 
A199: =IF(Produksjonsbeskrivelse!C$199=Hoveddører!A$3,Hoveddører!C15,IF(Produksjonsbeskrivelse!C$199=Hoveddører!A$4,Hoveddører!F15,"")) -> 
A200: =IF(Produksjonsbeskrivelse!C$199=Hoveddører!A$3,Hoveddører!C16,IF(Produksjonsbeskrivelse!C$199=Hoveddører!A$4,Hoveddører!F16,"")) -> 
A201: =IF(Produksjonsbeskrivelse!C$199=Hoveddører!A$3,Hoveddører!C17,IF(Produksjonsbeskrivelse!C$199=Hoveddører!A$4,Hoveddører!F17,"")) -> 
A202: =IF(Produksjonsbeskrivelse!C$199=Hoveddører!A$3,Hoveddører!C18,IF(Produksjonsbeskrivelse!C$199=Hoveddører!A$4,Hoveddører!F18,"")) -> 
A203: =IF(Produksjonsbeskrivelse!C$199=Hoveddører!A$3,Hoveddører!C19,IF(Produksjonsbeskrivelse!C$199=Hoveddører!A$4,Hoveddører!F19,"")) -> 
A204: =IF(Produksjonsbeskrivelse!C$199=Hoveddører!A$3,Hoveddører!C20,IF(Produksjonsbeskrivelse!C$199=Hoveddører!A$4,Hoveddører!F20,"")) -> 
A205: =IF(Produksjonsbeskrivelse!C$199=Hoveddører!A$3,Hoveddører!C21,IF(Produksjonsbeskrivelse!C$199=Hoveddører!A$4,Hoveddører!F21,"")) -> 
A206: =IF(Produksjonsbeskrivelse!C$199=Hoveddører!A$3,Hoveddører!C22,IF(Produksjonsbeskrivelse!C$199=Hoveddører!A$4,Hoveddører!F22,"")) -> 
A207: =IF(Produksjonsbeskrivelse!C$199=Hoveddører!A$3,Hoveddører!C23,IF(Produksjonsbeskrivelse!C$199=Hoveddører!A$4,Hoveddører!F23,"")) -> 
A208: =IF(Produksjonsbeskrivelse!C$199=Hoveddører!A$3,Hoveddører!C24,IF(Produksjonsbeskrivelse!C$199=Hoveddører!A$4,Hoveddører!F24,"")) -> 
A209: =IF(Produksjonsbeskrivelse!C$199=Hoveddører!A$3,Hoveddører!C25,IF(Produksjonsbeskrivelse!C$199=Hoveddører!A$4,Hoveddører!F25,"")) -> 
A210: =IF(Produksjonsbeskrivelse!C$199=Hoveddører!A$3,Hoveddører!C26,IF(Produksjonsbeskrivelse!C$199=Hoveddører!A$4,Hoveddører!F26,"")) -> 
A211: =IF(Produksjonsbeskrivelse!C$199=Hoveddører!A$3,Hoveddører!C27,IF(Produksjonsbeskrivelse!C$199=Hoveddører!A$4,Hoveddører!F27,"")) -> 
A212: =IF(Produksjonsbeskrivelse!C$199=Hoveddører!A$3,Hoveddører!C28,IF(Produksjonsbeskrivelse!C$199=Hoveddører!A$4,Hoveddører!F28,"")) -> 
A213: =IF(Produksjonsbeskrivelse!C$199=Hoveddører!A$3,Hoveddører!C29,IF(Produksjonsbeskrivelse!C$199=Hoveddører!A$4,Hoveddører!F29,"")) -> 
A214: =IF(Produksjonsbeskrivelse!C$199=Hoveddører!A$3,Hoveddører!C30,IF(Produksjonsbeskrivelse!C$199=Hoveddører!A$4,Hoveddører!F30,"")) -> 
A215: =IF(Produksjonsbeskrivelse!C$199=Hoveddører!A$3,Hoveddører!C31,IF(Produksjonsbeskrivelse!C$199=Hoveddører!A$4,Hoveddører!F31,"")) -> 
A216: =IF(Produksjonsbeskrivelse!C$199=Hoveddører!A$3,Hoveddører!C32,IF(Produksjonsbeskrivelse!C$199=Hoveddører!A$4,Hoveddører!F32,"")) -> 
A217: =IF(Produksjonsbeskrivelse!C$199=Hoveddører!A$3,Hoveddører!C33,IF(Produksjonsbeskrivelse!C$199=Hoveddører!A$4,Hoveddører!F33,"")) -> 
... 133 more rows

Sheet Materialvalg (hidden)
J1: Prisstigning fra | K1: okt. 11 | L1: 154.6
J2: Prisstigning til | K2: =Produksjonsbeskrivelse!D55 -> 00:00:00 | L2: =Produksjonsbeskrivelse!B55 -> 0 | M2: Tømrerkostnad: | N2: ='Vedlikehold selger'!F51+'Vedlikehold selger'!F51*'Vedlikehold selger'!F49 -> 449.24
J3: Prisstigning i perioden | L3: =(L2-L1)/L1 -> -1
H4: DB-Konsmo | J4: DB | M4: Prisstigning | N4: Moms | O4: Sum
C5: NOBB nr. | E5: Netto matr. | F5: Mont. | H5: 0 | I5: Netto matr. | J5: ='Vedlikehold selger'!F48 -> 0.25 | K5: Montasje | L5: Sum | M5: =L3 -> -1 | N5: 0.25
B6: GULV
A7: 1
A8: 2 | B8: Støpt plate
A9: 3 | B9: Golvsponplate (standard) | H9: =E9*$H$5 -> 0 | I9: =SUM(E9+H9) -> 0 | J9: =I9*$J$5 -> 0 | K9: =F9*$N$2 -> 0 | L9: =SUM(I9:K9) -> 0 | M9: =L9*$M$5 -> 0 | N9: =SUM(L9+M9)*$N$5 -> 0 | O9: =SUM(L9:N9) -> 0
A10: 4 | B10: Nedsenket for varmekabel
A11: 5 | B11: For lavtbyggende varmekabel
B13: Parkett | H13: =E13*$H$5 -> 0 | I13: =SUM(E13+H13) -> 0 | J13: =I13*$J$5 -> 0 | K13: =F13*$N$2 -> 0 | L13: =SUM(I13:K13) -> 0 | M13: =L13*$M$5 -> 0 | N13: =SUM(L13+M13)*$N$5 -> 0 | O13: =SUM(L13:N13) -> 0
A14: 6 | B14: 14 mm Isoglass m/glidesjikt | E14: 226.755 | F14: 0.3 | H14: =E14*$H$5 -> 0 | I14: =SUM(E14+H14) -> 226.755 | J14: =I14*$J$5 -> 56.68875 | K14: =F14*$N$2 -> 134.772 | L14: 418.21575 | M14: =L14*$M$5 -> -418.21575 | N14: =SUM(L14+M14)*$N$5 -> 0 | O14: =SUM(L14:N14) -> 0
A15: 7 | B15: 14 mm Ullpapp | E15: 316.195 | F15: 0.3 | H15: =E15*$H$5 -> 0 | I15: =SUM(E15+H15) -> 316.195 | J15: =I15*$J$5 -> 79.04875 | K15: =F15*$N$2 -> 134.772 | L15: 530.01575 | M15: =L15*$M$5 -> -530.01575 | N15: =SUM(L15+M15)*$N$5 -> 0 | O15: =SUM(L15:N15) -> 0
A16: 8 | B16: 14 mm Malerpapp (tildekking) | E16: 376.255 | F16: 0.3 | H16: =E16*$H$5 -> 0 | I16: =SUM(E16+H16) -> 376.255 | J16: =I16*$J$5 -> 94.06375 | K16: =F16*$N$2 -> 134.772 | L16: 605.09075 | M16: =L16*$M$5 -> -605.09075 | N16: =SUM(L16+M16)*$N$5 -> 0 | O16: =SUM(L16:N16) -> 0
A17: 9 | B17: 14 mm Plastfolie | E17: 309.175 | F17: 0.3 | H17: =E17*$H$5 -> 0 | I17: =SUM(E17+H17) -> 309.175 | J17: =I17*$J$5 -> 77.29375 | K17: =F17*$N$2 -> 134.772 | L17: 521.24075 | M17: =L17*$M$5 -> -521.24075 | N17: =SUM(L17+M17)*$N$5 -> 0 | O17: =SUM(L17:N17) -> 0
B19: Laminat | H19: 0 | I19: 0 | J19: =I19*$J$5 -> 0 | K19: 0 | L19: 0 | M19: =L19*$M$5 -> 0 | N19: 0 | O19: 0
A20: 10 | B20: Fibo-Trespo 8 mm Kronostep Vario | E20: 109.183 | F20: 0.3 | H20: 0 | I20: 109.183 | J20: 27.29575 | K20: 134.772 | L20: 271.25075 | M20: -271.25075 | N20: 0 | O20: 0
A21: 11 | B21: Fibo-Trespo 8 mm Kronostep Supernatural | E21: 118.4182 | F21: 0.3 | H21: 0 | I21: 118.4182 | J21: 29.60455 | K21: 134.772 | L21: 282.79475 | M21: -282.79475 | N21: 0 | O21: 0
A22: 12 | B22: Fibo-Trespo 8 mm Ship's deck | E22: 168.0574 | F22: 0.3 | H22: 0 | I22: 168.0574 | J22: 42.01435 | K22: 134.772 | L22: 344.84375 | M22: -344.84375 | N22: 0 | O22: 0
A23: 13 | B23: Fibo-Trespo 12 mm Floordream Silent | E23: 144.9694 | F23: 0.3 | H23: 0 | I23: 144.9694 | J23: 36.24235 | K23: 134.772 | L23: 315.98375 | M23: -315.98375 | N23: 0 | O23: 0
A24: 14 | B24: Fibo-Trespo 8 mm Fausfloor skifermønster | E24: 181.931 | F24: 0.3 | H24: 0 | I24: 181.931 | J24: 45.48275 | K24: 134.772 | L24: 362.18575 | M24: -362.18575 | N24: 0 | O24: 0
A26: 15 | B26: Furugolv | H26: 0 | I26: 0 | J26: =I26*$J$5 -> 0 | K26: 0 | L26: 0 | M26: =L26*$M$5 -> 0 | N26: 0 | O26: 0
A27: 16 | B27: Furugolv 20x112 mm Natur, ubehandlet | E27: 177.647 | F27: 0 | H27: 0 | I27: 177.647 | J27: 44.41175 | K27: 0 | L27: 222.05875 | M27: -222.05875 | N27: 0 | O27: 0
A28: 17 | B28: Furugolv 20x112 mm Natur, hvitoljet | E28: 209.147 | F28: 0 | H28: 0 | I28: 209.147 | J28: 52.28675 | K28: 0 | L28: 261.43375 | M28: -261.43375 | N28: 0 | O28: 0
A29: 18 | B29: Furugolv 20x136 mm fargemalt | E29: 261.647 | F29: 0 | H29: 0 | I29: 261.647 | J29: 65.41175 | K29: 0 | L29: 327.05875 | M29: -327.05875 | N29: 0 | O29: 0
H30: 0 | I30: 0 | J30: 0 | K30: 0 | L30: 0 | M30: 0 | N30: 0 | O30: 0
B31: Spesial golv | H31: 0 | I31: 0 | J31: 0 | K31: 0 | L31: 0 | M31: 0 | N31: 0 | O31: 0
A32: 19 | B32: 28x120 mm spaltegolv | H32: =E32*$H$5 -> 0 | I32: =SUM(E32+H32) -> 0 | J32: 0 | K32: =F32*$N$2 -> 0 | L32: 0 | M32: 0 | N32: =SUM(L32+M32)*$N$5 -> 0 | O32: =SUM(L32:N32) -> 0
A33: 20 | B33: 36 mm Silencio Termo | H33: =E33*$H$5 -> 0 | I33: 0 | J33: 0 | K33: =F33*$N$2 -> 0 | L33: 0 | M33: 0 | N33: =SUM(L33+M33)*$N$5 -> 0 | O33: 0
H34: =E34*$H$5 -> 0 | I34: 0 | J34: 0 | K34: =F34*$N$2 -> 0 | L34: 0 | M34: 0 | N34: =SUM(L34+M34)*$N$5 -> 0 | O34: 0
B35: Gulv tekst romskjema
B37: PARKETT / LAMINAT
B38: 14 mm Parkett Boen Eik 3-stav Andante clic, Live Satin lakk, EIGV3PTD (standard) | C38: 43656200
B39: 14 mm Parkett Boen Eik 3-stav Andante clic, Hvit pigmentert Live Matt lakk, EIGV32TD | C39: 43656177
B40: 14 mm Parkett Boen Eik Plank 209 mm, Andante clic, Hvit pigmentert Live Pure, EBGV32FD | C40: 49254145
B41: 14 mm Parkett: Södra Eik 3-stav clic, Mattlakk, 14x207x2200 | C41: 23137144
B42: 14 mm Parkett: Södra Eik 3-stav Mattlakk Hvit, 14x207x2200 | C42: 46074764
B43: 14 mm Parkett: Södra Eik 1-stav Mattlakk, 14x180x1800 | C43: 46074745
B44: 14 mm Parkett levert av KF AS. Type:
B45: 14 mm Parkett levert av forbruker.
B46: Laminatgulv levert av KF AS. Type:
B47: Laminatgulv levert av forbruker.
B49: ANNET
B50: Fliser levert av forbruker.
B51: Vinylbelegg levert av forbruker.
B52: Teppe levert av forbruker.
B53: Fliser levert av KF AS. Type: Prosjektflis
B54: Fliser levert av KF AS. Type:
B55: Vinylbelegg levert av KF AS. Type:
B56: Teppe levert av KF AS. Type:
B58: FURUGULV
B59: Furugulv 20x112 mm Natur, ubehandlet
B60: Furugulv 20x112 mm Natur, hvitoljet
B61: Furugulv 20x136 mm fargemalt
B63: VEGG
B65: HUNTONIT OG GIPS FOR TAPETSERING/MALING | E65: FALSE | F65: 0 | O65: FALSE
B66: 11 mm Huntonit trefiberplate m/fals, Grunnet Hvit (standard), h=2390 | C66: 41817784 | E66: 0 | H66: 0 | I66: =SUM(E66+H66) -> 0 | J66: =I66*$J$5 -> 0 | K66: =F66*$N$2 -> 0 | L66: =SUM(I66:K66) -> 0 | M66: =L66*$M$5 -> 0 | N66: =SUM(L66+M66)*$N$5 -> 0 | O66: =IF($O$65=FALSE,SUM(L66:N66),SUM(L66:N66)/24*27) -> 0
B67: 13 mm Gipsplate (standard), h=2390 | C67: 0 | E67: 0 | H67: =E67*$H$5 -> 0 | I67: =SUM(E67+H67) -> 0 | J67: =I67*$J$5 -> 0 | K67: =F67*$N$2 -> 0 | L67: =SUM(I67:K67) -> 0 | M67: =L67*$M$5 -> 0 | N67: =SUM(L67+M67)*$N$5 -> 0 | O67: =IF($O$65=FALSE,SUM(L67:N67),SUM(L67:N67)/24*27) -> 0
B68: 11 mm Huntonit trefiberplate m/fals, Grunnet Hvit, h=2740 | C68: 41817841
B69: 13 mm Gipsplate, h>2400 | C69: 0
B71: VED PROSJEKT
B72: 13 mm Gipsplate (standard), - sparklet og malt | C72: 0
O73: =IF($O$65=FALSE,SUM(L73:N73),SUM(L73:N73)/24*27) -> 0
B74: HUNTONIT BASIC WALL - KOSTEMALT PANELPLATE | H74: =E74*$H$5 -> 0 | I74: =SUM(E74+H74) -> 0 | J74: =I74*$J$5 -> 0 | K74: =F74*$N$2 -> 0 | L74: =SUM(I74:K74) -> 0 | M74: =L74*$M$5 -> 0 | N74: =SUM(L74+M74)*$N$5 -> 0 | O74: =IF($O$65=FALSE,SUM(L74:N74),SUM(L74:N74)/24*27) -> 0
B75: Huntonit Skygge 5 bord, Kostemalt Hvit NCS S 0502-Y Vannbasert acryl Glans 20, h=2390 | C75: 42750445 | E75: 59.432 | F75: 0.1 | H75: =E75*$H$5 -> 0 | I75: 59.432 | J75: =I75*$J$5 -> 14.858 | K75: =F75*$N$2 -> 44.924 | L75: 119.214 | M75: =L75*$M$5 -> -119.214 | N75: =SUM(L75+M75)*$N$5 -> 0 | O75: =IF($O$65=FALSE,SUM(L75:N75),SUM(L75:N75)/24*27) -> 0
B76: Huntonit Skygge 5 bord, Kostemalt Brilliant Hvit NCS S 0500-N Vannbasert acryl Glans 20, h=2390 | C76: 49768354
B77: Huntonit Skygge 5 bord, Kostemalt Caffelatte NCS S 1005-Y30R Vannbasert acryl Glans 20, h=2390 | C77: 42750536
B78: Huntonit Skygge 5 bord, Kostemalt Frost NCS S 1500-N Vannbasert acryl Glans 20, h=2390 | C78: 42750555
B79: Huntonit Skygge 5 bord, Kostemalt Mist NCS S 3000-N Vannbasert acryl Glans 20, h=2390 | C79: 49768422
B80: Huntonit Skygge 5 bord, Kostemalt Sand NCS S 2502-Y Vannbasert acryl Glans 20, h=2390 | C80: 49768437
B81: Huntonit Skygge 5 bord, Kostemalt Earth NCS S 4005 Y20R Vannbasert acryl Glans 20, h=2390 | C81: 49768494
B82: Huntonit Skygge 5 bord, Kostemalt Pepper NCS S 6502-Y (spesialresept) Vannbasert acryl Glans 20, h=2390 | C82: 45735926
B83: Huntonit Skygge 5 bord, Kostemalt Soft Menthol NCS S 1706 G15Y Vannbasert acryl Glans 20, h=2390 | C83: 49768456
B84: Huntonit Skygge 5 bord, Kostemalt Soft Eucalyptus NCS S 5608 B78G Vannbasert acryl Glans 20, h=2390 | C84: 49768745
B85: Huntonit Skygge 5 bord, Kostemalt Terracotta NCS S 3923 Y47R Vannbasert acryl Glans 20, h=2390 | C85: 49768513
B86: Huntonit Skygge 5 bord, Kostemalt Deep Ocean NCS S 7010 B10G Vannbasert acryl Glans 20, h=2390 | C86: 49774673
B87: Huntonit Perle 5 bord, Kostemalt Hvit NCS S 0502-Y Vannbasert acryl Glans 20, h=2390 | C87: 42749276
B88: Huntonit Perle 5 bord, Kostemalt Brilliant Hvit NCS S 0500-N Vannbasert acryl Glans 20, h=2390 | C88: 49768392
B89: Huntonit Perle 5 bord, Kostemalt Caffelatte NCS S 1005-Y30R Vannbasert acryl Glans 20, h=2390 | C89: 42750203
B90: Huntonit Perle 5 bord, Kostemalt Frost NCS S 1500-N Vannbasert acryl Glans 20, h=2390 | C90: 42750222
B91: Huntonit Faspanel 8 bord, Kostemalt Hvit NCS S 0502-Y Vannbasert acryl Glans 20, h=2390 | C91: 42746086 | E91: 59.432 | F91: 0.1 | H91: =E91*$H$5 -> 0 | I91: 59.432 | J91: =I91*$J$5 -> 14.858 | K91: =F91*$N$2 -> 44.924 | L91: 119.214 | M91: =L91*$M$5 -> -119.214 | N91: =SUM(L91+M91)*$N$5 -> 0 | O91: =IF($O$65=FALSE,SUM(L91:N91),SUM(L91:N91)/24*27) -> 0
B92: Huntonit Faspanel 8 bord, Kostemalt Caffelatte NCS S 1005-Y30R Vannbasert acryl Glans 20, h=2390 | C92: 42549057
B93: Huntonit Faspanel 8 bord, Kostemalt Frost NCS S 1500-N Vannbasert acryl Glans 20, h=2390 | C93: 42746234
B94: Huntonit Faspanel 6 bord, Kostemalt Hvit NCS S 0502-Y Vannbasert acryl Glans 20, h=2390 | C94: 42746283
B95: Huntonit Faspanel 3 bord, Kostemalt Brilliant Hvit NCS S 0500-N Vannbasert acryl Glans 20, h=2390 | C95: 48633336
B96: Huntonit Antikk Microfuge, Kostemalt Hvit NCS S 0502-Y Vannbasert acryl Glans 20, h=2390 | C96: 45223602
B97: Huntonit Antikk Microfuge, Kostemalt Brilliant Hvit NCS S 0500-N Vannbasert acryl Glans 20, h=2390 | C97: 48632833
B98: Huntonit Antikk Microfuge, Kostemalt Frost NCS S 1500-N Vannbasert acryl Glans 20, h=2390 | C98: 48633317
B100: Huntonit Skygge 5 bord, Kostemalt Hvit NCS S 0502-Y Vannbasert acryl Glans 20, h=2740 | C100: 42750574
B101: Huntonit Skygge 5 bord, Kostemalt Brilliant Hvit NCS S 0500-N Vannbasert acryl Glans 20, h=2740 | C101: 49768373
B102: Huntonit Skygge 5 bord, Kostemalt Caffelatte NCS S 1005-Y30R Vannbasert acryl Glans 20, h=2740 | C102: 42750593
B103: Huntonit Skygge 5 bord, Kostemalt Frost NCS S 1500-N Vannbasert acryl Glans 20, h=2740 | C103: 42750604
B104: Huntonit Perle 5 bord, Kostemalt Hvit NCS S 0502-Y Vannbasert acryl Glans 20, h=2740 | C104: 42750275
B105: Huntonit Perle 5 bord, Kostemalt Brilliant Hvit NCS S 0500-N Vannbasert acryl Glans 20, h=2740 | C105: 49768403
B106: Huntonit Perle 5 bord, Kostemalt Caffelatte NCS S 1005-Y30R Vannbasert acryl Glans 20, h=2740 | C106: 42750324
B107: Huntonit Perle 5 bord, Kostemalt Frost NCS S 1500-N Vannbasert acryl Glans 20, h=2740 | C107: 42750343
B108: Huntonit Faspanel 8 bord, Kostemalt Hvit NCS S 0502-Y Vannbasert acryl Glans 20, h=2740 | C108: 42746253
B109: Huntonit Faspanel 8 bord, Kostemalt Caffelatte NCS S 1005-Y30R Vannbasert acryl Glans 20, h=2740 | C109: 42746264
B110: Huntonit Faspanel 8 bord, Kostemalt Frost NCS S 1500-N Vannbasert acryl Glans 20, h=2740 | C110: 42746272
B111: Huntonit Faspanel 6 bord, Kostemalt Hvit NCS S 0502-Y Vannbasert acryl Glans 20, h=2740 | C111: 42746302
B112: Huntonit Faspanel 3 bord, Kostemalt Brilliant Hvit NCS S 0500-N Vannbasert acryl Glans 20, h=2740 | C112: 48633340
B113: Huntonit Antikk Microfuge, Kostemalt Hvit NCS S 0502-Y Vannbasert acryl Glans 20, h=2740 | C113: 45223617
B114: Huntonit Antikk Microfuge, Kostemalt Brilliant Hvit NCS S 0500-N Vannbasert acryl Glans 20, h=2740 | C114: 48632852
B115: Huntonit Antikk Microfuge, Kostemalt Frost NCS S 1500-N Vannbasert acryl Glans 20, h=2740 | C115: 48633321
A117: 11 | B117: HUNTONIT BASIC WALL - RULLEMALT PANELPLATE
B118: Huntonit Faspanel 3 bord, Rullemalt Hvit NCS S 0502-Y Vannbasert acryl Glans 20, h=2390 | C118: 29737905
B119: Huntonit Faspanel 3 bord, Rullemalt Caffelatte NCS S 1005-Y30R Vannbasert acryl Glans 20, h=2390 | C119: 29738036
B120: Huntonit Antikk, Rullemalt Hvit NCS S 0502-Y Vannbasert acryl Glans 20, h=2390 | C120: 29737103
B122: Huntonit Faspanel 3 bord, Rullemalt Hvit NCS S 0502-Y Vannbasert acryl Glans 20, h=2740 | C122: 29737921
B123: Huntonit Faspanel 3 bord, Rullemalt Caffelatte NCS S 1005-Y30R Vannbasert acryl Glans 20, h=2740 | C123: 29738044
B124: Huntonit Antikk, Rullemalt Hvit NCS S 0502-Y Vannbasert acryl Glans 20, h=2740 | C124: 29737095
A126: 17 | B126: HUNTONIT TEXTURE WALL
A127: 18 | B127: Huntonit Wood wall Lasert, Frappe faspanel 5 bord, h=2390 | C127: 45735945
B128: Huntonit Wood wall Lasert, Cappuccino faspanel 5 bord, h=2390 | C128: 45735953
B129: Huntonit Wood wall Lasert, Mocca faspanel 5 bord, h=2390 | C129: 45735964
B130: Huntonit Cottage wall, Hvitkalket låvepanel, h=2390 | C130: 47100775
B131: Huntonit Cottage wall, Hvit sawcut låvepanel, h=2391 | C131: 47133940
B132: Huntonit Vintage wall, Hvitkalket faspanel 8 bord, h=2390 | C132: 45735972
B133: Huntonit Wood wall faspanel 5 bord, Hvit NCS S 0502-Y Vannbasert acryl Glans 20, h=2390 | C133: 47133955
B134: Huntonit Wood wall faspanel 5 bord, Sand NCS S 2502-Y Vannbasert acryl Glans 20, h=2390 | C134: 47133966
B135: Huntonit Wood wall faspanel 5 bord, Mist NCS S 3000-N Vannbasert acryl Glans 20, h=2390 | C135: 47133974
A137: 23 | B137: PANELBORD
B138: Huntonit Panelbord Skygge, Kostemalt Hvit NCS S 0502-Y Vann acryl Glans 20, 11x142x2420 mm (netto 11x125x2400) | C138: 49511401
A139: 25 | B139: Huntonit Panelbord Skygge, Kostemalt Hvit NCS S 0502-Y Vann acryl Glans 20, 11x200x2420 mm (netto 11x180x2400) | C139: 45405076
A140: 26 | B140: Huntonit Wood Panelbord Skygge, KM Hvit NCS S 0502-Y Vann acryl Glans 20, 11x200x2420 mm (netto 11x180x2400) | C140: 45405080
B141: Huntonit Wood Panelbord Skygge, KM Sand NCS S 2502 Y Vann acryl Glans 20, 11x200x2420 mm (netto 11x180x2400) | C141: 46741240
B142: Huntonit Wood Panelbord Skygge, KM Mist NCS S 3000 N Vann acryl Glans 20, 11x200x2420 mm (netto 11x180x2400) | C142: 46741266
A143: 27 | B143: Huntonit Focus MDF Panelbord Skygge, Kostemalt Hvit NCS S 0502-Y, Acryl G20, 11x142x2420 mm (netto 11x125x2400) | C143: 48769435
A144: 28 | B144: Huntonit Focus MDF Panelbord Skygge, Kostemalt Hvit NCS S 0502-Y, Acryl G20, 11x142x3020 mm (nto 11x125x3000) | C144: 48769446
B145: Huntonit Focus MDF Panelbord Fas Kostemalt Hvit NCS S 0502-Y Acryl G20, 11x142x2420 mm (netto 11x125x2400) | C145: 48769454
A147: 29 | B147: HUNTONIT FOCUS MDF - KOSTEMALT PANELPLATE
B148: Huntonit Focus MDF Skygge, Kostemalt Hvit NCS S 0502-Y Vannbasert acryl Glans 20, h=2390 | C148: 44120156
B149: Huntonit Focus MDF Skygge, Kostemalt Caffelatte NCS S 1005-Y30R Vannbasert acryl Glans 20, h=2390 | C149: 44120160
B150: Huntonit Focus MDF Skygge, Kostemalt Frost NCS S 1500-N Vannbasert acryl Glans 20, h=2390 | C150: 45377882
B151: Huntonit Focus MDF Perle, Kostemalt Hvit NCS S 0502-Y Vannbasert acryl Glans 20, h=2390 | C151: 44120141
B152: Huntonit Focus MDF Perle, Kostemalt Caffelatte NCS S 1005-Y30R Vannbasert acryl Glans 20, h=2390 | C152: 44120118
B153: Huntonit Focus MDF Perle, Kostemalt Frost NCS S 1500-N Vannbasert acryl Glans 20, h=2390 | C153: 45377901
B154: Huntonit Focus MDF Faspanel 6 bord, Kostemalt Hvit NCS S 0502-Y Vannbasert acryl Glans 20, h=2390 | C154: 30345680
B155: Huntonit Focus MDF Faspanel 6 bord, Kostemalt Frost NCS S 1500-N Vannbasert acryl Glans 20, h=2390 | C155: 45377863
B157: Huntonit Focus MDF Skygge, Kostemalt Hvit NCS S 0502-Y Vannbasert acryl Glans 20, h=2740 | C157: 44120213
B158: Huntonit Focus MDF Skygge, Kostemalt Caffelatte NCS S 1005-Y30R Vannbasert acryl Glans 20, h=2740 | C158: 44120224
B159: Huntonit Focus MDF Perle, Kostemalt Hvit NCS S 0502-Y Vannbasert acryl Glans 20, h=2740 | C159: 44120186
B160: Huntonit Focus MDF Perle, Kostemalt Caffelatte NCS S 1005-Y30R Vannbasert acryl Glans 20, h=2740 | C160: 44120175
B161: Huntonit Focus MDF Faspanel 6 bord, Kostemalt Hvit NCS S 0502-Y Vannbasert acryl Glans 20, h=2740 | C161: 30345722
A163: 34 | B163: HUNTONIT FOCUS MDF - UMALTE PANELPLATER | H163: =E163*$H$5 -> 0 | I163: =SUM(E163+H163) -> 0 | J163: =I163*$J$5 -> 0 | K163: =F163*$N$2 -> 0 | L163: 0 | M163: =L163*$M$5 -> 0 | N163: =SUM(L163+M163)*$N$5 -> 0 | O163: =IF($O$65=FALSE,SUM(L163:N163),SUM(L163:N163)/24*27) -> 0
A164: 35 | B164: Huntonit Focus MDF Skygge 5 bord, ubehandlet, h=2390 | C164: 29624988 | E164: 15.4328 | F164: 0 | H164: =E164*$H$5 -> 0 | I164: 15.4328 | J164: =I164*$J$5 -> 3.8582 | K164: =F164*$N$2 -> 0 | L164: 19.291 | M164: =L164*$M$5 -> -19.291 | N164: =SUM(L164+M164)*$N$5 -> 0 | O164: =IF($O$65=FALSE,SUM(L164:N164),SUM(L164:N164)/24*27) -> 0
A165: 36 | B165: Huntonit Focus MDF Perle 5 bord, ubehandlet, h=2390 | C165: 29624970 | E165: 15.4328 | F165: 0 | H165: =E165*$H$5 -> 0 | I165: 15.4328 | J165: =I165*$J$5 -> 3.8582 | K165: =F165*$N$2 -> 0 | L165: 19.291 | M165: =L165*$M$5 -> -19.291 | N165: =SUM(L165+M165)*$N$5 -> 0 | O165: =IF($O$65=FALSE,SUM(L165:N165),SUM(L165:N165)/24*27) -> 0
A167: 37 | B167: HUNTINIT BRANNIT | H167: =E167*$H$5 -> 0 | I167: 0 | J167: =I167*$J$5 -> 0 | K167: =F167*$N$2 -> 0 | L167: 0 | M167: =L167*$M$5 -> 0 | N167: =SUM(L167+M167)*$N$5 -> 0 | O167: =IF($O$65=FALSE,SUM(L167:N167),SUM(L167:N167)/24*27) -> 0
A168: 38 | B168: Huntonit Brannit vegg, Rullemalt Hvit NCS S 0502-Y, h=2390 | C168: 29737863 | E168: 112.0496 | F168: 0.1 | H168: =E168*$H$5 -> 0 | I168: 112.0496 | J168: =I168*$J$5 -> 28.0124 | K168: =F168*$N$2 -> 44.924 | L168: 184.986 | M168: =L168*$M$5 -> -184.986 | N168: =SUM(L168+M168)*$N$5 -> 0 | O168: =IF($O$65=FALSE,SUM(L168:N168),SUM(L168:N168)/24*27) -> 0
B169: Huntonit Brannit vegg, Rullemalt Hvit NCS S 0502-Y, h=2740 | C169: 29737871
A171: 39 | B171: VÅTROMSVEGG
A172: 40 | B172: 13 mm gips for lett tapet/maling | C172: 0
A173: 41 | B173: 15 mm OSB-striper+13 mm gips for fliser | C173: 0
A174: 42 | B174: Rupanel + Litex | C174: 0
A175: 43 | B175: 15 mm OSB-striper+11 mm Fibo Crescendo: | C175: 0
A176: 44 | B176: 15 mm OSB-striper+11 mm Fibo Fortissimo: | C176: 0
A177: 45 | B177: 15 mm OSB-striper+11 mm Fibo Adagio: | C177: 0
A178: 46 | B178: 15 mm OSB-striper+11 mm Fibo Legato: | C178: 0
A180: 47 | B180: UBEHANDLET FURUPANEL | H180: =E180*$H$5 -> 0 | I180: 0 | J180: =I180*$J$5 -> 0 | K180: =F180*$N$2 -> 0 | L180: 0 | M180: =L180*$M$5 -> 0 | N180: =SUM(L180+M180)*$N$5 -> 0 | O180: =IF($O$65=FALSE,SUM(L180:N180),SUM(L180:N180)/24*27) -> 0
A181: 48 | B181: 12x120 mm skyggepanel, furu (10 mm fuge) | C181: 0 | E181: 56.76905606 | F181: 0.246 | H181: 0 | I181: 56.76905606 | J181: 14.19226402 | K181: 110.51304 | L181: 181.4743601 | M181: -181.4743601 | N181: 0 | O181: 0
A182: 49 | B182: 14x120 mm skyggepanel, furu (10 mm fuge) | C182: 0 | E182: 63.76556995 | F182: 0.246 | H182: 0 | I182: 63.76556995 | J182: 15.94139249 | K182: 110.51304 | L182: 190.2200024 | M182: -190.2200024 | N182: 0 | O182: 0
A183: 50 | B183: 14x145 mm skyggepanel, furu (10 mm fuge) | C183: 0 | E183: 55.9566887 | F183: 0.246 | H183: 0 | I183: 55.9566887 | J183: 13.98917218 | K183: 110.51304 | L183: 180.4589009 | M183: -180.4589009 | N183: 0 | O183: 0
A184: 51 | B184: 12x120 mm rundfaspanel, furu (perlestaff) | C184: 0 | E184: 56.76905606 | F184: 0.246 | H184: 0 | I184: 56.76905606 | J184: 14.19226402 | K184: 110.51304 | L184: 181.4743601 | M184: -181.4743601 | N184: 0 | O184: 0
A185: 52 | B185: 14x95 mm rundfaspanel, furu (perlestaff) | C185: 0 | E185: 75.53329142 | F185: 0.246 | H185: 0 | I185: 75.53329142 | J185: 18.88332286 | K185: 110.51304 | L185: 204.9296543 | M185: -204.9296543 | N185: 0 | O185: 0
A186: 53 | B186: 14x120 mm rundfaspanel, furu (perlestaff) | C186: 0 | E186: 63.76556995 | F186: 0.246 | H186: 0 | I186: 63.76556995 | J186: 15.94139249 | K186: 110.51304 | L186: 190.2200024 | M186: -190.2200024 | N186: 0 | O186: 0
A187: 54 | B187: 14x120 mm glattpanel, furu | C187: 0 | E187: 63.76556995 | F187: 0.246 | H187: 0 | I187: 63.76556995 | J187: 15.94139249 | K187: 110.51304 | L187: 190.2200024 | M187: -190.2200024 | N187: 0 | O187: 0
A188: 55 | B188: 14x145 mm glattpanel, furu | C188: 0 | E188: 55.9566887 | F188: 0.246 | H188: 0 | I188: 55.9566887 | J188: 13.98917218 | K188: 110.51304 | L188: 180.4589009 | M188: -180.4589009 | N188: 0 | O188: 0
A190: 56 | B190: UBEHANDLET GRANPANEL | H190: =E190*$H$5 -> 0 | I190: 0 | J190: =I190*$J$5 -> 0 | K190: =F190*$N$2 -> 0 | L190: 0 | M190: =L190*$M$5 -> 0 | N190: =SUM(L190+M190)*$N$5 -> 0 | O190: =IF($O$65=FALSE,SUM(L190:N190),SUM(L190:N190)/24*27) -> 0
A191: 57 | B191: 12x120 mm skyggepanel, gran (10 mm fuge) | C191: 0 | E191: 45.8122513 | F191: 0.246 | H191: 0 | I191: 45.8122513 | J191: 11.45306282 | K191: 110.51304 | L191: 167.7783541 | M191: -167.7783541 | N191: 0 | O191: 0
A192: 58 | B192: 14x145 mm skyggepanel, gran (10 mm fuge) | C192: 0 | E192: 43.07486342 | F192: 0.246 | H192: 0 | I192: 43.07486342 | J192: 10.76871586 | K192: 110.51304 | L192: 164.3566193 | M192: -164.3566193 | N192: 0 | O192: 0
A193: 59 | B193: 14x95 mm rundfaspanel, gran (perlestaff) | C193: 0 | E193: 64.6707793 | F193: 0.25 | H193: 0 | I193: 64.6707793 | J193: 16.16769482 | K193: 112.31 | L193: 193.1484741 | M193: -193.1484741 | N193: 0 | O193: 0
A194: 60 | B194: 14x120 mm glattpanel, gran | C194: 0 | E194: 50.96062944 | F194: 0.246 | H194: 0 | I194: 50.96062944 | J194: 12.74015736 | K194: 110.51304 | L194: 174.2138268 | M194: -174.2138268 | N194: 0 | O194: 0
A195: 61 | B195: 14x145 mm glattpanel, gran | C195: 0 | E195: 43.07486342 | F195: 0.246 | H195: 0 | I195: 43.07486342 | J195: 10.76871586 | K195: 110.51304 | L195: 164.3566193 | M195: -164.3566193 | N195: 0 | O195: 0
H197: =E197*$H$5 -> 0 | I197: =SUM(E197+H197) -> 0 | J197: =I197*$J$5 -> 0 | K197: =F197*$N$2 -> 0 | L197: =SUM(I197:K197) -> 0 | M197: =L197*$M$5 -> 0 | N197: =SUM(L197+M197)*$N$5 -> 0 | O197: =IF($O$65=FALSE,SUM(L197:N197),SUM(L197:N197)/24*27) -> 0
B198: HIMLING / SKRÅTAK
A200: 1 | B200: HUNTONIT BASIC CEILING | E200: FALSE | F200: 0
A201: 2 | B201: Huntonit Antikk (standard), Rullemalt Hvit glatt NCS S 0502-Y Vannbasert acryl Glans 20, 11x620x1220 mm | C201: 29721180 | E201: 0 | H201: =E201*$H$5 -> 0 | I201: =SUM(E201+H201) -> 0 | J201: =I201*$J$5 -> 0 | K201: =F201*$N$2 -> 0 | L201: =SUM(I201:K201) -> 0 | M201: =L201*$M$5 -> 0 | N201: =SUM(L201+M201)*$N$5 -> 0 | O201: =SUM(L201:N201) -> 0
B202: Huntonit Antikk, Kostemalt Brilliant Hvit NCS S 0500-N Vannbasert acryl Glans 20, 11x620x1220 mm | C202: 48632814
B203: Huntonit Antikk, Kostemalt Brilliant Hvit NCS S 0500-N Vannbasert acryl Glans 20, 11x300x1220 mm | C203: 48632825
B205: GIPSHIMLING
A206: 3 | B206: 13 mm gipsplate 2-falset (standard) | E206: 0 | H206: =E206*$H$5 -> 0 | I206: =SUM(E206+H206) -> 0 | J206: =I206*$J$5 -> 0 | K206: =F206*$N$2 -> 0 | L206: =SUM(I206:K206) -> 0 | M206: =L206*$M$5 -> 0 | N206: =SUM(L206+M206)*$N$5 -> 0 | O206: =SUM(L206:N206) -> 0
B207: 13 mm gipsplate 4-falset | H207: =E207*$H$5 -> 0 | I207: =SUM(E207+H207) -> 0 | J207: =I207*$J$5 -> 0 | K207: =F207*$N$2 -> 0 | L207: =SUM(I207:K207) -> 0 | M207: =L207*$M$5 -> 0 | N207: =SUM(L207+M207)*$N$5 -> 0 | O207: =SUM(L207:N207) -> 0
B209: VED PROSJEKT
B210: 13 mm Gipsplate (2-falset standard), - sparklet og malt
B212: HUNTONIT TEXTURE CEILING
B213: Huntonit Plankett Rullemalt Hvit struktur, NCS S 0502-Y Vannbasert acryl Glans 20, 11x300x1820mm | C213: 43822293
B214: Huntonit Classique Rullemalt Hvit struktur, NCS S 0502-Y Vannbasert acryl Glans 20, 11x300x1820mm | C214: 29726833
B215: Huntonit Classique Rullemalt Hvit struktur, NCS S 0502-Y Vannbasert acryl Glans 20, 11x300x1220mm | C215: 29734407
B216: Huntonit Classique Rullemalt Hvit struktur, NCS S 0502-Y Vannbasert acryl Glans 20, 11x620x1220mm | C216: 29721297
B217: Huntonit Symfoni Rullemalt Hvit struktur, NCS S 0502-Y Vannbasert acryl Glans 20, 11x300x1820mm | C217: 29734449
B218: Huntonit Symfoni Rullemalt Hvit struktur, NCS S 0502-Y Vannbasert acryl Glans 20, 11x300x1220mm | C218: 29734431
B219: Huntonit Wood Ceiling lasert Frappe, 11x300x1820mm | C219: 46741285
B221: BRANNIT CEILING | H221: =E221*$H$5 -> 0 | I221: =SUM(E221+H221) -> 0 | J221: =I221*$J$5 -> 0 | K221: =F221*$N$2 -> 0 | L221: =SUM(I221:K221) -> 0 | M221: =L221*$M$5 -> 0 | N221: =SUM(L221+M221)*$N$5 -> 0 | O221: =SUM(L221:N221) -> 0
B222: Huntonitt Brannit tak, Rullemalt Hvit NCS S 0502-Y, 11x620x1220 | C222: 29737111 | E222: 61.95 | F222: 0 | H222: 0 | I222: 61.95 | J222: 15.4875 | K222: 0 | L222: 77.4375 | M222: -77.4375 | N222: 0 | O222: 0
H223: 0 | I223: 0 | J223: 0 | K223: 0 | L223: 0 | M223: 0 | N223: 0 | O223: 0
B224: MALT PANELBORD (HUNTONIT - MDF)
B225: Södra Bever Takpanel Eksklusiv (MDF), Kostemalt Hvit NCS S 0502-Y Glans 15, 11x128x4200 mm | C225: 46251183
B226: Huntonit Panelbord Skygge, Kostemalt Hvit NCS S 0502-Y Vann acryl Glans 20, 11x142x2420 mm (netto 11x125x2400) | C226: 49511401
B227: Huntonit Panelbord Skygge, Kostemalt Hvit NCS S 0502-Y Vann acryl Glans 20, 11x200x2420 mm (netto 11x180x2400) | C227: 45405076
... 516 more rows

Sheet Referanser (hidden)
B1: Diverse | D1: - PRODUKSJONSBESKRIVELSE
B2: Ja | F2: Leveres av: Forbruker (kjøper) | H2: Krav til trinnfri adkomst
B3: Nei | D3: Leveres | F3: ="Leveres av: "&Produksjonsbeskrivelse!$B$4 -> Leveres av: Konsmo Fabrikker AS | H3: Ikke krav til trinnfri adkomst
B4: Vet ikke | D4: Leveres ikke
B5: Konsmohus standard | F5: Leveres av: Forbruker (kjøper) | H5: Trinnfritt uten trapp og rampe
B6: Alternativ standard | D6: Nei | F6: ="Leveres av: "&Produksjonsbeskrivelse!$B$4 -> Leveres av: Konsmo Fabrikker AS | H6: Platting/trapp i betong, - uten rampe
B7: Annen standard | D7: Ja | F7: Skal ikke installeres | H7: Platting/trapp og rampe i betong
B8: Lavere enn 4,40 meter | H8: Platting/trapp i tre, - uten rampe
B9: Mellom 4,40-4,80 meter | D9: TEK 17 | H9: Platting/trapp og rampe i tre
B10: Over 4,80 meter | D10: SKJERPET TEK 10
D11: ORDINÆR TEK 10
H12: Standard nedstikk ved treplatting
H13: Opptrukket ved betong og terreng
B14: Vet ikke
B15: Mur | D15: Støpt plate | F15: Grunnmur | H15: Pipe
D17: Støpt plate (Detalj A-200) | F17: Støpt mur m/ utvendig isolering + event innvendig påforing (detalj B-201) | H17: Elementpipe / Venti pipe inkl. røkhatt
D18: Støpt plate m/ringmursystem (Detalj A-202) | F18: Leca 250 mm isoblokk (detalj B-200) | H18: Stålpipe komplett med beslag og røkhatt
D19: Støpt plate m/oppkant (garasje detalj A-209) | F19: Sprøytebetong mur (detalj B-202) | H19: Leveres ikke
D20: Spesial (angi nødvendig informasjon her eller under merknad) | F20: Uisolert mur for stubbegolv (detalj B-207)
F21: Spesial (angi nødvendig informasjon her eller under merknad)
B23: Rørlegger | D23: Vannbåren varmeanlegg | H23: Type toalett
B24: Leveres av: Forbruker (kjøper) | F24: Iflg. tilbud fra rørlegger datert
B25: ="Leveres av: "&Produksjonsbeskrivelse!$B$4 -> Leveres av: Konsmo Fabrikker AS | D25: Leveres ikke | H25: Standard gulvmontert
B26: Iflg. tilbud fra rørlegger datert | D26: Leveres som gulv-varme i støpt plate | H26: Veggmontert med kasse
D27: Leveres som gulv-varme i støpt plate og deler av trebjelkelag | H27: Veggmontert med sisterne i vegg
D28: Leveres som gulv-varme i støpt plate, deler av trebjelkelag, samt radiatorvarme loft | H28: Veggmointert med kasse og med sisterne i vegg
B29: Ventilasjon/sentralstøvsuger/tilleggsinstallasjoner: | F29: Tekniske tillegginstallasjoner | H29: Farge Ventildeksel | I29: Ant. | J29: Plassering
F31: Sentralstøvsuger | H31: Sort | I31: 0 | J31: I sokkel kjøkken
B32: Villavent med 1 stk. Slangesett 11,0 m Premium, komplett | D32: Ved gulvlist | F32: Sentralstøvsuger og varmepumpe luft-luft | H32: Hvitt | I32: 1 | J32: Ved benkeplate kjøkken
B33: Villavent med 2 stk. Slangesett 11,0 m Premium, komplett | D33: Bryterhøyde | F33: Varmepumpe luft-luft | I33: 2 | J33: Vindfang
F34: Sentralstøvsuger og vannbåren varmeanlegg | I34: 3
F35: Vannbåren varmeanlegg | I35: 4
B36: Blikkenslager | D36: Renner/Nedløp/Takfotbeslag | F36: Fage Grøvikrenna T125 | H36: Stålrenner | J36: Kilrenner | L36: Pipebeslag
D37: =IF(Produksjonsbeskrivelse!I$130=0,"",IF(Produksjonsbeskrivelse!I$130=Referanser!D$47,F37,IF(Produksjonsbeskrivelse!I$130=Referanser!D$48,Referanser!H37))) -> 
B38: Blikkenslager lokalt | D38: =IF(Produksjonsbeskrivelse!I$130=0,"",IF(Produksjonsbeskrivelse!I$130=Referanser!D$47,F38,IF(Produksjonsbeskrivelse!I$130=Referanser!D$48,Referanser!H38))) ->  | F38: Sort, NCS 8601-R84B | H38: Sort | J38: Sorte | L38: Sort
B39: Med fra fabrikk / Levert direkte | D39: =IF(Produksjonsbeskrivelse!I$130=0,"",IF(Produksjonsbeskrivelse!I$130=Referanser!D$47,F39,IF(Produksjonsbeskrivelse!I$130=Referanser!D$48,Referanser!H39))) ->  | F39: Hvit, NCS 0903-G35Y | H39: Hvit | J39: Røde | L39: Rødt
D40: =IF(Produksjonsbeskrivelse!I$130=0,"",IF(Produksjonsbeskrivelse!I$130=Referanser!D$47,F40,IF(Produksjonsbeskrivelse!I$130=Referanser!D$48,Referanser!H40))) ->  | F40: Mørk Grå, NCS 8005-B20G | L40: Lys grått
D41: =IF(Produksjonsbeskrivelse!I$130=0,"",IF(Produksjonsbeskrivelse!I$130=Referanser!D$47,F41,IF(Produksjonsbeskrivelse!I$130=Referanser!D$48,Referanser!H41))) ->  | F41: Sølv Metallic, Sølv RAL 9006
D42: =IF(Produksjonsbeskrivelse!I$130=0,"",IF(Produksjonsbeskrivelse!I$130=Referanser!D$47,F42,IF(Produksjonsbeskrivelse!I$130=Referanser!D$48,Referanser!H42))) ->  | F42: Ubehandlet Aluminium
F46: Med fra fabrikk
D47: Aluminium, Grøvik T125 | F47: Leveres av Blikkenslager | H47: Leveres uten røkhatt
D48: Stål | F48: Leveres ikke | H48: Leveres ikke
B49: Oppvarmingskilder
B51: Varmepumpe luft-luft leveres av: Forbruker (kjøper)
B52: Vamepumpe luft-luft leveres av: Konsmo Fabrikker AS
B53: Varmepumpe luft-vann for vannbåren varme leveres av: Forbruker (kjøper)
B54: Vamepumpe luft-vann for vannbåren varme leveres av: Konsmo Fabrikker AS
B55: Skal ikke installeres
B57: Tømrerleveranse
B59: Komplett leveranse
B60: Uten innredet loftsplan
B61: Utvendig leveranse (skall)
B62: Ingen leveranse
B63: Veggtykkelse
B64: 250 mm (48x198+48x48 mm)
B65: 200 mm (48x148+48x48 mm)
B66: 150 mm (48x148 mm)
B67: 100 mm (48x98 mm)
B68: Taktekke | D68: FARGE DOBBELTKRUM | F68: Farge snøfangerbeslag og stigetrinn
B70: Leveres ikke | D70: Koksgrå | F70: Sort
B71: Skarpnes Dobbeltkrum betongtakstein | D71: Edel Sort | F71: Teglrød
B72: Skarpnes Enkeltkrum betongtakstein | D72: Edle Antrasitt | F72: Mørk rød
B73: Skarpnes Dobbeltkrum betongtakstein - RU | D73: Antikk | F73: Galvanisert
B74: Skarpnes Melodie tegl | D74: Antikk Wet Look
B75: Skarpnes Futura tegl | D75: Rød | F75: Domino sort
B76: Skarpnes Domino tegl (Obs - Krever annet undertak!) | D76: Edel Rød | F76: Domino galvanisert
D77: Teglrød
B78: Derbi Colour membrantekking | D78: Edel Teglrød
B79: Protan membrantekking u/lister
B80: Membrantekking m/lister | D80: FARGE ENKELTKRUM
B81: Torvtak | D81: Koksgrå
D82: Edel Sort
D83: Antikk
D84: Rød
D85: Edel Rød
B86: Gavlstein | D86: Teglrød
D87: Edel Teglrød
B88: Leveres ikke (std. vindski og vannbord)
B89: Leveres | D89: FARGE DOBBELTKRUM RU
D90: RU Antikk
D91: RU Lys grå
D92: RU Skifergrå
D93: Ru Sort
D94: RU Rød
D96: FARGE MELODIE TEGL
D97: Naturrød
D98: Kobberrød Nuance Engobert
D99: Sort Finesse+, glasset
D100: Antrasitt Nuance Engobert
D102: FARGE FUTURA TEGL
D103: Sort Noblesse, glassert
D104: Rød Finesse, glassert
D105: Rødbrun Finesse, glassert
D106: Antrasitt Nuance Engobert
D107: Kobberrød Nuance Engobert
D108: Naturrød
D110: FARGE DOMINO TEGL
D111: Antrasitt Nuance Engobert
D112: Sort matt Nuance Engobert
D113: Kobberrød Nuance Engobert
D114: Skifer Finesse, glassert
D115: Sort Finesse, glassert
D116: Naturrød
B119: Undertak
B121: 18 mm Hunton Undertak + Omega 100 duk for takstein (standard)
B122: 3 mm sutaksplater for takstein
B123: 15 mm rupanel og papp for takstein
B124: 12 mm OSB finer og papp for takstein
B125: 15 /18 mm OSB finer for membrantekking
B126: Luftet undertak for membrantekking
B127: Spesial for torvtekking (torvtaksmembran)
B128: Utvendig kledning | C128: =IF(Produksjonsbeskrivelse!C169=Referanser!D130,C130,IF(Produksjonsbeskrivelse!C169=Referanser!D131,C131,(IF(Produksjonsbeskrivelse!C169=Referanser!D132,Referanser!C132,0)))) -> 0 | D128: Behandling | F128: Farge kledning | H128: Farge detaljer utvendig
B130: LIGGENDE: | C130: BH1 | D130: Trykkimpregnert (CU) | F130: STANDARD FARGER: | H130: Som kledning
B131: 19x148 mm Dobbelfals med staff, liggende | C131: BH2 | D131: Royalimpregnert | F131: Jotun: 1453 Bomull (hvit) - NCS S 0502-Y
B132: 19x148 mm Dobbelfals gammel type 28°, liggende | C132: BH3 | D132: Gran, ubehandlet | F132: Jotun: 1016 Blek Sand - NCS S 2005-Y20R | H132: STANDARD FARGER:
B133: 19x148 mm Dobbelfals ny type 60°, liggende | F133: Jotun: 1434 Labrador - NCS S 7502-Y | H133: Jotun: 1453 Bomull (hvit) - NCS S 0502-Y
B134: 19x148 mm Dobbelfals med spor, 60°, liggende | C134: BH4 | D134: Ubehandlet | F134: Jotun: 9930 Tåkedis - NCS S 3000-N | H134: Jotun: 1016 Blek Sand - NCS S 2005-Y20R
C135: BH5 | D135: Grunnet Visir, 1 strøk | H135: Jotun: 1434 Labrador - NCS S 7502-Y
B136: STÅENDE: | C136: BH6 | D136: Grunnet Visir + Drygolin Ultimat (Mellomstrøk) | H136: Jotun: 9930 Tåkedis - NCS S 3000-N
B137: 19x98/123/148 mm Låvekledning miks, stående tett | C137: BH7 | D137: Grunnet 1 strøk Jotun Industri Opaque Primer (Dekkende grunning) | F137: ROYALIMPREGNERTE FARGER:
B138: 19x123 mm Rektangulær, stående | C138: BH8 | D138: Jotun Industri Opaque Primer (Dekkende grunning) + Drygolin Ultimat (Mellomstrøk) | F138: RS.30 Nordisk sort | H138: ROYALIMPREGNERTE FARGER:
B139: 19x123 mm Empire, stående | F139: RG.20 Leirgrå | H139: RS.30 Nordisk sort
B140: 19x148 mm Dobbelfals rett kant, stående | F140: RB.10 Tjærebrun | H140: RG.20 Leirgrå
B141: 19x148 mm Dobbelfals rett kant med spor, stående | C141: =IF(Produksjonsbeskrivelse!C169=Referanser!D131,Referanser!C131,IF(Produksjonsbeskrivelse!C170=Referanser!D134,Referanser!C134,IF(Produksjonsbeskrivelse!C170=Referanser!D135,Referanser!C135,IF(Produksjonsbeskrivelse!C170=Referanser!D136,Referanser!C136,IF(Produksjonsbeskrivelse!C170=Referanser!D137,Referanser!C137,IF(Produksjonsbeskrivelse!C170=Referanser!D138,Referanser!C138,0)))))) -> 0 | D141: Fargekonsekvens kledning | F141: RY.20 Okergul | H141: RB.10 Tjærebrun
F142: RR.20 Låverød | H142: RY.20 Okergul
B143: ANDRE TYPER: | D143: =IF(OR(OR(C$141=C$136),(C$141=C$137),(C$141=C$138)),F131,IF(C$141=C$131,F138,IF(C$141=C$135,"Standard Visir grunning",IF(C$141=C$134," "," ")))) ->  | F143: RO.0 Værgrå | H143: RR.20 Låverød
B144: 19x148 mm Buer, stående | D144: =IF(OR(OR(C$141=C$136),(C$141=C$137),(C$141=C$138)),F132,IF(C$141=C$131,F139,IF(C$141=C$135," ",IF(C$141=C$134," ")))) -> FALSE | H144: RO.0 Værgrå
B145: 21x145 mm Sweitzer, stående | D145: =IF(OR(OR(C$141=C$136),(C$141=C$137),(C$141=C$138)),F133,IF(C$141=C$131,F140,IF(C$141=C$135," ",IF(C$141=C$134," ")))) -> FALSE | F145: Fargekonsekvens detaljer
B146: 19x120 mm Dobbelfals rettkant, stående | D146: =IF(OR(OR(C$141=C$136),(C$141=C$137),(C$141=C$138)),F134,IF(C$141=C$131,F141,IF(C$141=C$135," ",IF(C$141=C$134," ")))) -> FALSE
B147: 19x73 (148) mm Dobbelfals rettkant, stående | D147: =IF(OR(OR(C$141=C$136),(C$141=C$137),(C$141=C$138)),F135,IF(C$141=C$131,F142,IF(C$141=C$135," ",IF(C$141=C$134," ")))) -> FALSE | F147: =IF(OR(OR(C$141=C$137),(C$141=C$138),(C$141=C$139)),H130,IF(C$141=C$131,H$130,IF(C$141=C$132,H$130,IF(C$141=C$134,H$130,IF(C$141=C$135,H130,IF(C$141=C$136,H130)))))) -> Som kledning
B148: Villmarkspanel, liggende | D148: FALSE | F148: =IF(OR(OR(C$141=C$137),(C$141=C$138),(C$141=C$139)),H131,IF(C$141=C$131," ",IF(C$141=C$132," ",IF(C$141=C$134," ",IF(C$141=C$135," ",IF(C$141=C$136,H131)))))) -> 
B149: Vilmarkspanel, stående | C149: =IF(Produksjonsbeskrivelse!C169=Referanser!D131,Referanser!C131,IF(Produksjonsbeskrivelse!C170=Referanser!D134,Referanser!C134,IF(Produksjonsbeskrivelse!C170=Referanser!D135,Referanser!C135,IF(Produksjonsbeskrivelse!C170=Referanser!D136,Referanser!C136,IF(Produksjonsbeskrivelse!C170=Referanser!D137,Referanser!C137,IF(Produksjonsbeskrivelse!C170=Referanser!D138,Referanser!C138,IF(Produksjonsbeskrivelse!C170=Referanser!D139,Referanser!C139,0))))))) -> 0 | D149: Konsekvens_behandling | F149: STANDARD FARGER:
F150: Jotun: 1453 Bomull (hvit) - NCS S 0502-Y
D151: =IF(C$128=C$130,D134,IF(C$128=C$131,"Royal-farget",IF(C$128=C$132,D134))) -> FALSE | F151: Jotun: 1016 Blek Sand - NCS S 2005-Y20R
D152: =IF(C$128=C$130,D137,IF(C$128=C$131," ",IF(C$128=C$132,D135))) -> FALSE | F152: Jotun: 1434 Labrador - NCS S 7502-Y
D153: =IF(C$128=C$130,D138,IF(C$128=C$131," ",IF(C$128=C$132,D136))) -> FALSE | F153: Jotun: 9930 Tåkedis - NCS S 3000-N
D154: =IF(C$128=C$130," ",IF(C$128=C$131," "," ")) -> 
B156: Staffasje | D156: Mønekryss | F156: Vindusomramming | H156: Farge aluminiumsvannbrett | J156: Bunnstokk
D158: Leveres ikke | F158: Nr. 1 Klassisk | H158: Natureloksert | J158: Leveres ikke
D159: Leveres | F159: Nr. 2 Klassisk | H159: Hvit | J159: Levers i h.h.t. detaljer for valgte kledning
F160: Nr. 3 Klassisk | H160: Mørk brun
D161: Etasjeskille | F161: Nr. 4 Klassisk | H161: Sort | J161: Kinavipp
F162: Nr. 5 Klassisk
D163: Treprofil (farge som kledning) | F163: Nr. 1 Moderne | J163: Leveres ikke
D164: Aluminiumsprofil (farge tilpasses farge på kledning) | F164: Nr. 2 Moderne m/aluminiumvannbrett | J164: 4 " kinavipp leveres
F165: Nr. 3 Moderne m/trevannbrett | J165: 7" kinavipp leveres
F166: Nr. 4 Moderne m/aluminiumvannbrett under
B168: Hoveddører | F168: Farger | H168: Karm | J168: Glass Ytterdører
F170: Hvit NCS S 0502-Y (standard) | H170: Hvit NCS S 0502-Y (standard) | J170: Klart glass
F171: Arkitekthvit NCS S 0500-N | H171: Arkitekthvit NCS S 0500-N | J171: Cotswold glass
F172: Grå NCS S 3502-Y | H172: Grå NCS S 3502-Y | J172: Frostet glass
F173: Mørk grå NCS S 7000-N | H173: Mørk grå NCS S 7000-N | J173: Sandblåst / Klart glass
F174: Blå NCS S 5020-R90B | H174: Blå NCS S 5020-R90B
F175: Grønn NCS S 6020-G10Y | H175: Grønn NCS S 6020-G10Y
F176: Rød NCS S 2570-Y90R | H176: Rød NCS S 2570-Y90R
F177: Bonderød NCS S 4050-Y80R | H177: Bonderød NCS S 4050-Y80R
F178: Svart NCS S 9000-N | H178: Svart NCS S 9000-N
F179: Oljet eik | H179: Oljet eik
B181: Boddør | D181: Kjellerdør
B183: Leveres ikke | D183: Leveres ikke
B184: Bi-inngangsdør tett, hvit (standard) | D184: Bi-inngangsdør tett, hvit (standard)
B185: Bi-inngangsdør med ½ glass, hvit | D185: Bi-inngangsdør med ½ glass, hvit
B186: Swedoor Barentz (hvit) | D186: Swedoor Barentz (hvit)
D187: Swedoor Bizet (hvit)
B188: Balkong og Heve-/skyve-dører
B189: Etasje | D189: Rom | F189: Nr. | H189: Brystning | J189: Låsetype
B191: Hovedplan | D191: Stue | H191: Følg vindu | J191: Innvendig sylinder
B192: Loftsplan | D192: Kjøkken | H192: Minimum | J192: Utvendig sylinder
B193: Kjellerplan | D193: Bod | H193: ½ glass | J193: Dobbel sylinder
B194: 1. etasje | D194: Soverom | H194: ¾ glass | J194: Innvendig låseknapp / Utvendig blindskilt
B195: 2. etasje | D195: Vask
B196: U. etasje | D196: Vask/bod
D197: Spisestue
D198: Loftstue
D199: Kjellerstue
D200: TV-stue | H200: Slagretning/primærdørblad
D201: Gang
H202: Høyre
H203: Venstre
B205: Vinduer | D205: Behandling | F205: Farge utvendig | H205: Farge innvendig | J205: Sprosser
B207: Toppsving UT (standard) | D207: Ferdigmalt ut/innvendig | F207: NCS S 0502-Y Standard hvit | H207: NCS S 0502-Y Standard hvit | J207: 28 mm Knipsepross, utenpåliggende
B208: Sikkerhetsvindu, INN, 3-vrider | D208: Aluminumsbekledning utvendig | F208: Aluminiumsbeslag: RAL | J208: 56 mm Knipsepross, utenpåliggende
B209: Envridervindu INN | J209: 28 mm Knipsespross m/56 mm midtpost
B210: Kombinasjon: fast m/lukkeramme toppsving UT | H210: Farge vridere | J210: Pynteramme i tre iflg. tegning (22,54 og 92 mm)
B211: Kombinasjon: fast m/lukkeramme 3-vrider INN | J211: Kitt sprosse, 28 mm
B212: Fagvindu INN, 3-vrider | H212: Hvit | J212: Duplex sprosse, 28 mm alu utv og 28 mm tre innv.
B213: Sidesving UT, 1-vrider | H213: Børstet | J213: Thermospross, 26 mm, hvit
B214: Sidehengslet UT, 1-vrider | J214: 62 mm Gjennomgående losholt
B215: Sidehengslet UT, hasper | J215: 92 mm Gjennomgående losholt
J216: Leveres ikke
B221: Velux-vinduer
B223: Leveres ikke
B224: 55x78 cm MH GGU 0073
B225: 55x98 cm MH GGU 0073
B226: 55x118 cm MH GGU 0073
B227: 66x118 cm MH GGU 0073
B228: 66x140 cm MH GGU 0073
B229: 78x98 cm MH GGU 0073
B230: 78x118 cm MH GGU 0073
B231: 78x140 cm MH GGU 0073
... 265 more rows

Sheet Salgskontor (hidden)
B1: Salgskontor/forhandler:
A2: 1 | B2: =LOOKUP(A2,A8:A14,B8:B14) -> Hovedkontor
A3: 1 | B3: Hovedkontor | C3: Hovedkontor Breilimoen 15 4525 KONSMO Telefon: 38 28 13 00 E-post: firmapost@konsmohus.no | D3: Konsmo Fabrikker AS
A4: 2 | B4: Mandal | C4: Avd. Mandal Torjusheigata 9 4514 MANDAL Telefon: 38 27 15 60 E-post: mandal@konsmohus.no | D4: Konsmo Fabrikker AS
A5: 3 | B5: Kristiansand | C5: Avd. Kristiansand Gyldenløvesgate 31 4614 KRISTIANSAND Telefon: 38 00 65 20 E-post: kristiansand@konsmohus.no | D5: Konsmo Fabrikker AS
A6: 4 | B6: Arendal | C6: Avd. Arendal Åsbieveien 9C 4848 ARENDAL Telefon: 38 28 13 00 E-post: arendal@konsmohus.no | D6: Konsmo Fabrikker AS
A7: 5 | B7: Øst | C7: Avd. Øst Buskerudveien 129 3027 DRAMMEN Telefon: 934 44 411 E-post: lars.berglund@konsmohus.no | D7: Konsmo Fabrikker AS
B8: Forhandlere:
A9: 1 | B9: Hovedkontor | C9: Hovedkontor Breilimoen 15 4525 KONSMO Telefon: 38 28 13 00 E-post: firmapost@konsmohus.no | D9: Konsmo Fabrikker AS
A10: 2 | B10: Asker & Bærum Hus AS | C10: Bjerkealleen 4 B 1636 HØVIK Telefon: 67 83 90 25 E-post: post@abhus.no | D10: Asker & Bærum Hus AS
A11: 3 | B11: Wax Hus AS | C11: Buskerudveien 105 3027 DRAMMEN Telefon: 32 82 66 40 E-post: post@waxhus.no | D11: Wax Hus AS
A12: 4 | B12: Mesterbygg Vestfold AS | C12: Postboks 66 7 Haslebakken 4 3209 / 3229 SANDEFJORD Telefon: 467 67 800 E-post: post@mesterbyggvestfold.no | D12: Mesterbygg Vestfold AS
A13: 5 | B13: Byggmester Olaf Haugland | C13: Kalstadveien 3770 KRAGERØ Telefon: 922 85 330 E-post: olafhau2@online.no | D13: Byggmester Olaf Haugland
A14: 6 | B14: Seglem & Åse AS | C14: Storevollsveien 11 4372 EGERSUND Telefon: 976 86 110 E-post: helge.ase@dabb.no | D14: Seglem & Åse AS

Sheet Kalkyle endriger (hidden)
C1: KONSMO FABRIKKER AS
C2: ENDRINGSKALKYLE
A4: Byggherre: | C4: =IF(Produksjonsbeskrivelse!B14=" "," ",Produksjonsbeskrivelse!B14) -> 0
A5: Tegningsdato: | C5: =IF(Produksjonsbeskrivelse!D49=" "," ",Produksjonsbeskrivelse!D49) -> 00:00:00
A6: Kalkulert dato: | C6: =IF(Produksjonsbeskrivelse!K5=" "," ",Produksjonsbeskrivelse!K5) -> 00:00:00
A7: Kalkulert av: | C7: =IF(Produksjonsbeskrivelse!B30=" "," ",Produksjonsbeskrivelse!B30) -> 0
A9: Endringer:
A11: EP | B11: 2E | C11: ENH | D11: MATERIAL | E11: SUM | F11: MATR. | G11: ARB. | H11: SUM MATR. | I11: SUM ARB.
D12: VEGGPLATER
C13: mod | D13: Huntonit Skygge 5 bord, Kostemalt Caffelatte NCS S 1005-Y30R Vannbasert acryl Glans 20, h=2390 | E13: =A13+B13 -> 0 | H13: =E13*F13 -> 0 | I13: =E13*G13 -> 0
C14: mod | E14: =A14+B14 -> 0 | H14: 0 | I14: 0
C15: mod | E15: 0 | H15: 0 | I15: 0
C16: mod | E16: 0 | H16: 0 | I16: 0
C17: mod | E17: 0 | H17: 0 | I17: 0
C18: mod | E18: 0 | H18: 0 | I18: 0
C19: mod | E19: 0 | H19: 0 | I19: 0
C20: mod | E20: 0 | H20: 0 | I20: 0
C21: mod | E21: 0 | H21: 0 | I21: 0
C22: mod | E22: 0 | H22: =E22*F22 -> 0 | I22: =E22*G22 -> 0
C23: mod | E23: 0 | H23: 0 | I23: 0
C24: mod | E24: 0 | H24: 0 | I24: 0
C25: mod | E25: 0 | H25: 0 | I25: 0
C26: mod | E26: 0 | H26: 0 | I26: 0
E27: 0 | H27: 0 | I27: 0
D28: HIMLINGER / SKRÅTAK | E28: 0 | H28: 0 | I28: 0
C29: m² | E29: 0 | H29: 0 | I29: 0
C30: m² | E30: 0 | H30: =E30*F30 -> 0 | I30: =E30*G30 -> 0
C31: m² | E31: 0 | H31: =E31*F31 -> 0 | I31: =E31*G31 -> 0
C32: m² | E32: 0 | H32: =E32*F32 -> 0 | I32: =E32*G32 -> 0
C33: m² | E33: 0 | H33: =E33*F33 -> 0 | I33: =E33*G33 -> 0
C34: m² | E34: 0 | H34: =E34*F34 -> 0 | I34: =E34*G34 -> 0
C35: m² | E35: 0 | H35: 0 | I35: 0
C36: m² | E36: 0 | H36: 0 | I36: 0
C37: m² | E37: 0 | H37: 0 | I37: 0
C38: m² | E38: 0 | H38: 0 | I38: 0
C39: m² | E39: 0 | H39: 0 | I39: 0
C40: m² | E40: 0 | H40: 0 | I40: 0
C41: m² | E41: 0 | H41: 0 | I41: 0
C42: m² | E42: 0 | H42: 0 | I42: 0
C43: m² | E43: 0 | H43: 0 | I43: 0
E44: 0 | H44: 0 | I44: 0
E45: 0 | H45: 0 | I45: 0
E46: 0 | H46: 0 | I46: 0
E47: 0 | H47: 0 | I47: 0
E48: 0 | H48: 0 | I48: 0
E49: 0 | H49: 0 | I49: 0
E50: 0 | H50: =E50*F50 -> 0 | I50: =E50*G50 -> 0
D51: Endringer, netto | H51: =SUM(H12:H50) -> 0 | I51: =SUM(I12:I50) -> 0
B54: Sammenstilling byggesett
B55: Endringer byggesett, netto | H55: =H51 -> 0
A56: 0 | B56: Dekningsbidrag | H56: =H55*A56 -> 0
B57: Sum endringer byggesett | H57: =SUM(H55:H56) -> 0
A58: 0 | B58: Prisstigning | H58: =H57*A58 -> 0
B59: Endringer byggesett, ekskl. mva. | H59: =SUM(H57:H58) -> 0
A60: 0.25 | B60: Mva. | H60: =H59*A60 -> 0
B61: Endringer byggesett, inkl. mva. | H61: =H59+H60 -> 0
B64: Sammenstilling tømmermannsarbeider
B65: Akkordsum endringer tømmermannsarb., netto | E65: =H65/G65 -> 0 | F65: timer a kr | G65: 280 | H65: =I51 -> 0
A66: 0.05 | B66: Tillegg (tilpasning til nye energikrav) | E66: =E65*A66 -> 0 | H66: =E66*G65 -> 0
A67: 0.12 | B67: Dagtid | H67: =H65*A67 -> 0
A68: 0.4 | B68: Sosiale utgifter | H68: =SUM(H65:H67)*A68 -> 0
A69: 0.1 | B69: Kjøreutgifter | H69: =SUM(H65:H68)*A69 -> 0
B70: Verktøygodtgjørelse | E70: =E65 -> 0 | F70: =F65 -> timer a kr | G70: 8 | H70: =E70*G70 -> 0
B71: Sum endringer tømmermannsarb. | H71: =SUM(H65:H70) -> 0
A72: =A56 -> 0 | B72: Dekningsbidrag | H72: =H71*A72 -> 0
B73: Sum endringer byggesett | H73: =SUM(H71:H72) -> 0
A74: =A58 -> 0 | B74: Prisstigning | H74: =H73*A74 -> 0
B75: Endringer tømmermannsarb., ekskl. mva. | H75: =H73+H74 -> 0
A76: =A60 -> 0.25 | B76: Mva. | H76: =H75*A76 -> 0
B77: Endringer tømmermannsarb., inkl. mva. | H77: =H75+H76 -> 0
B79: MATERIALER OG MONTASJE | F79: inkl. MVA | H79: =H61+H77 -> 0

Sheet Rombeskrivelse (hidden)
A3: Etasje | B3: Rom_nr_0 | C3: Rom_nr_1 | D3: Rom_nr_2 | E3: Rom_nr_3 | G3: Rom_1 | H3: Rom_2 | I3: Rom_3 | J3: Rom_4 | K3: Rom_5 | L3: Rom_6 | M3: Rom_7 | N3: Rom_8 | O3: Rom_9 | P3: Rom_10 | Q3: Rom_11 | R3: Rom_12 | S3: Rom_13 | T3: Rom_14 | U3: Rom_15 | V3: Rom_16 | W3: Rom_17 | X3: Rom_18
G5: =Produksjonsbeskrivelse!$B407 -> 0 | H5: =Produksjonsbeskrivelse!$B420 -> 0 | I5: =Produksjonsbeskrivelse!$B433 -> 0 | J5: =Produksjonsbeskrivelse!$B446 -> 0 | K5: =Produksjonsbeskrivelse!$B459 -> 0 | L5: =Produksjonsbeskrivelse!$B472 -> 0 | M5: =Produksjonsbeskrivelse!$B492 -> 0 | N5: =Produksjonsbeskrivelse!$B505 -> 0 | O5: =Produksjonsbeskrivelse!$B518 -> 0 | P5: =Produksjonsbeskrivelse!$B531 -> 0 | Q5: =Produksjonsbeskrivelse!$B544 -> 0 | R5: =Produksjonsbeskrivelse!$B557 -> 0 | S5: =Produksjonsbeskrivelse!$B577 -> 0 | T5: =Produksjonsbeskrivelse!$B590 -> 0 | U5: =Produksjonsbeskrivelse!$B603 -> 0 | V5: =Produksjonsbeskrivelse!$B616 -> 0 | W5: =Produksjonsbeskrivelse!$B629 -> 0 | X5: =Produksjonsbeskrivelse!$B642 -> 0
A7: 1. etg. | B7: 0:1 | C7: 1:1 | D7: 2:1 | E7: 3:1 | G7: =IF(G$5="Hovedplan",Rom_nr_1,IF(G$5="1. etg.",Rom_nr_1,IF(G$5="Loftsplan",Rom_nr_2,IF(G$5="2. etg.",Rom_nr_2,IF(G$5="Underetg.",Rom_nr_0,IF(G$5="Kjeller",Rom_nr_0,IF(G$5="Sokkeletg.",Rom_nr_0,IF(G$5="3. etg.",Rom_nr_3,IF(G$5="Loft",Rom_nr_3))))))))) -> FALSE | H7: FALSE | I7: FALSE | J7: FALSE | K7: FALSE | L7: FALSE | M7: FALSE | N7: FALSE | O7: FALSE | P7: FALSE | Q7: =IF(Q$5="Hovedplan",Rom_nr_1,IF(Q$5="1. etg.",Rom_nr_1,IF(Q$5="Loftsplan",Rom_nr_2,IF(Q$5="2. etg.",Rom_nr_2,IF(Q$5="Underetg.",Rom_nr_0,IF(Q$5="Kjeller",Rom_nr_0,IF(Q$5="Sokkeletg.",Rom_nr_0,IF(Q$5="3. etg.",Rom_nr_3,IF(Q$5="Loft",Rom_nr_3))))))))) -> FALSE | R7: FALSE | S7: FALSE | T7: FALSE | U7: FALSE | V7: FALSE | W7: FALSE | X7: FALSE
A8: Hovedplan | B8: 0:2 | C8: 1:2 | D8: 2:2 | E8: 3:2 | G8: FALSE | H8: FALSE | I8: FALSE | J8: FALSE | K8: FALSE | L8: FALSE | M8: FALSE | N8: FALSE | O8: FALSE | P8: FALSE | Q8: FALSE | R8: FALSE | S8: FALSE | T8: FALSE | U8: FALSE | V8: FALSE | W8: FALSE | X8: FALSE
A9: 2. etg. | B9: 0:3 | C9: 1:3 | D9: 2:3 | E9: 3:3 | G9: FALSE | H9: FALSE | I9: FALSE | J9: FALSE | K9: FALSE | L9: FALSE | M9: FALSE | N9: FALSE | O9: FALSE | P9: FALSE | Q9: FALSE | R9: FALSE | S9: FALSE | T9: FALSE | U9: FALSE | V9: FALSE | W9: FALSE | X9: FALSE
A10: Loftsplan | B10: 0:4 | C10: 1:4 | D10: 2:4 | E10: 3:4 | G10: FALSE | H10: FALSE | I10: FALSE | J10: FALSE | K10: FALSE | L10: FALSE | M10: FALSE | N10: FALSE | O10: FALSE | P10: FALSE | Q10: FALSE | R10: FALSE | S10: FALSE | T10: FALSE | U10: FALSE | V10: FALSE | W10: FALSE | X10: FALSE
A11: 3. etg. | B11: 0:5 | C11: 1:5 | D11: 2:5 | E11: 3:5 | G11: FALSE | H11: FALSE | I11: FALSE | J11: FALSE | K11: FALSE | L11: FALSE | M11: FALSE | N11: FALSE | O11: FALSE | P11: FALSE | Q11: FALSE | R11: FALSE | S11: FALSE | T11: FALSE | U11: FALSE | V11: FALSE | W11: FALSE | X11: FALSE
A12: Loft | B12: 0:6 | C12: 1:6 | D12: 2:6 | E12: 3:6 | G12: FALSE | H12: FALSE | I12: FALSE | J12: FALSE | K12: FALSE | L12: FALSE | M12: FALSE | N12: FALSE | O12: FALSE | P12: FALSE | Q12: FALSE | R12: FALSE | S12: FALSE | T12: FALSE | U12: FALSE | V12: FALSE | W12: FALSE | X12: FALSE
A13: Underetg. | B13: 0:7 | C13: 1:7 | D13: 2:7 | E13: 3:7 | G13: FALSE | H13: FALSE | I13: FALSE | J13: FALSE | K13: FALSE | L13: FALSE | M13: FALSE | N13: FALSE | O13: FALSE | P13: FALSE | Q13: FALSE | R13: FALSE | S13: FALSE | T13: FALSE | U13: FALSE | V13: FALSE | W13: FALSE | X13: FALSE
A14: Kjeller | B14: 0:8 | C14: 1:8 | D14: 2:8 | E14: 3:8 | G14: FALSE | H14: FALSE | I14: FALSE | J14: FALSE | K14: FALSE | L14: FALSE | M14: FALSE | N14: FALSE | O14: FALSE | P14: FALSE | Q14: FALSE | R14: FALSE | S14: FALSE | T14: FALSE | U14: FALSE | V14: FALSE | W14: FALSE | X14: FALSE
A15: Sokkeletg. | B15: 0:9 | C15: 1:9 | D15: 2:9 | E15: 3:9 | G15: FALSE | H15: FALSE | I15: FALSE | J15: FALSE | K15: FALSE | L15: FALSE | M15: FALSE | N15: FALSE | O15: FALSE | P15: FALSE | Q15: FALSE | R15: FALSE | S15: FALSE | T15: FALSE | U15: FALSE | V15: FALSE | W15: FALSE | X15: FALSE
B16: 0:10 | C16: 1:10 | D16: 2:10 | E16: 3:10 | G16: FALSE | H16: FALSE | I16: FALSE | J16: FALSE | K16: FALSE | L16: FALSE | M16: FALSE | N16: FALSE | O16: FALSE | P16: FALSE | Q16: FALSE | R16: FALSE | S16: FALSE | T16: FALSE | U16: FALSE | V16: FALSE | W16: FALSE | X16: FALSE

Sheet Hörmann-porter (hidden)
A1: Type: | B1: Genrell oversikt | K1: LPU-overflater: | L1: LTE-overflater: | M1: LTH-tresorter: | N1: 15 utvalgte farger: | O1: Sandgrain-farger: | P1: Decograin-overflater: | Q1: Trelasur-farger: | R1: Vindusrekker: | S1: Bredde: | T1: 2250 | U1: 2375 | V1: 2500 | W1: 2625 | X1: 2750 | Y1: 3000 | Z1: 3250 | AA1: 3500 | AB1: 3750 | AC1: 4000 | AD1: 4250 | AE1: 4500 | AF1: 4750 | AG1: 5000 | AH1: 5500 | AI1: 6000 | AK1: Valgte mål: | AL1: =[1]Produksjonsbeskrivelse!H250 -> 6000 | AM1: =[1]Produksjonsbeskrivelse!K250 -> 2000
B2: Hörmann LPU - isolert leddport i stål | C2: Horisontal profil S | D2: Horisontal profil M | E2: Plan profil L | F2: Horisontal profil D | G2: Horisontal profil T | H2: Speil profil | I2: Desognprofil | S2: 2250 | T2: H_1 | U2: H_2 | V2: H_3 | W2: H_4 | X2: H_5 | Y2: H_6 | Z2: H_7
A3: Hörmann LPU - isolert leddport i stål | B3: =IF(A$10<>B$2," ",INDEX(C3:I3,MATCH(A$23,C$2:I$2,0))) ->  | C3: Woodgrain | D3: Woodgrain | E3: Woodgrain | F3: Silkgrain | G3: Silkgrain | H3: Woodgrain | K3: Woodgrain | L3: Woodgrain | M3: Nordisk gran, impregnert | N3: Off-white - RAL 9016 | O3: Off-white - RAL 9016 | P3: Golden Oak: mellombrun, gyllen eikedekor | Q3: Kalkhvit | R3: Levers ikke | S3: 2375 | T3: 1875 | U3: 1875 | V3: 1875 | W3: 2125 | X3: 2000 | Y3: 2000 | Z3: 2000 | AA3: 2000 | AB3: 2000 | AC3: 2000 | AD3: 2000 | AE3: 2000 | AF3: 2000 | AG3: 2000 | AH3: 2000 | AI3: 2000 | AK3: Høydevalg: | AL3: =IF(AL$1=T$1,H_1,IF(AL$1=U$1,H_2,IF(AL$1=V$1,H_3,IF(AL$1=W$1,H_4,IF(AL$1=X$1,H_5,IF(AL$1=Y$1,H_6,IF(AL$1=Z$1,H_7,IF(AL$1=AA$1,H_7,IF(AL$1=AB$1,H_7,IF(AL$1=AC$1,H_7,IF(AL$1=AD$1,H_7,IF(AL$1=AE$1,H_7,IF(AL$1=AF$1,H_7,IF(AL$1=AG$1,H_7,IF(AL$1=AH$1,H_7,IF(AL$1=AI$1,H_7,"")))))))))))))))) -> 2000
A4: Hörmann LTE - uisolert leddport i stål | B4: =IF(A$10<>B$2," ",INDEX(C4:I4,MATCH(A$23,C$2:I$2,0))) ->  | D4: Sandgrain | E4: Sandgrain | H4: Decograin | K4: Sandgrain | M4: Hemlock, impregnert | P4: Dark Oak: nøttefarget eikedekor | Q4: Furu | R4: Vinduer type D | S4: 2500 | T4: 2000 | U4: 2000 | V4: 2000 | X4: 2125 | Y4: 2125 | Z4: 2125 | AA4: 2125 | AB4: 2125 | AC4: 2125 | AD4: 2125 | AE4: 2125 | AF4: 2125 | AG4: 2125 | AH4: 2125 | AI4: 2125 | AL4: 2125
A5: Hörmann LTH - leddport i massivtre | D5: Silkgrain | E5: Micrograin | K5: Micrograin | N5: Aluminiumsgrå - RAL 9007 | O5: Aluminiumshvit - RAL 9006 | P5: Night Oak: mørk, intens eikedekor | Q5: Teak | R5: Vindusrekke med alu-ramme | S5: 2625 | T5: 2125 | U5: 2080 | V5: 2080 | X5: 2250 | Y5: 2250 | Z5: 2250 | AA5: 2250 | AB5: 2250 | AC5: 2250 | AD5: 2250 | AE5: 2250 | AF5: 2250 | AG5: 2250 | AH5: 2250 | AI5: 2250 | AL5: 2250
D6: Decograin | E6: Silkgrain | K6: Silkgrain | N6: Aluminiumshvit - RAL 9006 | O6: Jordbrun - RAL 8028 | P6: Rosewood: mahognifarget tredekor | Q6: Palisander | R6: Classic-vinduer S0 | S6: 2750 | U6: 2125 | V6: 2125 | X6: 2375 | Y6: 2375
E7: Decograin | K7: Decograin | N7: Jordbrun - RAL 8028 | O7: Antrasittgrå - RAL 7016 | P7: Winchester Oak: Naturfarget eikedekor | Q7: Ibenholt | R7: Classic-vinduer M0 | S7: 3000 | U7: 2250 | V7: 2250 | X7: 2500 | Y7: 2500 | AL7: =IF(AL$1=T$1,H_1,IF(AL$1=U$1,H_2,IF(AL$1=V$1,H_3,IF(AL$1=W$1,H_4,IF(AL$1=X$1,H_5,IF(AL$1=Y$1,H_6,IF(AL$1=Z$1,H_7,IF(AL$1=AA$1,H_7,IF(AL$1=AB$1,H_7,IF(AL$1=AC$1,H_7,IF(AL$1=AD$1,H_7,IF(AL$1=AE$1,H_7,IF(AL$1=AF$1,H_7,IF(AL$1=AG$1,H_7,IF(AL$1=AH$1,H_7,IF(AL$1=AI$1,H_7,"")))))))))))))))) -> 
A8: Valgt type: | N8: Leirbrun - RAL 8003 | P8: =IF(A23=K18," ","Titan Metallic CH 703: Antrasitt metalliceff.") -> Titan Metallic CH 703: Antrasitt metalliceff. | Q8: Agatgrå | R8: Classic-vinduer L0 | S8: 3250 | V8: 2375 | X8: 2750 | Y8: 3000 | AL8: =IF(AL$1=T$1,H_1,IF(AL$1=U$1,H_2,IF(AL$1=V$1,H_3,IF(AL$1=W$1,H_4,IF(AL$1=X$1,H_5,IF(AL$1=Y$1,H_6,IF(AL$1=Z$1,H_7,IF(AL$1=AA$1,H_7,IF(AL$1=AB$1,H_7,IF(AL$1=AC$1,H_7,IF(AL$1=AD$1,H_7,IF(AL$1=AE$1,H_7,IF(AL$1=AF$1,H_7,IF(AL$1=AG$1,H_7,IF(AL$1=AH$1,H_7,IF(AL$1=AI$1,H_7,"")))))))))))))))) -> 
B9: Hörmann LTE - uisolert leddport i stål | C9: Horisontal profil S | D9: Horisontal profil M | E9: Speil profil | N9: Okerbrun - RAL 8001 | Q9: Barnålgrønn | R9: Classic-vinduer S1 | S9: 3500 | V9: 2500 | AL9: =IF(AL$1=T$1,H_1,IF(AL$1=U$1,H_2,IF(AL$1=V$1,H_3,IF(AL$1=W$1,H_4,IF(AL$1=X$1,H_5,IF(AL$1=Y$1,H_6,IF(AL$1=Z$1,H_7,IF(AL$1=AA$1,H_7,IF(AL$1=AB$1,H_7,IF(AL$1=AC$1,H_7,IF(AL$1=AD$1,H_7,IF(AL$1=AE$1,H_7,IF(AL$1=AF$1,H_7,IF(AL$1=AG$1,H_7,IF(AL$1=AH$1,H_7,IF(AL$1=AI$1,H_7,"")))))))))))))))) -> 
A10: =IF(Produksjonsbeskrivelse!C250=0," ",Produksjonsbeskrivelse!C250) ->  | B10: =IF(A$10<>B$9," ",INDEX(C10:E10,MATCH(A$23,C$9:I$9,0))) ->  | C10: Woodgrain | D10: Woodgrain | E10: Woodgrain | N10: Vindusgrå - RAL 7040 | Q10: Nordisk rød | R10: Classic-vinduer S2 | S10: 3750 | V10: 2750 | AL10: =IF(AL$1=T$1,H_1,IF(AL$1=U$1,H_2,IF(AL$1=V$1,H_3,IF(AL$1=W$1,H_4,IF(AL$1=X$1,H_5,IF(AL$1=Y$1,H_6,IF(AL$1=Z$1,H_7,IF(AL$1=AA$1,H_7,IF(AL$1=AB$1,H_7,IF(AL$1=AC$1,H_7,IF(AL$1=AD$1,H_7,IF(AL$1=AE$1,H_7,IF(AL$1=AF$1,H_7,IF(AL$1=AG$1,H_7,IF(AL$1=AH$1,H_7,IF(AL$1=AI$1,H_7,"")))))))))))))))) -> 
B11: =IF(A$10<>B$9," ",INDEX(C11:E11,MATCH(A$23,C$9:I$9,0))) ->  | K11: Profiler: | L11: Profiler: | M11: Profiler: | N11: Lysegrå - RAL 7035 | R11: Sunrise-vinduer S10 | S11: 4000
A12: Type med Konsekvens Profil: | N12: Steingrå - RAL 7030 | R12: Sunrise-vinduer S60 | S12: 4250
A13: =IF(A$10=A$3,K2,IF(A$10=A$4,L2,IF(A$10=A$5,M2,""))) ->  | K13: Horisontal profil S | L13: Horisontal profil S | M13: Horisontal profil S | N13: Antrasittgrå - RAL 7016 | R13: Speil V med vinduer V0 | S13: 4500
A14: =IF(A$10=A$3,C2,IF(A$10=A$4,L13,IF(A$10=A$5,M13,""))) ->  | K14: Horisontal profil M | L14: Horisontal profil M | M14: Horisontal profil M | N14: Barnålgrønn - RAL 6009 | S14: 4750
A15: =IF(A$10=A$3,K14,IF(A$10=A$4,L14,IF(A$10=A$5,M14,""))) ->  | K15: Plan profil L | L15: Speil profil | M15: Plan profil L | N15: Mosegrønn - RAL 6005 | S15: 5000
A16: =IF(A$10=A$3,K15,IF(A$10=A$4,L15,IF(A$10=A$5,M15,""))) ->  | B16: Hörmann LTH - leddport i massivtre | C16: Horisontal profil S | D16: Horisontal profil M | E16: Plan profil L | F16: Speil profil | G16: Desognprofil | K16: Horisontal profil D | M16: Speil profil | N16: Dueblå - RAL 5014 | R16: Valgt profil: | S16: 5500
A17: =IF(A$10=A$3,K16,IF(A$10=A$4,L16,IF(A$10=A$5,M16,""))) ->  | B17: =IF(A$10<>B$16," ",INDEX(C17:G17,MATCH(A$23,C$16:G$16,0))) ->  | C17: Nordisk gran | D17: Nordisk gran | E17: Nordisk gran | F17: Nordisk gran | G17: Nordisk gran | K17: Horisontal profil T | M17: Designmotiv: | N17: Stålblå - RAL 5011 | R17: =[1]Produksjonsbeskrivelse!K251 -> Plan profil L med motiv | S17: 6000
A18: =IF(A$10=A$3,K17,IF(A$10=A$4,L17,IF(A$10=A$5,M17,""))) ->  | B18: =IF(A$10<>B$16," ",INDEX(C18:G18,MATCH(A$23,C$16:G$16,0))) ->  | C18: Hemlock | D18: Hemlock | E18: Hemlock | F18: Hemlock | G18: Hemlock | K18: Speil profil | N18: Rubinrød - RAL 3003
A19: =IF(A$10=A$3,K18,IF(A$10=A$4,L18,IF(A$10=A$5,M18,""))) ->  | N19: Elfenbenhvit - RAL 1015 | R19: Konsekvens for vindu:
A21: Valgt profil: | K21: Horisontal profil S | L21: Horisontal profil S | S21: Beslag:
K22: Horisontal profil M | L22: Horisontal profil M | N22: Konsekvens farge:
A23: =Produksjonsbeskrivelse!J250 -> 0 | K23: Plan profil L | L23: Speil profil | S23: Z-beslag
K24: Speil profil | N24: =IF(AND(A$10=A$3,A$36=K$3),N3,IF(AND(A$10=A$3,A$36=K$4),O3,IF(AND(A$10=A$3,A$36=K$5),N3,IF(AND(A$10=A$3,A$36=K$6),N3,IF(AND(A$10=A$3,A$36=K$7),P3,IF(AND(A$10=A$4,A$36=L$3),N$3,IF(AND(A$10=A$5,A$36=M$3),Q3,IF(AND(A$10=A$5,A$36=M$4),Q3,"")))))))) ->  | S24: N-beslag
A25: Profil med Konsekvens overflate: | K25: Horisontal profil M | N25: =IF(AND(A$10=A$3,A$36=K$3),N4,IF(AND(A$10=A$3,A$36=K$4),O4,IF(AND(A$10=A$3,A$36=K$5),N4,IF(AND(A$10=A$3,A$36=K$6),N4,IF(AND(A$10=A$3,A$36=K$7),P4,IF(AND(A$10=A$4,A$36=L$3),N$3,IF(AND(A$10=A$5,A$36=M$3),Q4,IF(AND(A$10=A$5,A$36=M$4),Q4,"")))))))) ->  | S25: L-beslag
K26: Plan profil L | S26: H-beslag
A27: =IF(A$10=A$3,B3,IF(A$10=A$4,B10,IF(A$10=A$5,B17," "))) ->  | K27: Horisontal profil M
A28: =IF(A$10=A$3,B4,IF(A$10=A$4,B11,IF(A$10=A$5,B18," "))) ->  | K28: Plan profil L | S28: Valg_Beslag:
K29: Horisontal profil M | N29: =IF(AND(A$10=A$3,A$36=K$3),N8,IF(AND(A$10=A$3,A$36=K$4),O8,IF(AND(A$10=A$3,A$36=K$5),N8,IF(AND(A$10=A$3,A$36=K$6),N8,IF(AND(A$10=A$3,A$36=K$7),P8,IF(AND(A$10=A$4,A$36=L$3),N$3,IF(AND(A$10=A$5,A$36=M$3),Q8,IF(AND(A$10=A$5,A$36=M$4),Q8,"")))))))) -> 
K30: Plan profil L | S30: =IF(AND(AL$1<Z$1,AM$1<S$6),S23,IF(AL$1>Y$1,S24,"")) -> N-beslag
K31: Plan profil L med motiv | S31: =IF(AND(AL$1<Z$1,AM$1<S$6),S24,IF(AL$1>Y$1,S25,"")) -> L-beslag
K32: Horisontal profil D | S32: H-beslag
K33: Horisontal profil T
A34: Valgt overflate: | K34: Speil profil
K35: Horisontal profil M
A36: =Produksjonsbeskrivelse!C251 -> 0 | K36: Plan profil L
N40: =IF(AND(A$10=A$3,A$36=K$3),N19,IF(AND(A$10=A$3,A$36=K$4),O19,IF(AND(A$10=A$3,A$36=K$5),N19,IF(AND(A$10=A$3,A$36=K$6),N19,IF(AND(A$10=A$3,A$36=K$7),P19,IF(AND(A$10=A$4,A$36=L$3),N$3,IF(AND(A$10=A$5,A$36=M$3),Q19,IF(AND(A$10=A$5,A$36=M$4),Q19,"")))))))) -> 
N56: =IF(AND(A$10=A$3,A$23=K$3),N15,IF(AND(A$10=A$3,A$23=K$4),O15,IF(AND(A$10=A$3,A$23=K$5),N15,IF(AND(A$10=A$3,A$23=K$6),N15,IF(AND(A$10=A$3,A$23=K$7),P15,IF(AND(A$10=A$4,A$23=L$3),N$3,IF(AND(A$10=A$5,A$23=M$3),Q15,IF(AND(A$10=A$5,A$23=M$4),Q15,"")))))))) -> 
A58: Konsekvens designmotiv:
J59: Designmotiver: | K59: 450-rustfritt stål
A60: =IF(AND(A$10=A$3,A$23=K$6,A$36=K$31),K59,IF(AND(A$10=A$3,A$23=K$6,A$36=K$33),K71,"")) ->  | K60: 461-rustfritt stål m/vinduer | L60: Designplassering:
A61: =IF(AND(A$10=A$3,A$23=K$6,A$36=K$31),K60,IF(AND(A$10=A$3,A$23=K$6,A$36=K$33),K72,"")) ->  | K61: 451-rustfritt stål u/vinduer
A62: =IF(AND(A$10=A$3,A$23=K$6,A$36=K$31),K61,IF(AND(A$10=A$3,A$23=K$6,A$36=K$33),K73,"")) ->  | K62: 462-rustfritt stål m/vinduer | L62: Venstre
A63: =IF(AND(A$10=A$3,A$23=K$6,A$36=K$31),K62,IF(AND(A$10=A$3,A$23=K$6,A$36=K$33),K74,"")) ->  | K63: 452-rustfritt stål u/vinduer | L63: Midt
A64: =IF(AND(A$10=A$3,A$23=K$6,A$36=K$31),K63,"") ->  | K64: 454-rustfritt stål | L64: Høyre
K65: 456-rustfritt stål | L65: NB! Kun motiv 457:
K66: 457-rustfritt stål | L66: Venstre speilvendt
K67: 458-rustfritt stål | L67: Høyre speilvendt
K68: 469-rustfritt stål m/vinduer
K69: 459-rustfritt stål u/vinduer
K71: 501-gjennomgående, rustfritt stål
A72: Valgt designmotiv: | K72: 501-gjennomgående, tre-finish
K73: 500-delt dekor, rustfritt stål
A74: =Produksjonsbeskrivelse!K254 -> 0 | K74: 500-delt dekor, tre-finish
A76: Konsekvens designplassering:
A78: =IF(OR(A$74=K$60,A$74=K$61,A$74=K$62,A$74=K$63,A$74=K$64,A$74=K$65,A$74=K$66,BD72=K$67,A$74=K$68,A$74=K$69),L62,"") -> 
A84: =IF(AND(A$10=A$3,A$23=K$6,A$36=K$31,A$74=K$59),"",IF(AND(A$10=A$3,A$23=K$6,A$36=K$31,A$74>0),L68,"")) -> 

Sheet Ark2 (hidden)
